Unique Reference number ,Vendor Name ,Subject Mapping 1 (higher level),Subject Mapping 2 (level 2),Subjective  Desc,Net amount,Capital/Revenue,GL Posting Date,Directorate
WC58 - 0001,1ST HAND CARE LTD,Third Party Payments,Private Contractor Fees,73372-DOMICILIARY CARE,"2,599.00",Revenue,20/07/2015,Social Care & Inclusion
WC58 - 0002,247 CARS (WILLENHALL) LIMITED,Transport,Hire,52000-WITH DRIVER-HIRE OF VEHICLES,280.00,Revenue,09/07/2015,Childrens
WC58 - 0003,247 CARS (WILLENHALL) LIMITED,Transport,Hire,52000-WITH DRIVER-HIRE OF VEHICLES,281.20,Revenue,09/07/2015,Childrens
WC58 - 0004,247 CARS (WILLENHALL) LIMITED,Transport,Hire,52000-WITH DRIVER-HIRE OF VEHICLES,300.00,Revenue,13/07/2015,Childrens
WC58 - 0005,247 CARS (WILLENHALL) LIMITED,Transport,Hire,52000-WITH DRIVER-HIRE OF VEHICLES,300.00,Revenue,21/07/2015,Childrens
WC58 - 0006,247 CARS (WILLENHALL) LIMITED,Transport,Hire,52000-WITH DRIVER-HIRE OF VEHICLES,320.00,Revenue,09/07/2015,Childrens
WC58 - 0007,247 CARS (WILLENHALL) LIMITED,Transport,Hire,52000-WITH DRIVER-HIRE OF VEHICLES,324.00,Revenue,09/07/2015,Childrens
WC58 - 0008,247 CARS (WILLENHALL) LIMITED,Transport,Hire,52000-WITH DRIVER-HIRE OF VEHICLES,324.00,Revenue,13/07/2015,Childrens
WC58 - 0009,247 CARS (WILLENHALL) LIMITED,Transport,Hire,52000-WITH DRIVER-HIRE OF VEHICLES,324.00,Revenue,13/07/2015,Childrens
WC58 - 0010,247 CARS (WILLENHALL) LIMITED,Transport,Hire,52000-WITH DRIVER-HIRE OF VEHICLES,325.60,Revenue,21/07/2015,Childrens
WC58 - 0011,247 CARS (WILLENHALL) LIMITED,Transport,Hire,52000-WITH DRIVER-HIRE OF VEHICLES,325.60,Revenue,21/07/2015,Childrens
WC58 - 0012,247 CARS (WILLENHALL) LIMITED,Transport,Hire,52000-WITH DRIVER-HIRE OF VEHICLES,352.00,Revenue,21/07/2015,Childrens
WC58 - 0013,247 CARS (WILLENHALL) LIMITED,Transport,Hire,52000-WITH DRIVER-HIRE OF VEHICLES,352.00,Revenue,21/07/2015,Childrens
WC58 - 0014,247 CARS (WILLENHALL) LIMITED,Transport,Hire,52000-WITH DRIVER-HIRE OF VEHICLES,352.00,Revenue,23/07/2015,Childrens
WC58 - 0015,247 CARS (WILLENHALL) LIMITED,Transport,Hire,52000-WITH DRIVER-HIRE OF VEHICLES,364.00,Revenue,13/07/2015,Childrens
WC58 - 0016,247 CARS (WILLENHALL) LIMITED,Transport,Hire,52000-WITH DRIVER-HIRE OF VEHICLES,384.00,Revenue,13/07/2015,Childrens
WC58 - 0017,247 CARS (WILLENHALL) LIMITED,Transport,Hire,52000-WITH DRIVER-HIRE OF VEHICLES,392.00,Revenue,13/07/2015,Childrens
WC58 - 0018,247 CARS (WILLENHALL) LIMITED,Transport,Hire,52000-WITH DRIVER-HIRE OF VEHICLES,400.00,Revenue,09/07/2015,Childrens
WC58 - 0019,247 CARS (WILLENHALL) LIMITED,Transport,Hire,52000-WITH DRIVER-HIRE OF VEHICLES,414.40,Revenue,09/07/2015,Childrens
WC58 - 0020,247 CARS (WILLENHALL) LIMITED,Transport,Hire,52000-WITH DRIVER-HIRE OF VEHICLES,414.40,Revenue,09/07/2015,Childrens
WC58 - 0021,247 CARS (WILLENHALL) LIMITED,Transport,Hire,52000-WITH DRIVER-HIRE OF VEHICLES,420.00,Revenue,09/07/2015,Childrens
WC58 - 0022,247 CARS (WILLENHALL) LIMITED,Transport,Hire,52000-WITH DRIVER-HIRE OF VEHICLES,420.00,Revenue,13/07/2015,Childrens
WC58 - 0023,247 CARS (WILLENHALL) LIMITED,Transport,Hire,52000-WITH DRIVER-HIRE OF VEHICLES,432.00,Revenue,09/07/2015,Childrens
WC58 - 0024,247 CARS (WILLENHALL) LIMITED,Transport,Hire,52000-WITH DRIVER-HIRE OF VEHICLES,444.00,Revenue,13/07/2015,Childrens
WC58 - 0025,247 CARS (WILLENHALL) LIMITED,Transport,Hire,52000-WITH DRIVER-HIRE OF VEHICLES,468.00,Revenue,09/07/2015,Childrens
WC58 - 0026,247 CARS (WILLENHALL) LIMITED,Transport,Hire,52000-WITH DRIVER-HIRE OF VEHICLES,468.00,Revenue,21/07/2015,Childrens
WC58 - 0027,247 CARS (WILLENHALL) LIMITED,Transport,Hire,52000-WITH DRIVER-HIRE OF VEHICLES,476.00,Revenue,09/07/2015,Childrens
WC58 - 0028,247 CARS (WILLENHALL) LIMITED,Transport,Hire,52000-WITH DRIVER-HIRE OF VEHICLES,510.00,Revenue,13/07/2015,Childrens
WC58 - 0029,247 CARS (WILLENHALL) LIMITED,Transport,Hire,52000-WITH DRIVER-HIRE OF VEHICLES,528.00,Revenue,21/07/2015,Childrens
WC58 - 0030,247 CARS (WILLENHALL) LIMITED,Transport,Hire,52000-WITH DRIVER-HIRE OF VEHICLES,560.00,Revenue,09/07/2015,Childrens
WC58 - 0031,247 CARS (WILLENHALL) LIMITED,Transport,Hire,52000-WITH DRIVER-HIRE OF VEHICLES,560.00,Revenue,13/07/2015,Childrens
WC58 - 0032,247 CARS (WILLENHALL) LIMITED,Transport,Hire,52000-WITH DRIVER-HIRE OF VEHICLES,616.00,Revenue,21/07/2015,Childrens
WC58 - 0033,247 CARS (WILLENHALL) LIMITED,Transport,Hire,52000-WITH DRIVER-HIRE OF VEHICLES,616.00,Revenue,21/07/2015,Childrens
WC58 - 0034,247 CARS (WILLENHALL) LIMITED,Transport,Hire,52000-WITH DRIVER-HIRE OF VEHICLES,651.20,Revenue,21/07/2015,Childrens
WC58 - 0035,247 CARS (WILLENHALL) LIMITED,Transport,Hire,52000-WITH DRIVER-HIRE OF VEHICLES,700.00,Revenue,09/07/2015,Childrens
WC58 - 0036,247 CARS (WILLENHALL) LIMITED,Transport,Hire,52000-WITH DRIVER-HIRE OF VEHICLES,748.00,Revenue,21/07/2015,Childrens
WC58 - 0037,247 CARS (WILLENHALL) LIMITED,Transport,Hire,52000-WITH DRIVER-HIRE OF VEHICLES,750.00,Revenue,13/07/2015,Childrens
WC58 - 0038,247 CARS (WILLENHALL) LIMITED,Transport,Hire,52000-WITH DRIVER-HIRE OF VEHICLES,789.60,Revenue,13/07/2015,Childrens
WC58 - 0039,247 CARS (WILLENHALL) LIMITED,Transport,Hire,52000-WITH DRIVER-HIRE OF VEHICLES,846.00,Revenue,13/07/2015,Childrens
WC58 - 0040,247 CARS (WILLENHALL) LIMITED,Transport,Hire,52000-WITH DRIVER-HIRE OF VEHICLES,"1,100.00",Revenue,21/07/2015,Childrens
WC58 - 0041,247 CARS (WILLENHALL) LIMITED,Transport,Hire,52000-WITH DRIVER-HIRE OF VEHICLES,"1,240.80",Revenue,21/07/2015,Childrens
WC58 - 0042,247 CARS (WILLENHALL) LIMITED,Transport,Hire,52000-WITH DRIVER-HIRE OF VEHICLES,"1,690.00",Revenue,21/07/2015,Childrens
WC58 - 0043,247 CARS (WILLENHALL) LIMITED,Transport,Hire,52000-WITH DRIVER-HIRE OF VEHICLES,"1,698.40",Revenue,21/07/2015,Childrens
WC58 - 0044,2BM LIMITED,Supplies & Services,Communications & Computing,63820-RECHARGE FOR MAINTENANCE/APPLICATION COSTS-COMPUTER,"2,400.00",Revenue,27/07/2015,Resources
WC58 - 0045,4 SIGHT EYECARE CENTRE 002,Employees,Other Staff Costs,34310-EYE TESTS-EMPLOYEES,"1,416.67",Revenue,29/07/2015,Resources
WC58 - 0046,5 CARE SERVICES LTD,Third Party Payments,Private Contractor Fees,73372-DOMICILIARY CARE,445.42,Revenue,16/07/2015,Social Care & Inclusion
WC58 - 0047,5 CARE SERVICES LTD,Third Party Payments,Private Contractor Fees,73372-DOMICILIARY CARE,506.64,Revenue,16/07/2015,Social Care & Inclusion
WC58 - 0048,5 CARE SERVICES LTD,Third Party Payments,Private Contractor Fees,73372-DOMICILIARY CARE,708.48,Revenue,16/07/2015,Social Care & Inclusion
WC58 - 0049,5 CARE SERVICES LTD,Third Party Payments,Private Contractor Fees,73372-DOMICILIARY CARE,"25,113.90",Revenue,20/07/2015,Social Care & Inclusion
WC58 - 0050,A 2 Z TAXIS (A2Z CARS),Transport,Hire,52000-WITH DRIVER-HIRE OF VEHICLES,"2,618.00",Revenue,27/07/2015,Childrens
WC58 - 0051,A D T FIRE AND SECURITY PLC,Third Party Payments,Private Contractor Fees,73002-SECURITY-PRIV CONTRACTOR FEES,341.94,Revenue,01/07/2015,Resources
WC58 - 0052,A D T FIRE AND SECURITY PLC,Third Party Payments,Private Contractor Fees,73002-SECURITY-PRIV CONTRACTOR FEES,723.38,Revenue,20/07/2015,Resources
WC58 - 0053,A D T FIRE AND SECURITY PLC,Third Party Payments,Private Contractor Fees,73002-SECURITY-PRIV CONTRACTOR FEES,"1,212.75",Revenue,01/07/2015,Resources
WC58 - 0054,A F BLAKEMORE & SON LTD,Supplies & Services,Provisions,61305-CATERING,273.50,Revenue,15/07/2015,Resources
WC58 - 0055,A F BLAKEMORE & SON LTD,Supplies & Services,"Equip,Furniture & Materials",60500-GENERAL MATERIALS,321.40,Revenue,06/07/2015,Economy & Environment
WC58 - 0056,A F BLAKEMORE & SON LTD,Supplies & Services,Provisions,61002-DRY FOODS-PROVISIONS,367.19,Revenue,06/07/2015,Economy & Environment
WC58 - 0057,A F BLAKEMORE & SON LTD,Supplies & Services,Provisions,61006-FRUIT & VEGETABLES OTHER-PROVISIONS,370.26,Revenue,01/07/2015,Social Care & Inclusion
WC58 - 0058,A F BLAKEMORE & SON LTD,Supplies & Services,Provisions,61008-CONFECTIONERY/SNACKS-PROVISIONS,462.78,Revenue,06/07/2015,Economy & Environment
WC58 - 0059,A F BLAKEMORE & SON LTD,Supplies & Services,Provisions,61016-FOOD AND BEVERAGES-PROVISIONS,498.29,Revenue,06/07/2015,Social Care & Inclusion
WC58 - 0060,A F BLAKEMORE & SON LTD,Supplies & Services,Provisions,61009-BEVERAGES-PROVISIONS,499.63,Revenue,13/07/2015,Economy & Environment
WC58 - 0061,A F BLAKEMORE & SON LTD,Supplies & Services,Provisions,61305-CATERING,921.75,Revenue,10/07/2015,Social Care & Inclusion
WC58 - 0062,REDACTED,Third Party Payments,Private Contractor Fees,74006-HOLIDAY/CHRISTMAS ALLOWANCE-FOSTER CARERS-OTH AGENCY PROVISION,349.76,Revenue,06/07/2015,Childrens
WC58 - 0063,REDACTED,Supplies & Services,Other Supplies & Services,62523-EVENTS,250.00,Revenue,09/07/2015,Economy & Environment
WC58 - 0064,REDACTED,Supplies & Services,Other Supplies & Services,62523-EVENTS,250.00,Revenue,09/07/2015,Economy & Environment
WC58 - 0065,REDACTED,Supplies & Services,Other Supplies & Services,62515-MISCELLANEOUS SUPPLIES,906.76,Revenue,20/07/2015,Childrens
WC58 - 0066,REDACTED,Third Party Payments,Private Contractor Fees,74006-HOLIDAY/CHRISTMAS ALLOWANCE-FOSTER CARERS-OTH AGENCY PROVISION,"1,478.64",Revenue,20/07/2015,Childrens
WC58 - 0067,REDACTED,Supplies & Services,Other Supplies & Services,62523-EVENTS,250.00,Revenue,09/07/2015,Economy & Environment
WC58 - 0068,REDACTED,Supplies & Services,Other Supplies & Services,62523-EVENTS,250.00,Revenue,09/07/2015,Economy & Environment
WC58 - 0069,REDACTED,Third Party Payments,Private Contractor Fees,74023-SHORT TERM BREAKS,447.24,Revenue,03/07/2015,Childrens
WC58 - 0070,AAA BEE JAY TRAVEL,Transport,Hire,52000-WITH DRIVER-HIRE OF VEHICLES,"5,504.00",Revenue,10/07/2015,Childrens
WC58 - 0071,AAINA ASIAN WOMENS GROUP,Supplies & Services,Other Supplies & Services,63115-HIRE OF ROOM (duplicate please use 63128)-SERVICES-FEES,320.00,Revenue,01/07/2015,Resources
WC58 - 0072,AAINA ASIAN WOMENS GROUP,Supplies & Services,Other Supplies & Services,63115-HIRE OF ROOM (duplicate please use 63128)-SERVICES-FEES,800.00,Revenue,01/07/2015,Resources
WC58 - 0073,REDACTED,Transfer Payments,Transfer Payments,76422-DIRECT PAYMENTS TO SOCIAL SERVICES CLIENTS,345.24,Revenue,13/07/2015,Childrens
WC58 - 0074,ABACUS FOSTERING LTD,Third Party Payments,Private Contractor Fees,74037-INDEPENDENT FOSTER CARE-OTH AGENCY PROVISION,"4,071.43",Revenue,03/07/2015,Childrens
WC58 - 0075,REDACTED,Third Party Payments,Private Contractor Fees,74006-HOLIDAY/CHRISTMAS ALLOWANCE-FOSTER CARERS-OTH AGENCY PROVISION,650.92,Revenue,06/07/2015,Childrens
WC58 - 0076,ABC DAY NURSERY (WILLENHALL) LIMITED,Third Party Payments,Grants to Other Orgs,66505-OTHER-GRANTS TO OTHER ORGS,"19,753.16",Revenue,21/07/2015,Childrens
WC58 - 0077,ABC DAY NURSERY (WILLENHALL) LIMITED,Third Party Payments,Grants to Other Orgs,66505-OTHER-GRANTS TO OTHER ORGS,"20,857.98",Revenue,09/07/2015,Childrens
WC58 - 0078,ABC FOSTERING,Third Party Payments,Private Contractor Fees,74037-INDEPENDENT FOSTER CARE-OTH AGENCY PROVISION,550.00,Revenue,08/07/2015,Childrens
WC58 - 0079,ABC FOSTERING,Third Party Payments,Private Contractor Fees,74037-INDEPENDENT FOSTER CARE-OTH AGENCY PROVISION,"2,980.34",Revenue,29/07/2015,Childrens
WC58 - 0080,ABC FOSTERING,Third Party Payments,Private Contractor Fees,74037-INDEPENDENT FOSTER CARE-OTH AGENCY PROVISION,"3,137.20",Revenue,29/07/2015,Childrens
WC58 - 0081,ABC FOSTERING,Third Party Payments,Private Contractor Fees,74037-INDEPENDENT FOSTER CARE-OTH AGENCY PROVISION,"3,300.00",Revenue,08/07/2015,Childrens
WC58 - 0082,ABC FOSTERING,Third Party Payments,Private Contractor Fees,74037-INDEPENDENT FOSTER CARE-OTH AGENCY PROVISION,"3,300.00",Revenue,08/07/2015,Childrens
WC58 - 0083,ABC FOSTERING,Third Party Payments,Private Contractor Fees,74037-INDEPENDENT FOSTER CARE-OTH AGENCY PROVISION,"3,410.00",Revenue,08/07/2015,Childrens
WC58 - 0084,ABC FOSTERING,Third Party Payments,Private Contractor Fees,74037-INDEPENDENT FOSTER CARE-OTH AGENCY PROVISION,"3,410.00",Revenue,08/07/2015,Childrens
WC58 - 0085,ABC FOSTERING,Third Party Payments,Private Contractor Fees,74037-INDEPENDENT FOSTER CARE-OTH AGENCY PROVISION,"3,410.00",Revenue,29/07/2015,Childrens
WC58 - 0086,ABC TEACHERS LIMITED,Employees,Agency,34305-AGENCY STAFF-EMPLOYEES,677.97,Revenue,29/07/2015,Childrens
WC58 - 0087,ABC TEACHERS LIMITED,Employees,Agency,34305-AGENCY STAFF-EMPLOYEES,989.94,Revenue,22/07/2015,Childrens
WC58 - 0088,ABC TEACHERS LIMITED,Employees,Agency,34305-AGENCY STAFF-EMPLOYEES,"1,025.94",Revenue,03/07/2015,Childrens
WC58 - 0089,ABC TEACHERS LIMITED,Employees,Agency,34305-AGENCY STAFF-EMPLOYEES,"1,025.94",Revenue,16/07/2015,Childrens
WC58 - 0090,REDACTED,Transfer Payments,Transfer Payments,76422-DIRECT PAYMENTS TO SOCIAL SERVICES CLIENTS,"2,357.99",Revenue,13/07/2015,Social Care & Inclusion
WC58 - 0091,ABLEWELL CARS,Transport,Hire,52000-WITH DRIVER-HIRE OF VEHICLES,300.00,Revenue,01/07/2015,Childrens
WC58 - 0092,ABLEWELL CARS,Transport,Hire,52000-WITH DRIVER-HIRE OF VEHICLES,302.00,Revenue,01/07/2015,Childrens
WC58 - 0093,ABLEWELL CARS,Transport,Hire,52000-WITH DRIVER-HIRE OF VEHICLES,330.00,Revenue,01/07/2015,Childrens
WC58 - 0094,ABLEWELL CARS,Transport,Hire,52000-WITH DRIVER-HIRE OF VEHICLES,330.00,Revenue,01/07/2015,Childrens
WC58 - 0095,ABU BAKR NURSERY,Third Party Payments,Grants to Other Orgs,66505-OTHER-GRANTS TO OTHER ORGS,"4,863.11",Revenue,16/07/2015,Childrens
WC58 - 0096,ABU BAKR NURSERY,Third Party Payments,Grants to Other Orgs,66505-OTHER-GRANTS TO OTHER ORGS,"13,783.77",Revenue,09/07/2015,Childrens
WC58 - 0097,ACCORD HOUSING ASSOCIATION LTD#135,Third Party Payments,Private Contractor Fees,73372-DOMICILIARY CARE,354.28,Revenue,01/07/2015,Social Care & Inclusion
WC58 - 0098,ACCORD HOUSING ASSOCIATION LTD#135,Third Party Payments,Private Contractor Fees,73372-DOMICILIARY CARE,364.32,Revenue,07/07/2015,Social Care & Inclusion
WC58 - 0099,ACCORD HOUSING ASSOCIATION LTD#135,Third Party Payments,Private Contractor Fees,73374-SUPPORTED & OTHER ACCOMMODATION,411.20,Revenue,01/07/2015,Social Care & Inclusion
WC58 - 0100,ACCORD HOUSING ASSOCIATION LTD#135,Third Party Payments,Private Contractor Fees,73372-DOMICILIARY CARE,444.92,Revenue,01/07/2015,Social Care & Inclusion
WC58 - 0101,ACCORD HOUSING ASSOCIATION LTD#135,Third Party Payments,Private Contractor Fees,73372-DOMICILIARY CARE,463.60,Revenue,01/07/2015,Social Care & Inclusion
WC58 - 0102,ACCORD HOUSING ASSOCIATION LTD#135,Third Party Payments,Private Contractor Fees,73372-DOMICILIARY CARE,502.32,Revenue,01/07/2015,Social Care & Inclusion
WC58 - 0103,ACCORD HOUSING ASSOCIATION LTD#135,Third Party Payments,Private Contractor Fees,73374-SUPPORTED & OTHER ACCOMMODATION,541.88,Revenue,01/07/2015,Social Care & Inclusion
WC58 - 0104,ACCORD HOUSING ASSOCIATION LTD#135,Third Party Payments,Private Contractor Fees,73372-DOMICILIARY CARE,566.72,Revenue,01/07/2015,Social Care & Inclusion
WC58 - 0105,ACCORD HOUSING ASSOCIATION LTD#135,Third Party Payments,Private Contractor Fees,73372-DOMICILIARY CARE,566.72,Revenue,14/07/2015,Social Care & Inclusion
WC58 - 0106,ACCORD HOUSING ASSOCIATION LTD#135,Third Party Payments,Private Contractor Fees,73372-DOMICILIARY CARE,656.88,Revenue,01/07/2015,Social Care & Inclusion
WC58 - 0107,ACCORD HOUSING ASSOCIATION LTD#135,Third Party Payments,Private Contractor Fees,73372-DOMICILIARY CARE,697.64,Revenue,01/07/2015,Social Care & Inclusion
WC58 - 0108,ACCORD HOUSING ASSOCIATION LTD#135,Third Party Payments,Private Contractor Fees,73372-DOMICILIARY CARE,697.64,Revenue,14/07/2015,Social Care & Inclusion
WC58 - 0109,ACCORD HOUSING ASSOCIATION LTD#135,Third Party Payments,Private Contractor Fees,73372-DOMICILIARY CARE,721.28,Revenue,01/07/2015,Social Care & Inclusion
WC58 - 0110,ACCORD HOUSING ASSOCIATION LTD#135,Third Party Payments,Private Contractor Fees,73372-DOMICILIARY CARE,775.76,Revenue,01/07/2015,Social Care & Inclusion
WC58 - 0111,ACCORD HOUSING ASSOCIATION LTD#135,Third Party Payments,Private Contractor Fees,73372-DOMICILIARY CARE,850.08,Revenue,01/07/2015,Social Care & Inclusion
WC58 - 0112,ACCORD HOUSING ASSOCIATION LTD#135,Third Party Payments,Private Contractor Fees,73372-DOMICILIARY CARE,850.08,Revenue,14/07/2015,Social Care & Inclusion
WC58 - 0113,ACCORD HOUSING ASSOCIATION LTD#135,Third Party Payments,Private Contractor Fees,73372-DOMICILIARY CARE,"1,107.44",Revenue,01/07/2015,Social Care & Inclusion
WC58 - 0114,ACCORD HOUSING ASSOCIATION LTD#135,Third Party Payments,Private Contractor Fees,73372-DOMICILIARY CARE,"1,133.20",Revenue,01/07/2015,Social Care & Inclusion
WC58 - 0115,ACCORD HOUSING ASSOCIATION LTD#135,Third Party Payments,Private Contractor Fees,73372-DOMICILIARY CARE,"1,144.04",Revenue,01/07/2015,Social Care & Inclusion
WC58 - 0116,ACCORD HOUSING ASSOCIATION LTD#135,Third Party Payments,Private Contractor Fees,73372-DOMICILIARY CARE,"1,159.20",Revenue,01/07/2015,Social Care & Inclusion
WC58 - 0117,ACCORD HOUSING ASSOCIATION LTD#135,Third Party Payments,Private Contractor Fees,73372-DOMICILIARY CARE,"1,197.80",Revenue,01/07/2015,Social Care & Inclusion
WC58 - 0118,ACCORD HOUSING ASSOCIATION LTD#135,Third Party Payments,Private Contractor Fees,73372-DOMICILIARY CARE,"1,457.36",Revenue,01/07/2015,Social Care & Inclusion
WC58 - 0119,ACCORD HOUSING ASSOCIATION LTD#135,Third Party Payments,Private Contractor Fees,73374-SUPPORTED & OTHER ACCOMMODATION,"1,584.00",Revenue,01/07/2015,Social Care & Inclusion
WC58 - 0120,ACCORD HOUSING ASSOCIATION LTD#135,Third Party Payments,Private Contractor Fees,73372-DOMICILIARY CARE,"1,663.64",Revenue,01/07/2015,Social Care & Inclusion
WC58 - 0121,ACCORD HOUSING ASSOCIATION LTD#135,Third Party Payments,Private Contractor Fees,73372-DOMICILIARY CARE,"1,725.68",Revenue,01/07/2015,Social Care & Inclusion
WC58 - 0122,ACCORD HOUSING ASSOCIATION LTD#135,Third Party Payments,Private Contractor Fees,73372-DOMICILIARY CARE,"2,408.32",Revenue,01/07/2015,Social Care & Inclusion
WC58 - 0123,ACCORD HOUSING ASSOCIATION LTD#135,Third Party Payments,Private Contractor Fees,73372-DOMICILIARY CARE,"2,408.32",Revenue,14/07/2015,Social Care & Inclusion
WC58 - 0124,ACCORD HOUSING ASSOCIATION LTD#135,Third Party Payments,Private Contractor Fees,73373-RESIDENTIAL & NURSING CARE PLACEMENTS,"4,490.79",Revenue,14/07/2015,Social Care & Inclusion
WC58 - 0125,ACCORD HOUSING ASSOCIATION LTD#135,Third Party Payments,Private Contractor Fees,73373-RESIDENTIAL & NURSING CARE PLACEMENTS,"4,490.79",Revenue,21/07/2015,Social Care & Inclusion
WC58 - 0126,ACCORD HOUSING ASSOCIATION LTD#135,Third Party Payments,Private Contractor Fees,73373-RESIDENTIAL & NURSING CARE PLACEMENTS,"4,490.79",Revenue,21/07/2015,Social Care & Inclusion
WC58 - 0127,ACCORD HOUSING ASSOCIATION LTD#135,Third Party Payments,Private Contractor Fees,73373-RESIDENTIAL & NURSING CARE PLACEMENTS,"4,490.79",Revenue,21/07/2015,Social Care & Inclusion
WC58 - 0128,ACCORD HOUSING ASSOCIATION LTD#135,Third Party Payments,Private Contractor Fees,73373-RESIDENTIAL & NURSING CARE PLACEMENTS,"6,267.69",Revenue,14/07/2015,Social Care & Inclusion
WC58 - 0129,ACCORD HOUSING ASSOCIATION LTD#135,Third Party Payments,Private Contractor Fees,73373-RESIDENTIAL & NURSING CARE PLACEMENTS,"6,267.69",Revenue,14/07/2015,Social Care & Inclusion
WC58 - 0130,ACCORD HOUSING ASSOCIATION LTD#135,Third Party Payments,Private Contractor Fees,73373-RESIDENTIAL & NURSING CARE PLACEMENTS,"6,267.69",Revenue,21/07/2015,Social Care & Inclusion
WC58 - 0131,ACCORD HOUSING ASSOCIATION LTD#135,Third Party Payments,Private Contractor Fees,73365-BLOCK GROSS-SUPPORTING PEOPLE,"37,531.81",Revenue,01/07/2015,Social Care & Inclusion
WC58 - 0132,ACCORD HOUSING ASSOCIATION LTD#135,Supplies & Services,Services,63000-PROFESSIONAL FEES AND SERVICES,"68,846.01",Revenue,28/07/2015,Economy & Environment
WC58 - 0133,ACE CARE AGENCY,Third Party Payments,Private Contractor Fees,73372-DOMICILIARY CARE,283.29,Revenue,20/07/2015,Social Care & Inclusion
WC58 - 0134,ACE CARE AGENCY,Third Party Payments,Private Contractor Fees,73372-DOMICILIARY CARE,607.05,Revenue,20/07/2015,Social Care & Inclusion
WC58 - 0135,ACE CARE AGENCY,Third Party Payments,Private Contractor Fees,73372-DOMICILIARY CARE,728.40,Revenue,21/07/2015,Social Care & Inclusion
WC58 - 0136,ACE CARE AGENCY,Third Party Payments,Private Contractor Fees,73372-DOMICILIARY CARE,"1,015.93",Revenue,17/07/2015,Social Care & Inclusion
WC58 - 0137,ACE CARE AGENCY,Third Party Payments,Private Contractor Fees,73372-DOMICILIARY CARE,"1,019.76",Revenue,17/07/2015,Social Care & Inclusion
WC58 - 0138,ACE RADIO CARS,Transport,Hire,52000-WITH DRIVER-HIRE OF VEHICLES,"2,147.20",Revenue,28/07/2015,Childrens
WC58 - 0139,ACE REMOVALS,Supplies & Services,"Equip,Furniture & Materials",60104-REMOVAL OF FURNITURE,360.00,Revenue,01/07/2015,Resources
WC58 - 0140,ACE REMOVALS,Supplies & Services,"Equip,Furniture & Materials",60104-REMOVAL OF FURNITURE,385.00,Revenue,10/07/2015,Resources
WC58 - 0141,ACE REMOVALS,Supplies & Services,"Printing, Stationery & Office Exp",63500-POSTAGES AND COURIER SERVICES,750.00,Revenue,27/07/2015,Resources
WC58 - 0142,ACEPAY LTD (COTTAGE NUR HOME),Third Party Payments,Private Contractor Fees,73373-RESIDENTIAL & NURSING CARE PLACEMENTS,"1,937.16",Revenue,07/07/2015,Social Care & Inclusion
WC58 - 0143,ACEPAY LTD (COTTAGE NUR HOME),Third Party Payments,Private Contractor Fees,73373-RESIDENTIAL & NURSING CARE PLACEMENTS,"1,942.00",Revenue,07/07/2015,Social Care & Inclusion
WC58 - 0144,ACEPAY LTD (COTTAGE NUR HOME),Third Party Payments,Private Contractor Fees,73373-RESIDENTIAL & NURSING CARE PLACEMENTS,"1,979.20",Revenue,07/07/2015,Social Care & Inclusion
WC58 - 0145,ACEPAY LTD (COTTAGE NUR HOME),Third Party Payments,Private Contractor Fees,73373-RESIDENTIAL & NURSING CARE PLACEMENTS,"1,979.20",Revenue,07/07/2015,Social Care & Inclusion
WC58 - 0146,ACEPAY LTD (COTTAGE NUR HOME),Third Party Payments,Private Contractor Fees,73373-RESIDENTIAL & NURSING CARE PLACEMENTS,"1,979.20",Revenue,07/07/2015,Social Care & Inclusion
WC58 - 0147,ACORN CARE LTD,Third Party Payments,Private Contractor Fees,73373-RESIDENTIAL & NURSING CARE PLACEMENTS,"14,840.32",Revenue,14/07/2015,Social Care & Inclusion
WC58 - 0148,ACORN HOUSE FOSTERING SERVICES LTD,Third Party Payments,Private Contractor Fees,74037-INDEPENDENT FOSTER CARE-OTH AGENCY PROVISION,"3,519.60",Revenue,08/07/2015,Childrens
WC58 - 0149,ACORN HOUSE FOSTERING SERVICES LTD,Third Party Payments,Private Contractor Fees,74037-INDEPENDENT FOSTER CARE-OTH AGENCY PROVISION,"3,591.30",Revenue,08/07/2015,Childrens
WC58 - 0150,ACORN REST HOME,Third Party Payments,Private Contractor Fees,73373-RESIDENTIAL & NURSING CARE PLACEMENTS,"1,493.24",Revenue,28/07/2015,Social Care & Inclusion
WC58 - 0151,ACORNS CHILDRENS HOSPICE TRUST,Supplies & Services,Services,63000-PROFESSIONAL FEES AND SERVICES,750.00,Revenue,02/07/2015,Childrens
WC58 - 0152,ACORNS CHILDRENS HOSPICE TRUST,Supplies & Services,Services,63000-PROFESSIONAL FEES AND SERVICES,750.00,Revenue,28/07/2015,Childrens
WC58 - 0153,ACTION FOR CHILDREN,Third Party Payments,Private Contractor Fees,74037-INDEPENDENT FOSTER CARE-OTH AGENCY PROVISION,"3,405.34",Revenue,03/07/2015,Childrens
WC58 - 0154,ACTION FOR CHILDREN,Supplies & Services,Services,63000-PROFESSIONAL FEES AND SERVICES,"60,000.00",Revenue,15/07/2015,Childrens
WC58 - 0155,ACTION ON HEARING LOSS,Third Party Payments,Private Contractor Fees,73374-SUPPORTED & OTHER ACCOMMODATION,479.28,Revenue,14/07/2015,Social Care & Inclusion
WC58 - 0156,ACTION ON HEARING LOSS,Third Party Payments,Private Contractor Fees,73374-SUPPORTED & OTHER ACCOMMODATION,479.28,Revenue,20/07/2015,Social Care & Inclusion
WC58 - 0157,ACTIVE ASSISTANCE,Supplies & Services,Services,63000-PROFESSIONAL FEES AND SERVICES,508.00,Revenue,27/07/2015,Childrens
WC58 - 0158,ACTIVE ASSISTANCE,Supplies & Services,Services,63000-PROFESSIONAL FEES AND SERVICES,568.96,Revenue,27/07/2015,Childrens
WC58 - 0159,REDACTED,Supplies & Services,Services,63000-PROFESSIONAL FEES AND SERVICES,336.00,Revenue,27/07/2015,Economy & Environment
WC58 - 0160,REDACTED,Capital,Capital,01023-TECHNICAL ASSISTANTS TIME,420.00,Capital,27/07/2015,Economy & Environment
WC58 - 0161,REDACTED,Supplies & Services,Services,63000-PROFESSIONAL FEES AND SERVICES,780.00,Revenue,27/07/2015,Economy & Environment
WC58 - 0162,REDACTED,Capital,Capital,01023-TECHNICAL ASSISTANTS TIME,840.00,Capital,27/07/2015,Economy & Environment
WC58 - 0163,REDACTED,Transfer Payments,Transfer Payments,76422-DIRECT PAYMENTS TO SOCIAL SERVICES CLIENTS,487.60,Revenue,13/07/2015,Childrens
WC58 - 0164,REDACTED,Transfer Payments,Transfer Payments,76422-DIRECT PAYMENTS TO SOCIAL SERVICES CLIENTS,812.00,Revenue,13/07/2015,Social Care & Inclusion
WC58 - 0165,ADAMS TOURS,Transport,Hire,52000-WITH DRIVER-HIRE OF VEHICLES,420.00,Revenue,29/07/2015,Childrens
WC58 - 0166,ADASS,Supplies & Services,Subscriptions,64500-PUBLICATIONS/ORGANISATIONS-SUBSCRIPTIONS,"1,700.00",Revenue,22/07/2015,Social Care & Inclusion
WC58 - 0167,ADCS (ASSOCIATION OF DIRECTORS OF CHILDRENS SERVICES),Employees,Training,30030-EXTERNAL TRAINING,416.00,Revenue,01/07/2015,Childrens
WC58 - 0168,REDACTED,Transfer Payments,Transfer Payments,76422-DIRECT PAYMENTS TO SOCIAL SERVICES CLIENTS,860.00,Revenue,13/07/2015,Social Care & Inclusion
WC58 - 0169,ADMIRAL SELF STORAGE LTD,Supplies & Services,Services,63000-PROFESSIONAL FEES AND SERVICES,419.32,Revenue,09/07/2015,Resources
WC58 - 0170,ADMIRAL SELF STORAGE LTD,Supplies & Services,Services,63000-PROFESSIONAL FEES AND SERVICES,"1,303.57",Revenue,13/07/2015,Childrens
WC58 - 0171,ADOPTION UK,Supplies & Services,Subscriptions,64500-PUBLICATIONS/ORGANISATIONS-SUBSCRIPTIONS,"7,713.50",Revenue,27/07/2015,Childrens
WC58 - 0172,ADVANCE HEALTH CARE (UK) LTD,Third Party Payments,Private Contractor Fees,73372-DOMICILIARY CARE,437.00,Revenue,21/07/2015,Social Care & Inclusion
WC58 - 0173,ADVANCE HEALTH CARE (UK) LTD,Third Party Payments,Private Contractor Fees,74000-OTHER AGENCY FEES,871.00,Revenue,28/07/2015,Social Care & Inclusion
WC58 - 0174,ADVANCE HEALTH CARE (UK) LTD,Third Party Payments,Private Contractor Fees,73372-DOMICILIARY CARE,"1,637.33",Revenue,03/07/2015,Social Care & Inclusion
WC58 - 0175,ADVANCE HEALTH CARE (UK) LTD,Third Party Payments,Private Contractor Fees,73372-DOMICILIARY CARE,"43,381.41",Revenue,20/07/2015,Social Care & Inclusion
WC58 - 0176,ADVANCE PHARMA LTD T/A PLECK PHARMACY,Supplies & Services,Services,63000-PROFESSIONAL FEES AND SERVICES,103.50,Revenue,22/07/2015,Economy & Environment
WC58 - 0177,ADVANCE PHARMA LTD T/A PLECK PHARMACY,Third Party Payments,Joint Arrangements,71007-CONTRIBUTION TO PCT,372.27,Revenue,22/07/2015,Economy & Environment
WC58 - 0178,ADVANCED REPROGRAPHIC TECH T/A PRINTMONSTER,Supplies & Services,Other Supplies & Services,63013-EXAMINATIONS-SERVICES,"1,500.00",Revenue,23/07/2015,Resources
WC58 - 0179,ADVENTURELAND DAY NURSERY,Supplies & Services,Other Supplies & Services,63120-CRECHE FACILITIES-SERVICES-FEES,254.00,Revenue,09/07/2015,Childrens
WC58 - 0180,ADVENTURELAND DAY NURSERY,Third Party Payments,Grants to Other Orgs,66505-OTHER-GRANTS TO OTHER ORGS,"9,608.85",Revenue,20/07/2015,Childrens
WC58 - 0181,ADVENTURELAND DAY NURSERY,Third Party Payments,Grants to Other Orgs,66505-OTHER-GRANTS TO OTHER ORGS,"10,307.44",Revenue,09/07/2015,Childrens
WC58 - 0182,ADVOCACY MATTERS LIMITED,Third Party Payments,Private Contractor Fees,70000-SOCIAL SERVICES-FEES TO VOLUNTARY BODIES,"13,429.00",Revenue,01/07/2015,Social Care & Inclusion
WC58 - 0183,ADVOCACY MATTERS LIMITED,Third Party Payments,Private Contractor Fees,70000-SOCIAL SERVICES-FEES TO VOLUNTARY BODIES,"20,120.00",Revenue,01/07/2015,Social Care & Inclusion
WC58 - 0184,ADVOCACY MATTERS LIMITED,Third Party Payments,Private Contractor Fees,70000-SOCIAL SERVICES-FEES TO VOLUNTARY BODIES,"22,560.75",Revenue,01/07/2015,Social Care & Inclusion
WC58 - 0185,AECOM INFRASTRUCTURE & ENVIRONMENT UK LIMITED,Capital,Capital,01001-OTHER CONSULTANTS FEES,270.91,Capital,02/07/2015,Economy & Environment
WC58 - 0186,AGE UK TRAINING,Third Party Payments,Grants to Other Orgs,65500-GRANTS TO ASSOCIATIONS,"1,584.00",Revenue,06/07/2015,Resources
WC58 - 0187,AGE UK WALSALL,Transfer Payments,Transfer Payments,76423-DIRECT PAYMENTS SUPPORT,"6,430.00",Revenue,01/07/2015,Social Care & Inclusion
WC58 - 0188,AGE UK WALSALL,Transfer Payments,Transfer Payments,76423-DIRECT PAYMENTS SUPPORT,"7,810.00",Revenue,29/07/2015,Social Care & Inclusion
WC58 - 0189,REDACTED,Transfer Payments,Transfer Payments,76422-DIRECT PAYMENTS TO SOCIAL SERVICES CLIENTS,"1,882.00",Revenue,13/07/2015,Social Care & Inclusion
WC58 - 0190,REDACTED,Transfer Payments,Transfer Payments,76422-DIRECT PAYMENTS TO SOCIAL SERVICES CLIENTS,936.52,Revenue,13/07/2015,Social Care & Inclusion
WC58 - 0191,REDACTED,Transfer Payments,Transfer Payments,76422-DIRECT PAYMENTS TO SOCIAL SERVICES CLIENTS,667.80,Revenue,13/07/2015,Social Care & Inclusion
WC58 - 0192,ALDRIDGE & BARONS LIMITED,Supplies & Services,Services,63000-PROFESSIONAL FEES AND SERVICES,290.00,Revenue,22/07/2015,Childrens
WC58 - 0193,ALDRIDGE & BARONS LIMITED,Transport,Hire,52001-HIRE OF VEHICLES,380.82,Revenue,13/07/2015,Social Care & Inclusion
WC58 - 0194,ALDRIDGE & BARONS LIMITED,Transport,Hire,52001-HIRE OF VEHICLES,420.00,Revenue,13/07/2015,Social Care & Inclusion
WC58 - 0195,ALDRIDGE & BARONS LIMITED,Transport,Hire,52001-HIRE OF VEHICLES,820.00,Revenue,13/07/2015,Social Care & Inclusion
WC58 - 0196,ALDRIDGE & BARONS LIMITED,Transport,Hire,52001-HIRE OF VEHICLES,"1,150.00",Revenue,13/07/2015,Social Care & Inclusion
WC58 - 0197,ALDRIDGE & BARONS LIMITED,Transport,Hire,52001-HIRE OF VEHICLES,"2,439.60",Revenue,13/07/2015,Social Care & Inclusion
WC58 - 0198,REDACTED,Transfer Payments,Transfer Payments,76422-DIRECT PAYMENTS TO SOCIAL SERVICES CLIENTS,"1,204.00",Revenue,13/07/2015,Social Care & Inclusion
WC58 - 0199,REDACTED,Transfer Payments,Transfer Payments,76422-DIRECT PAYMENTS TO SOCIAL SERVICES CLIENTS,582.66,Revenue,13/07/2015,Childrens
WC58 - 0200,REDACTED,Transfer Payments,Transfer Payments,76422-DIRECT PAYMENTS TO SOCIAL SERVICES CLIENTS,854.00,Revenue,13/07/2015,Social Care & Inclusion
WC58 - 0201,REDACTED,Transfer Payments,Transfer Payments,76422-DIRECT PAYMENTS TO SOCIAL SERVICES CLIENTS,328.80,Revenue,13/07/2015,Social Care & Inclusion
WC58 - 0202,REDACTED,Third Party Payments,Private Contractor Fees,74006-HOLIDAY/CHRISTMAS ALLOWANCE-FOSTER CARERS-OTH AGENCY PROVISION,985.76,Revenue,20/07/2015,Childrens
WC58 - 0203,REDACTED,Supplies & Services,Other Supplies & Services,62515-MISCELLANEOUS SUPPLIES,"1,445.32",Revenue,20/07/2015,Childrens
WC58 - 0204,REDACTED,Third Party Payments,Grants to Other Orgs,66505-OTHER-GRANTS TO OTHER ORGS,286.07,Revenue,16/07/2015,Childrens
WC58 - 0205,REDACTED,Third Party Payments,Grants to Other Orgs,66505-OTHER-GRANTS TO OTHER ORGS,310.44,Revenue,09/07/2015,Childrens
WC58 - 0206,REDACTED,Third Party Payments,Private Contractor Fees,74006-HOLIDAY/CHRISTMAS ALLOWANCE-FOSTER CARERS-OTH AGENCY PROVISION,552.96,Revenue,06/07/2015,Childrens
WC58 - 0207,ALLSORTS OFFICE SUPPLIES LTD,Capital,Capital,01006-SITE WORKS MAIN CONTRACTORS,288.00,Capital,02/07/2015,Childrens
WC58 - 0208,ALLSORTS OFFICE SUPPLIES LTD,Supplies & Services,"Equip,Furniture & Materials",60000-FURNITURE & EQUIPMENT,288.00,Revenue,02/07/2015,Resources
WC58 - 0209,ALLSORTS OFFICE SUPPLIES LTD,Capital,Capital,01006-SITE WORKS MAIN CONTRACTORS,336.00,Capital,02/07/2015,Childrens
WC58 - 0210,ALLSORTS OFFICE SUPPLIES LTD,Supplies & Services,"Equip,Furniture & Materials",60000-FURNITURE & EQUIPMENT,336.00,Revenue,02/07/2015,Resources
WC58 - 0211,ALLSORTS OFFICE SUPPLIES LTD,Supplies & Services,"Equip,Furniture & Materials",60006-NEW-FURNITURE & EQUIPMENT,365.00,Revenue,09/07/2015,Childrens
WC58 - 0212,ALLSORTS OFFICE SUPPLIES LTD,Capital,Capital,01006-SITE WORKS MAIN CONTRACTORS,727.50,Capital,02/07/2015,Childrens
WC58 - 0213,ALLSORTS OFFICE SUPPLIES LTD,Supplies & Services,"Equip,Furniture & Materials",60000-FURNITURE & EQUIPMENT,785.50,Revenue,10/07/2015,Resources
WC58 - 0214,ALLSORTS OFFICE SUPPLIES LTD,Supplies & Services,"Equip,Furniture & Materials",60006-NEW-FURNITURE & EQUIPMENT,"2,304.00",Revenue,02/07/2015,Social Care & Inclusion
WC58 - 0215,ALLSORTS OFFICE SUPPLIES LTD,Supplies & Services,"Equip,Furniture & Materials",60006-NEW-FURNITURE & EQUIPMENT,"4,121.80",Revenue,02/07/2015,Social Care & Inclusion
WC58 - 0216,ALMA COURT,Third Party Payments,Private Contractor Fees,73373-RESIDENTIAL & NURSING CARE PLACEMENTS,"6,316.87",Revenue,28/07/2015,Social Care & Inclusion
WC58 - 0217,ALMOZENE NURSERY & CHILDRENS CENTRE,Third Party Payments,Grants to Other Orgs,66505-OTHER-GRANTS TO OTHER ORGS,"3,718.85",Revenue,16/07/2015,Childrens
WC58 - 0218,ALMOZENE NURSERY & CHILDRENS CENTRE,Third Party Payments,Grants to Other Orgs,66505-OTHER-GRANTS TO OTHER ORGS,"6,126.12",Revenue,09/07/2015,Childrens
WC58 - 0219,ALPHA GRAPHICS,Supplies & Services,Other Supplies & Services,62515-MISCELLANEOUS SUPPLIES,613.00,Revenue,15/07/2015,Resources
WC58 - 0220,ALPHA HEALTH CARE LTD,Third Party Payments,Private Contractor Fees,73373-RESIDENTIAL & NURSING CARE PLACEMENTS,-443.56,Revenue,14/07/2015,Social Care & Inclusion
WC58 - 0221,ALPHA HEALTH CARE LTD,Third Party Payments,Private Contractor Fees,73373-RESIDENTIAL & NURSING CARE PLACEMENTS,260.79,Revenue,07/07/2015,Social Care & Inclusion
WC58 - 0222,ALPHA HEALTH CARE LTD,Third Party Payments,Private Contractor Fees,73373-RESIDENTIAL & NURSING CARE PLACEMENTS,327.84,Revenue,07/07/2015,Social Care & Inclusion
WC58 - 0223,ALPHA HEALTH CARE LTD,Third Party Payments,Private Contractor Fees,73373-RESIDENTIAL & NURSING CARE PLACEMENTS,343.86,Revenue,14/07/2015,Social Care & Inclusion
WC58 - 0224,ALPHA HEALTH CARE LTD,Third Party Payments,Private Contractor Fees,73373-RESIDENTIAL & NURSING CARE PLACEMENTS,365.10,Revenue,07/07/2015,Social Care & Inclusion
WC58 - 0225,ALPHA HEALTH CARE LTD,Third Party Payments,Private Contractor Fees,73373-RESIDENTIAL & NURSING CARE PLACEMENTS,366.60,Revenue,07/07/2015,Social Care & Inclusion
WC58 - 0226,ALPHA HEALTH CARE LTD,Third Party Payments,Private Contractor Fees,73373-RESIDENTIAL & NURSING CARE PLACEMENTS,693.29,Revenue,14/07/2015,Social Care & Inclusion
WC58 - 0227,ALPHA HEALTH CARE LTD,Third Party Payments,Private Contractor Fees,73373-RESIDENTIAL & NURSING CARE PLACEMENTS,990.71,Revenue,07/07/2015,Social Care & Inclusion
WC58 - 0228,ALPHA HEALTH CARE LTD,Third Party Payments,Private Contractor Fees,73373-RESIDENTIAL & NURSING CARE PLACEMENTS,"1,058.36",Revenue,28/07/2015,Social Care & Inclusion
WC58 - 0229,ALPHA HEALTH CARE LTD,Third Party Payments,Private Contractor Fees,73373-RESIDENTIAL & NURSING CARE PLACEMENTS,"1,406.56",Revenue,14/07/2015,Social Care & Inclusion
WC58 - 0230,ALPHA HEALTH CARE LTD,Third Party Payments,Private Contractor Fees,73373-RESIDENTIAL & NURSING CARE PLACEMENTS,"1,413.08",Revenue,14/07/2015,Social Care & Inclusion
WC58 - 0231,ALPHA HEALTH CARE LTD,Third Party Payments,Private Contractor Fees,73373-RESIDENTIAL & NURSING CARE PLACEMENTS,"1,493.24",Revenue,14/07/2015,Social Care & Inclusion
WC58 - 0232,ALPHA HEALTH CARE LTD,Third Party Payments,Private Contractor Fees,73373-RESIDENTIAL & NURSING CARE PLACEMENTS,"1,510.08",Revenue,14/07/2015,Social Care & Inclusion
WC58 - 0233,ALPHA HEALTH CARE LTD,Third Party Payments,Private Contractor Fees,73373-RESIDENTIAL & NURSING CARE PLACEMENTS,"1,510.08",Revenue,14/07/2015,Social Care & Inclusion
WC58 - 0234,ALPHA HEALTH CARE LTD,Third Party Payments,Private Contractor Fees,73373-RESIDENTIAL & NURSING CARE PLACEMENTS,"1,527.60",Revenue,14/07/2015,Social Care & Inclusion
WC58 - 0235,ALPHA HEALTH CARE LTD,Third Party Payments,Private Contractor Fees,73373-RESIDENTIAL & NURSING CARE PLACEMENTS,"1,527.60",Revenue,14/07/2015,Social Care & Inclusion
WC58 - 0236,ALPHA HEALTH CARE LTD,Third Party Payments,Private Contractor Fees,73373-RESIDENTIAL & NURSING CARE PLACEMENTS,"1,527.60",Revenue,14/07/2015,Social Care & Inclusion
WC58 - 0237,ALPHA HEALTH CARE LTD,Third Party Payments,Private Contractor Fees,73373-RESIDENTIAL & NURSING CARE PLACEMENTS,"1,527.60",Revenue,14/07/2015,Social Care & Inclusion
WC58 - 0238,ALPHA HEALTH CARE LTD,Third Party Payments,Private Contractor Fees,73373-RESIDENTIAL & NURSING CARE PLACEMENTS,"1,527.60",Revenue,14/07/2015,Social Care & Inclusion
WC58 - 0239,ALPHA HEALTH CARE LTD,Third Party Payments,Private Contractor Fees,73373-RESIDENTIAL & NURSING CARE PLACEMENTS,"1,527.60",Revenue,14/07/2015,Social Care & Inclusion
WC58 - 0240,ALPHA HEALTH CARE LTD,Third Party Payments,Private Contractor Fees,73373-RESIDENTIAL & NURSING CARE PLACEMENTS,"1,527.60",Revenue,14/07/2015,Social Care & Inclusion
WC58 - 0241,ALPHA HEALTH CARE LTD,Third Party Payments,Private Contractor Fees,73373-RESIDENTIAL & NURSING CARE PLACEMENTS,"1,527.60",Revenue,14/07/2015,Social Care & Inclusion
WC58 - 0242,ALPHA HEALTH CARE LTD,Third Party Payments,Private Contractor Fees,73373-RESIDENTIAL & NURSING CARE PLACEMENTS,"1,527.60",Revenue,14/07/2015,Social Care & Inclusion
WC58 - 0243,ALPHA HEALTH CARE LTD,Third Party Payments,Private Contractor Fees,73373-RESIDENTIAL & NURSING CARE PLACEMENTS,"1,527.60",Revenue,14/07/2015,Social Care & Inclusion
WC58 - 0244,ALPHA HEALTH CARE LTD,Third Party Payments,Private Contractor Fees,73373-RESIDENTIAL & NURSING CARE PLACEMENTS,"1,527.60",Revenue,21/07/2015,Social Care & Inclusion
WC58 - 0245,ALPHA HEALTH CARE LTD,Third Party Payments,Private Contractor Fees,73373-RESIDENTIAL & NURSING CARE PLACEMENTS,"1,527.64",Revenue,14/07/2015,Social Care & Inclusion
WC58 - 0246,ALPHA HEALTH CARE LTD,Third Party Payments,Private Contractor Fees,73373-RESIDENTIAL & NURSING CARE PLACEMENTS,"1,534.28",Revenue,07/07/2015,Social Care & Inclusion
WC58 - 0247,ALPHA HEALTH CARE LTD,Third Party Payments,Private Contractor Fees,73373-RESIDENTIAL & NURSING CARE PLACEMENTS,"1,568.64",Revenue,14/07/2015,Social Care & Inclusion
WC58 - 0248,ALPHA HEALTH CARE LTD,Third Party Payments,Private Contractor Fees,73373-RESIDENTIAL & NURSING CARE PLACEMENTS,"1,568.64",Revenue,14/07/2015,Social Care & Inclusion
WC58 - 0249,ALPHA HEALTH CARE LTD,Third Party Payments,Private Contractor Fees,73373-RESIDENTIAL & NURSING CARE PLACEMENTS,"1,568.64",Revenue,14/07/2015,Social Care & Inclusion
WC58 - 0250,ALPHA HEALTH CARE LTD,Third Party Payments,Private Contractor Fees,73373-RESIDENTIAL & NURSING CARE PLACEMENTS,"1,568.64",Revenue,14/07/2015,Social Care & Inclusion
WC58 - 0251,ALPHA HEALTH CARE LTD,Third Party Payments,Private Contractor Fees,73373-RESIDENTIAL & NURSING CARE PLACEMENTS,"1,568.64",Revenue,14/07/2015,Social Care & Inclusion
WC58 - 0252,ALPHA HEALTH CARE LTD,Third Party Payments,Private Contractor Fees,73373-RESIDENTIAL & NURSING CARE PLACEMENTS,"1,568.80",Revenue,14/07/2015,Social Care & Inclusion
WC58 - 0253,ALPHA HEALTH CARE LTD,Third Party Payments,Private Contractor Fees,73373-RESIDENTIAL & NURSING CARE PLACEMENTS,"1,599.47",Revenue,07/07/2015,Social Care & Inclusion
WC58 - 0254,ALPHA HEALTH CARE LTD,Third Party Payments,Private Contractor Fees,73373-RESIDENTIAL & NURSING CARE PLACEMENTS,"1,630.60",Revenue,14/07/2015,Social Care & Inclusion
WC58 - 0255,ALPHA HEALTH CARE LTD,Third Party Payments,Private Contractor Fees,73373-RESIDENTIAL & NURSING CARE PLACEMENTS,"2,057.88",Revenue,14/07/2015,Social Care & Inclusion
WC58 - 0256,ALPHA HEALTH CARE LTD,Third Party Payments,Private Contractor Fees,73373-RESIDENTIAL & NURSING CARE PLACEMENTS,"2,161.40",Revenue,14/07/2015,Social Care & Inclusion
WC58 - 0257,ALPHA HEALTH CARE LTD,Third Party Payments,Private Contractor Fees,73373-RESIDENTIAL & NURSING CARE PLACEMENTS,"5,413.72",Revenue,14/07/2015,Social Care & Inclusion
WC58 - 0258,ALPHA HEALTH CARE LTD,Third Party Payments,Private Contractor Fees,73373-RESIDENTIAL & NURSING CARE PLACEMENTS,"5,553.32",Revenue,14/07/2015,Social Care & Inclusion
WC58 - 0259,ALPHA HEALTH CARE LTD,Third Party Payments,Private Contractor Fees,73373-RESIDENTIAL & NURSING CARE PLACEMENTS,"8,880.00",Revenue,07/07/2015,Social Care & Inclusion
WC58 - 0260,ALPHABIOLABS,Transfer Payments,Transfer Payments,76000-TRANSFER PAYMENTS - SOCIAL SERVICES CLIENTS,505.00,Revenue,23/07/2015,Childrens
WC58 - 0261,ALTODIGITAL NETWORKS LTD,Supplies & Services,"Equip,Furniture & Materials",60004-PHOTOGRAPHIC DEVELOPMENT/PRINTING-EQUIPMENT,303.57,Revenue,03/07/2015,Social Care & Inclusion
WC58 - 0262,ALTODIGITAL NETWORKS LTD,Supplies & Services,"Equip,Furniture & Materials",60009-LEASING/HIRE/RENTAL-EQUIPMENT,304.15,Revenue,13/07/2015,Economy & Environment
WC58 - 0263,ALTODIGITAL NETWORKS LTD,Supplies & Services,Other Supplies & Services,64000-SUBSISTENCE OFFICERS-EXPENSES,305.25,Revenue,15/07/2015,Social Care & Inclusion
WC58 - 0264,ALTODIGITAL NETWORKS LTD,Supplies & Services,"Equip,Furniture & Materials",60009-LEASING/HIRE/RENTAL-EQUIPMENT,404.65,Revenue,07/07/2015,Economy & Environment
WC58 - 0265,ALTODIGITAL NETWORKS LTD,Supplies & Services,"Equip,Furniture & Materials",60009-LEASING/HIRE/RENTAL-EQUIPMENT,464.05,Revenue,02/07/2015,Resources
WC58 - 0266,ALTODIGITAL NETWORKS LTD,Central,Internal Recharges,82012-PRINT & DESIGN CHARGES-INTERNAL,482.86,Revenue,07/07/2015,Childrens
WC58 - 0267,ALTODIGITAL NETWORKS LTD,Supplies & Services,"Equip,Furniture & Materials",60009-LEASING/HIRE/RENTAL-EQUIPMENT,500.00,Revenue,01/07/2015,Resources
WC58 - 0268,ALTODIGITAL NETWORKS LTD,Supplies & Services,"Printing, Stationery & Office Exp",62000-EXTERNAL PRINTING SERVICES,917.79,Revenue,16/07/2015,Resources
WC58 - 0269,ALTODIGITAL NETWORKS LTD,Supplies & Services,"Printing, Stationery & Office Exp",62001-STATIONERY & GENERAL SUPPLIES-OFFICE EXP,"1,358.28",Revenue,15/07/2015,Economy & Environment
WC58 - 0270,ALUMWELLIES NURSERY,Third Party Payments,Grants to Other Orgs,66505-OTHER-GRANTS TO OTHER ORGS,"9,335.04",Revenue,09/07/2015,Childrens
WC58 - 0271,ALUMWELLIES NURSERY,Third Party Payments,Grants to Other Orgs,66505-OTHER-GRANTS TO OTHER ORGS,"15,066.09",Revenue,20/07/2015,Childrens
WC58 - 0272,REDACTED,Third Party Payments,Private Contractor Fees,74006-HOLIDAY/CHRISTMAS ALLOWANCE-FOSTER CARERS-OTH AGENCY PROVISION,"1,500.88",Revenue,06/07/2015,Childrens
WC58 - 0273,REDACTED,Supplies & Services,Other Supplies & Services,62515-MISCELLANEOUS SUPPLIES,354.48,Revenue,20/07/2015,Childrens
WC58 - 0274,REDACTED,Third Party Payments,Private Contractor Fees,74006-HOLIDAY/CHRISTMAS ALLOWANCE-FOSTER CARERS-OTH AGENCY PROVISION,857.16,Revenue,20/07/2015,Childrens
WC58 - 0275,REDACTED,Transfer Payments,Transfer Payments,76422-DIRECT PAYMENTS TO SOCIAL SERVICES CLIENTS,582.00,Revenue,13/07/2015,Social Care & Inclusion
WC58 - 0276,REDACTED,Transfer Payments,Transfer Payments,76422-DIRECT PAYMENTS TO SOCIAL SERVICES CLIENTS,654.50,Revenue,13/07/2015,Social Care & Inclusion
WC58 - 0277,REDACTED,Transfer Payments,Transfer Payments,76422-DIRECT PAYMENTS TO SOCIAL SERVICES CLIENTS,312.92,Revenue,13/07/2015,Childrens
WC58 - 0278,AMBITION,Supplies & Services,Subscriptions,64500-PUBLICATIONS/ORGANISATIONS-SUBSCRIPTIONS,"1,350.00",Revenue,01/07/2015,Childrens
WC58 - 0279,REDACTED,Transfer Payments,Transfer Payments,76422-DIRECT PAYMENTS TO SOCIAL SERVICES CLIENTS,450.00,Revenue,13/07/2015,Social Care & Inclusion
WC58 - 0280,AMEY LG LIMITED,Third Party Payments,Private Contractor Fees,73025-PROFESSIONAL SERVICES-PRIV CONTRACTOR & OTHER AGENCIES,"12,048.39",Revenue,29/07/2015,Economy & Environment
WC58 - 0281,AMG NURSING CARE SERVICES,Third Party Payments,Private Contractor Fees,74036-EXTERNAL RESIDENTIAL CARE-OTH AGENCY PROVISION,"1,088.88",Revenue,01/07/2015,Childrens
WC58 - 0282,AMG NURSING CARE SERVICES,Third Party Payments,Private Contractor Fees,74036-EXTERNAL RESIDENTIAL CARE-OTH AGENCY PROVISION,"2,099.52",Revenue,01/07/2015,Childrens
WC58 - 0283,AMG NURSING CARE SERVICES,Third Party Payments,Private Contractor Fees,74036-EXTERNAL RESIDENTIAL CARE-OTH AGENCY PROVISION,"2,228.76",Revenue,20/07/2015,Childrens
WC58 - 0284,AMG NURSING CARE SERVICES,Third Party Payments,Private Contractor Fees,74036-EXTERNAL RESIDENTIAL CARE-OTH AGENCY PROVISION,"2,270.16",Revenue,02/07/2015,Childrens
WC58 - 0285,AMG NURSING CARE SERVICES,Third Party Payments,Private Contractor Fees,73372-DOMICILIARY CARE,"6,744.76",Revenue,20/07/2015,Social Care & Inclusion
WC58 - 0286,REDACTED,Transfer Payments,Transfer Payments,76422-DIRECT PAYMENTS TO SOCIAL SERVICES CLIENTS,945.00,Revenue,13/07/2015,Social Care & Inclusion
WC58 - 0287,REDACTED,Third Party Payments,Private Contractor Fees,74006-HOLIDAY/CHRISTMAS ALLOWANCE-FOSTER CARERS-OTH AGENCY PROVISION,425.08,Revenue,06/07/2015,Childrens
WC58 - 0288,REDACTED,Transfer Payments,Transfer Payments,76422-DIRECT PAYMENTS TO SOCIAL SERVICES CLIENTS,544.00,Revenue,13/07/2015,Social Care & Inclusion
WC58 - 0289,REDACTED,Transfer Payments,Transfer Payments,76422-DIRECT PAYMENTS TO SOCIAL SERVICES CLIENTS,892.50,Revenue,13/07/2015,Social Care & Inclusion
WC58 - 0290,REDACTED,Supplies & Services,Other Supplies & Services,62515-MISCELLANEOUS SUPPLIES,925.00,Revenue,20/07/2015,Childrens
WC58 - 0291,REDACTED,Third Party Payments,Private Contractor Fees,74006-HOLIDAY/CHRISTMAS ALLOWANCE-FOSTER CARERS-OTH AGENCY PROVISION,"1,301.84",Revenue,20/07/2015,Childrens
WC58 - 0292,REDACTED,Transfer Payments,Transfer Payments,76422-DIRECT PAYMENTS TO SOCIAL SERVICES CLIENTS,500.00,Revenue,13/07/2015,Social Care & Inclusion
WC58 - 0293,REDACTED,Transfer Payments,Transfer Payments,76422-DIRECT PAYMENTS TO SOCIAL SERVICES CLIENTS,378.00,Revenue,13/07/2015,Social Care & Inclusion
WC58 - 0294,REDACTED,Supplies & Services,Other Supplies & Services,62515-MISCELLANEOUS SUPPLIES,906.76,Revenue,20/07/2015,Childrens
WC58 - 0295,REDACTED,Third Party Payments,Private Contractor Fees,74006-HOLIDAY/CHRISTMAS ALLOWANCE-FOSTER CARERS-OTH AGENCY PROVISION,985.76,Revenue,20/07/2015,Childrens
WC58 - 0296,ANDREWS ELECTRICAL LTD,Capital,Capital,01006-SITE WORKS MAIN CONTRACTORS,"1,686.40",Capital,16/07/2015,Resources
WC58 - 0297,ANGEL COURT RESIDENTIAL CARE HOME,Third Party Payments,Private Contractor Fees,73373-RESIDENTIAL & NURSING CARE PLACEMENTS,"1,156.92",Revenue,28/07/2015,Social Care & Inclusion
WC58 - 0298,ANGEL COURT RESIDENTIAL CARE HOME,Third Party Payments,Private Contractor Fees,73373-RESIDENTIAL & NURSING CARE PLACEMENTS,"2,061.08",Revenue,28/07/2015,Social Care & Inclusion
WC58 - 0299,ANGEL COURT RESIDENTIAL CARE HOME,Third Party Payments,Private Contractor Fees,73373-RESIDENTIAL & NURSING CARE PLACEMENTS,"3,510.40",Revenue,28/07/2015,Social Care & Inclusion
WC58 - 0300,REDACTED,Third Party Payments,Private Contractor Fees,74006-HOLIDAY/CHRISTMAS ALLOWANCE-FOSTER CARERS-OTH AGENCY PROVISION,"1,952.76",Revenue,06/07/2015,Childrens
WC58 - 0301,ANGLIA STAIRLIFTS LTD,Capital,Capital,01006-SITE WORKS MAIN CONTRACTORS,"3,877.16",Capital,22/07/2015,Resources
WC58 - 0302,ANGLIA STAIRLIFTS LTD,Capital,Capital,01045-PRIVATE GRANTS,"3,895.00",Capital,29/07/2015,Resources
WC58 - 0303,ANGLIA STAIRLIFTS LTD,Capital,Capital,01045-PRIVATE GRANTS,"4,115.00",Capital,14/07/2015,Resources
WC58 - 0304,ANGLIA STAIRLIFTS LTD,Capital,Capital,01045-PRIVATE GRANTS,"4,185.00",Capital,14/07/2015,Resources
WC58 - 0305,ANGLIA STAIRLIFTS LTD,Capital,Capital,01045-PRIVATE GRANTS,"4,365.00",Capital,22/07/2015,Resources
WC58 - 0306,ANGLIA STAIRLIFTS LTD,Capital,Capital,01045-PRIVATE GRANTS,"4,482.49",Capital,28/07/2015,Resources
WC58 - 0307,ANGLIA STAIRLIFTS LTD,Capital,Capital,01045-PRIVATE GRANTS,"4,505.00",Capital,14/07/2015,Resources
WC58 - 0308,ANGLIA STAIRLIFTS LTD,Capital,Capital,01045-PRIVATE GRANTS,"4,835.00",Capital,22/07/2015,Resources
WC58 - 0309,REDACTED,Supplies & Services,Other Supplies & Services,62515-MISCELLANEOUS SUPPLIES,925.00,Revenue,20/07/2015,Childrens
WC58 - 0310,REDACTED,Third Party Payments,Private Contractor Fees,74006-HOLIDAY/CHRISTMAS ALLOWANCE-FOSTER CARERS-OTH AGENCY PROVISION,"1,461.24",Revenue,20/07/2015,Childrens
WC58 - 0311,REDACTED,Transfer Payments,Transfer Payments,76422-DIRECT PAYMENTS TO SOCIAL SERVICES CLIENTS,318.00,Revenue,13/07/2015,Social Care & Inclusion
WC58 - 0312,REDACTED,Supplies & Services,Services,63000-PROFESSIONAL FEES AND SERVICES,650.00,Revenue,22/07/2015,Economy & Environment
WC58 - 0313,REDACTED,Third Party Payments,Private Contractor Fees,73374-SUPPORTED & OTHER ACCOMMODATION,467.22,Revenue,29/07/2015,Social Care & Inclusion
WC58 - 0314,REDACTED,Third Party Payments,Private Contractor Fees,73374-SUPPORTED & OTHER ACCOMMODATION,"1,402.73",Revenue,03/07/2015,Social Care & Inclusion
WC58 - 0315,ANSON COURT RESIDENTIAL HOME,Third Party Payments,Private Contractor Fees,73373-RESIDENTIAL & NURSING CARE PLACEMENTS,392.16,Revenue,21/07/2015,Social Care & Inclusion
WC58 - 0316,ANSON COURT RESIDENTIAL HOME,Third Party Payments,Private Contractor Fees,73373-RESIDENTIAL & NURSING CARE PLACEMENTS,"1,534.12",Revenue,07/07/2015,Social Care & Inclusion
WC58 - 0317,ANSON COURT RESIDENTIAL HOME,Third Party Payments,Private Contractor Fees,73373-RESIDENTIAL & NURSING CARE PLACEMENTS,"1,567.00",Revenue,28/07/2015,Social Care & Inclusion
WC58 - 0318,ANSON COURT RESIDENTIAL HOME,Third Party Payments,Private Contractor Fees,73373-RESIDENTIAL & NURSING CARE PLACEMENTS,"1,568.64",Revenue,28/07/2015,Social Care & Inclusion
WC58 - 0319,ANSON COURT RESIDENTIAL HOME,Third Party Payments,Private Contractor Fees,73373-RESIDENTIAL & NURSING CARE PLACEMENTS,"1,568.64",Revenue,28/07/2015,Social Care & Inclusion
WC58 - 0320,ANSON COURT RESIDENTIAL HOME,Third Party Payments,Private Contractor Fees,73373-RESIDENTIAL & NURSING CARE PLACEMENTS,"1,568.64",Revenue,28/07/2015,Social Care & Inclusion
WC58 - 0321,ANSON COURT RESIDENTIAL HOME,Third Party Payments,Private Contractor Fees,73373-RESIDENTIAL & NURSING CARE PLACEMENTS,"1,568.64",Revenue,28/07/2015,Social Care & Inclusion
WC58 - 0322,ANSON COURT RESIDENTIAL HOME,Third Party Payments,Private Contractor Fees,73373-RESIDENTIAL & NURSING CARE PLACEMENTS,"1,568.64",Revenue,28/07/2015,Social Care & Inclusion
WC58 - 0323,ANSON COURT RESIDENTIAL HOME,Third Party Payments,Private Contractor Fees,73373-RESIDENTIAL & NURSING CARE PLACEMENTS,"1,568.64",Revenue,28/07/2015,Social Care & Inclusion
WC58 - 0324,ANSON COURT RESIDENTIAL HOME,Third Party Payments,Private Contractor Fees,73373-RESIDENTIAL & NURSING CARE PLACEMENTS,"1,568.64",Revenue,28/07/2015,Social Care & Inclusion
WC58 - 0325,ANSON COURT RESIDENTIAL HOME,Third Party Payments,Private Contractor Fees,73373-RESIDENTIAL & NURSING CARE PLACEMENTS,"1,568.64",Revenue,28/07/2015,Social Care & Inclusion
WC58 - 0326,ANSON COURT RESIDENTIAL HOME,Third Party Payments,Private Contractor Fees,73373-RESIDENTIAL & NURSING CARE PLACEMENTS,"1,614.12",Revenue,21/07/2015,Social Care & Inclusion
WC58 - 0327,ANSON COURT RESIDENTIAL HOME,Third Party Payments,Private Contractor Fees,73373-RESIDENTIAL & NURSING CARE PLACEMENTS,"1,649.20",Revenue,28/07/2015,Social Care & Inclusion
WC58 - 0328,ANSON COURT RESIDENTIAL HOME,Third Party Payments,Private Contractor Fees,73373-RESIDENTIAL & NURSING CARE PLACEMENTS,"1,650.44",Revenue,28/07/2015,Social Care & Inclusion
WC58 - 0329,ANSON COURT RESIDENTIAL HOME,Third Party Payments,Private Contractor Fees,73373-RESIDENTIAL & NURSING CARE PLACEMENTS,"1,651.04",Revenue,28/07/2015,Social Care & Inclusion
WC58 - 0330,ANSON COURT RESIDENTIAL HOME,Third Party Payments,Private Contractor Fees,73373-RESIDENTIAL & NURSING CARE PLACEMENTS,"1,651.04",Revenue,28/07/2015,Social Care & Inclusion
WC58 - 0331,ANSON PRIMARY SCHOOL,Transfer Payments,Transfer Payments,77300-ISB-FORMULA ALLOCATION,850.00,Revenue,16/07/2015,Childrens
WC58 - 0332,REDACTED,Third Party Payments,Private Contractor Fees,74006-HOLIDAY/CHRISTMAS ALLOWANCE-FOSTER CARERS-OTH AGENCY PROVISION,"1,369.84",Revenue,06/07/2015,Childrens
WC58 - 0333,ANTI-PEST PEST CONTROL SERVICES,Third Party Payments,Private Contractor Fees,73025-PROFESSIONAL SERVICES-PRIV CONTRACTOR & OTHER AGENCIES,267.00,Revenue,09/07/2015,Childrens
WC58 - 0334,ANTI-PEST PEST CONTROL SERVICES,Third Party Payments,Private Contractor Fees,73025-PROFESSIONAL SERVICES-PRIV CONTRACTOR & OTHER AGENCIES,270.00,Revenue,09/07/2015,Childrens
WC58 - 0335,REDACTED,Third Party Payments,Private Contractor Fees,74006-HOLIDAY/CHRISTMAS ALLOWANCE-FOSTER CARERS-OTH AGENCY PROVISION,571.44,Revenue,06/07/2015,Childrens
WC58 - 0336,APCOA PARKING SERVICES (UK) LTD,Third Party Payments,Private Contractor Fees,73025-PROFESSIONAL SERVICES-PRIV CONTRACTOR & OTHER AGENCIES,"43,152.44",Revenue,16/07/2015,Economy & Environment
WC58 - 0337,APPLEGREEN CHILDRENS CARE LTD,Third Party Payments,Private Contractor Fees,74036-EXTERNAL RESIDENTIAL CARE-OTH AGENCY PROVISION,"13,285.67",Revenue,21/07/2015,Childrens
WC58 - 0338,APPLEGREEN CHILDRENS CARE LTD,Third Party Payments,Private Contractor Fees,74036-EXTERNAL RESIDENTIAL CARE-OTH AGENCY PROVISION,"16,714.23",Revenue,21/07/2015,Childrens
WC58 - 0339,APSE 001,Employees,Training,30030-EXTERNAL TRAINING,338.00,Revenue,15/07/2015,Economy & Environment
WC58 - 0340,ARBORETUM NURSING HOME.,Third Party Payments,Private Contractor Fees,73373-RESIDENTIAL & NURSING CARE PLACEMENTS,423.34,Revenue,14/07/2015,Social Care & Inclusion
WC58 - 0341,ARBORETUM NURSING HOME.,Third Party Payments,Private Contractor Fees,73373-RESIDENTIAL & NURSING CARE PLACEMENTS,"1,274.52",Revenue,14/07/2015,Social Care & Inclusion
WC58 - 0342,ARBORETUM NURSING HOME.,Third Party Payments,Private Contractor Fees,73373-RESIDENTIAL & NURSING CARE PLACEMENTS,"1,975.60",Revenue,14/07/2015,Social Care & Inclusion
WC58 - 0343,ARBORETUM NURSING HOME.,Third Party Payments,Private Contractor Fees,73373-RESIDENTIAL & NURSING CARE PLACEMENTS,"1,975.60",Revenue,14/07/2015,Social Care & Inclusion
WC58 - 0344,ARBORETUM NURSING HOME.,Third Party Payments,Private Contractor Fees,73373-RESIDENTIAL & NURSING CARE PLACEMENTS,"1,975.60",Revenue,14/07/2015,Social Care & Inclusion
WC58 - 0345,ARBORETUM NURSING HOME.,Third Party Payments,Private Contractor Fees,73373-RESIDENTIAL & NURSING CARE PLACEMENTS,"1,975.60",Revenue,14/07/2015,Social Care & Inclusion
WC58 - 0346,ARBORETUM NURSING HOME.,Third Party Payments,Private Contractor Fees,73373-RESIDENTIAL & NURSING CARE PLACEMENTS,"1,975.60",Revenue,14/07/2015,Social Care & Inclusion
WC58 - 0347,ARBORETUM NURSING HOME.,Third Party Payments,Private Contractor Fees,73373-RESIDENTIAL & NURSING CARE PLACEMENTS,"2,017.16",Revenue,14/07/2015,Social Care & Inclusion
WC58 - 0348,ARBORETUM NURSING HOME.,Third Party Payments,Private Contractor Fees,73373-RESIDENTIAL & NURSING CARE PLACEMENTS,"2,030.00",Revenue,14/07/2015,Social Care & Inclusion
WC58 - 0349,ARBORETUM NURSING HOME.,Third Party Payments,Private Contractor Fees,73373-RESIDENTIAL & NURSING CARE PLACEMENTS,"2,030.00",Revenue,14/07/2015,Social Care & Inclusion
WC58 - 0350,ARBORETUM NURSING HOME.,Third Party Payments,Private Contractor Fees,73373-RESIDENTIAL & NURSING CARE PLACEMENTS,"2,469.50",Revenue,14/07/2015,Social Care & Inclusion
WC58 - 0351,ARBORETUM NURSING HOME.,Third Party Payments,Private Contractor Fees,73373-RESIDENTIAL & NURSING CARE PLACEMENTS,"2,469.50",Revenue,14/07/2015,Social Care & Inclusion
WC58 - 0352,ARBORETUM NURSING HOME.,Third Party Payments,Private Contractor Fees,73373-RESIDENTIAL & NURSING CARE PLACEMENTS,"2,469.50",Revenue,14/07/2015,Social Care & Inclusion
WC58 - 0353,ARBORETUM NURSING HOME.,Third Party Payments,Private Contractor Fees,73373-RESIDENTIAL & NURSING CARE PLACEMENTS,"2,521.45",Revenue,14/07/2015,Social Care & Inclusion
WC58 - 0354,ARBORETUM NURSING HOME.,Third Party Payments,Private Contractor Fees,73019-PSE'S-PRIV CONTRACTOR FEES,"15,000.00",Revenue,27/07/2015,Social Care & Inclusion
WC58 - 0355,ARCANE DIRECT MARKETING,Supplies & Services,Other Supplies & Services,62511-DISTRIBUTION,315.66,Revenue,02/07/2015,Economy & Environment
WC58 - 0356,ARCANE DIRECT MARKETING,Supplies & Services,Other Supplies & Services,62511-DISTRIBUTION,964.11,Revenue,02/07/2015,Economy & Environment
WC58 - 0357,ARCHWAY TCS LTD,Third Party Payments,Private Contractor Fees,73025-PROFESSIONAL SERVICES-PRIV CONTRACTOR & OTHER AGENCIES,707.50,Revenue,27/07/2015,Economy & Environment
WC58 - 0358,ARJOHUNTLEIGH UK,Supplies & Services,"Equip,Furniture & Materials",60500-GENERAL MATERIALS,"1,258.00",Revenue,14/07/2015,Social Care & Inclusion
WC58 - 0359,REDACTED,Transfer Payments,Transfer Payments,76422-DIRECT PAYMENTS TO SOCIAL SERVICES CLIENTS,450.00,Revenue,13/07/2015,Social Care & Inclusion
WC58 - 0360,ARTHUR J GALLAGHER INTERNATIONAL,Supplies & Services,Services,63000-PROFESSIONAL FEES AND SERVICES,"6,500.00",Revenue,08/07/2015,Resources
WC58 - 0361,ARTS MARKETING ASSOCIATION,Supplies & Services,Subscriptions,64500-PUBLICATIONS/ORGANISATIONS-SUBSCRIPTIONS,408.00,Revenue,15/07/2015,Economy & Environment
WC58 - 0362,ASCENTIS NATION AWARDING BODY,Supplies & Services,Other Supplies & Services,63013-EXAMINATIONS-SERVICES,"1,134.00",Revenue,29/07/2015,Resources
WC58 - 0363,ASDA PHARMACY,Supplies & Services,Services,63000-PROFESSIONAL FEES AND SERVICES,64.00,Revenue,27/07/2015,Economy & Environment
WC58 - 0364,ASDA PHARMACY,Supplies & Services,Services,63000-PROFESSIONAL FEES AND SERVICES,154.89,Revenue,27/07/2015,Economy & Environment
WC58 - 0365,ASDA PHARMACY,Third Party Payments,Joint Arrangements,71007-CONTRIBUTION TO PCT,581.00,Revenue,27/07/2015,Economy & Environment
WC58 - 0366,ASH GRANGE CARE HOME,Third Party Payments,Private Contractor Fees,73373-RESIDENTIAL & NURSING CARE PLACEMENTS,"1,505.56",Revenue,28/07/2015,Social Care & Inclusion
WC58 - 0367,ASH GRANGE CARE HOME,Third Party Payments,Private Contractor Fees,73373-RESIDENTIAL & NURSING CARE PLACEMENTS,"1,988.20",Revenue,28/07/2015,Social Care & Inclusion
WC58 - 0368,ASH GRANGE CARE HOME,Third Party Payments,Private Contractor Fees,73373-RESIDENTIAL & NURSING CARE PLACEMENTS,"1,988.20",Revenue,28/07/2015,Social Care & Inclusion
WC58 - 0369,ASH GRANGE CARE HOME,Third Party Payments,Private Contractor Fees,73373-RESIDENTIAL & NURSING CARE PLACEMENTS,"1,988.20",Revenue,28/07/2015,Social Care & Inclusion
WC58 - 0370,ASH GRANGE CARE HOME,Third Party Payments,Private Contractor Fees,73373-RESIDENTIAL & NURSING CARE PLACEMENTS,"1,988.20",Revenue,28/07/2015,Social Care & Inclusion
WC58 - 0371,ASH GRANGE CARE HOME,Third Party Payments,Private Contractor Fees,73373-RESIDENTIAL & NURSING CARE PLACEMENTS,"1,988.20",Revenue,28/07/2015,Social Care & Inclusion
WC58 - 0372,ASH GRANGE CARE HOME,Third Party Payments,Private Contractor Fees,73373-RESIDENTIAL & NURSING CARE PLACEMENTS,"1,988.20",Revenue,28/07/2015,Social Care & Inclusion
WC58 - 0373,ASH GRANGE CARE HOME,Third Party Payments,Private Contractor Fees,73373-RESIDENTIAL & NURSING CARE PLACEMENTS,"1,988.20",Revenue,28/07/2015,Social Care & Inclusion
WC58 - 0374,ASH GRANGE CARE HOME,Third Party Payments,Private Contractor Fees,73373-RESIDENTIAL & NURSING CARE PLACEMENTS,"1,988.20",Revenue,28/07/2015,Social Care & Inclusion
WC58 - 0375,ASH GRANGE CARE HOME,Third Party Payments,Private Contractor Fees,73373-RESIDENTIAL & NURSING CARE PLACEMENTS,"2,943.72",Revenue,28/07/2015,Social Care & Inclusion
WC58 - 0376,ASHBOURNE LODGE,Third Party Payments,Private Contractor Fees,73373-RESIDENTIAL & NURSING CARE PLACEMENTS,"2,126.16",Revenue,21/07/2015,Social Care & Inclusion
WC58 - 0377,ASKEWS AND HOLTS LIBRARY SERVICES LTD,Supplies & Services,"Equip,Furniture & Materials",60501-LIBRARY BOOKS,257.27,Revenue,29/07/2015,Economy & Environment
WC58 - 0378,ASKEWS AND HOLTS LIBRARY SERVICES LTD,Supplies & Services,"Equip,Furniture & Materials",60501-LIBRARY BOOKS,264.12,Revenue,03/07/2015,Economy & Environment
WC58 - 0379,ASKEWS AND HOLTS LIBRARY SERVICES LTD,Supplies & Services,"Equip,Furniture & Materials",60501-LIBRARY BOOKS,272.41,Revenue,09/07/2015,Economy & Environment
WC58 - 0380,ASKEWS AND HOLTS LIBRARY SERVICES LTD,Supplies & Services,"Equip,Furniture & Materials",60501-LIBRARY BOOKS,283.84,Revenue,10/07/2015,Economy & Environment
WC58 - 0381,ASKEWS AND HOLTS LIBRARY SERVICES LTD,Supplies & Services,"Equip,Furniture & Materials",60501-LIBRARY BOOKS,284.16,Revenue,03/07/2015,Economy & Environment
WC58 - 0382,ASKEWS AND HOLTS LIBRARY SERVICES LTD,Supplies & Services,"Equip,Furniture & Materials",60501-LIBRARY BOOKS,330.02,Revenue,02/07/2015,Economy & Environment
WC58 - 0383,ASKEWS AND HOLTS LIBRARY SERVICES LTD,Supplies & Services,"Equip,Furniture & Materials",60501-LIBRARY BOOKS,354.00,Revenue,10/07/2015,Economy & Environment
WC58 - 0384,ASKEWS AND HOLTS LIBRARY SERVICES LTD,Supplies & Services,"Equip,Furniture & Materials",60501-LIBRARY BOOKS,373.56,Revenue,03/07/2015,Economy & Environment
WC58 - 0385,ASKEWS AND HOLTS LIBRARY SERVICES LTD,Supplies & Services,"Equip,Furniture & Materials",60501-LIBRARY BOOKS,381.23,Revenue,02/07/2015,Economy & Environment
WC58 - 0386,ASKEWS AND HOLTS LIBRARY SERVICES LTD,Supplies & Services,"Equip,Furniture & Materials",60501-LIBRARY BOOKS,407.92,Revenue,28/07/2015,Economy & Environment
WC58 - 0387,ASKEWS AND HOLTS LIBRARY SERVICES LTD,Supplies & Services,"Equip,Furniture & Materials",60501-LIBRARY BOOKS,424.01,Revenue,24/07/2015,Economy & Environment
WC58 - 0388,ASKEWS AND HOLTS LIBRARY SERVICES LTD,Supplies & Services,"Equip,Furniture & Materials",60501-LIBRARY BOOKS,429.81,Revenue,22/07/2015,Economy & Environment
WC58 - 0389,ASKEWS AND HOLTS LIBRARY SERVICES LTD,Supplies & Services,"Equip,Furniture & Materials",60501-LIBRARY BOOKS,479.74,Revenue,27/07/2015,Economy & Environment
WC58 - 0390,ASKEWS AND HOLTS LIBRARY SERVICES LTD,Supplies & Services,"Equip,Furniture & Materials",60501-LIBRARY BOOKS,607.16,Revenue,29/07/2015,Economy & Environment
WC58 - 0391,ASKEWS AND HOLTS LIBRARY SERVICES LTD,Supplies & Services,"Equip,Furniture & Materials",60501-LIBRARY BOOKS,630.02,Revenue,28/07/2015,Economy & Environment
WC58 - 0392,ASKEWS AND HOLTS LIBRARY SERVICES LTD,Supplies & Services,"Equip,Furniture & Materials",60501-LIBRARY BOOKS,750.41,Revenue,01/07/2015,Economy & Environment
WC58 - 0393,ASKEWS AND HOLTS LIBRARY SERVICES LTD,Supplies & Services,"Equip,Furniture & Materials",60501-LIBRARY BOOKS,862.76,Revenue,20/07/2015,Economy & Environment
WC58 - 0394,ASKEWS AND HOLTS LIBRARY SERVICES LTD,Supplies & Services,"Equip,Furniture & Materials",60501-LIBRARY BOOKS,"1,308.10",Revenue,27/07/2015,Economy & Environment
WC58 - 0395,ASKEWS AND HOLTS LIBRARY SERVICES LTD,Supplies & Services,"Equip,Furniture & Materials",60501-LIBRARY BOOKS,"1,614.38",Revenue,21/07/2015,Economy & Environment
WC58 - 0396,REDACTED,Transfer Payments,Transfer Payments,76422-DIRECT PAYMENTS TO SOCIAL SERVICES CLIENTS,493.00,Revenue,13/07/2015,Social Care & Inclusion
WC58 - 0397,ASTON CHILDRENS CARE,Third Party Payments,Private Contractor Fees,74036-EXTERNAL RESIDENTIAL CARE-OTH AGENCY PROVISION,"10,628.35",Revenue,27/07/2015,Childrens
WC58 - 0398,ASTOR BANNERMAN (MEDICAL) LTD,Supplies & Services,"Equip,Furniture & Materials",60006-NEW-FURNITURE & EQUIPMENT,269.96,Revenue,15/07/2015,Childrens
WC58 - 0399,ATHWAL NEWS LTD,Supplies & Services,"Equip,Furniture & Materials",60501-LIBRARY BOOKS,527.27,Revenue,22/07/2015,Economy & Environment
WC58 - 0400,ATHWAL NEWS LTD,Supplies & Services,"Equip,Furniture & Materials",60501-LIBRARY BOOKS,657.68,Revenue,22/07/2015,Economy & Environment
WC58 - 0401,REDACTED,Transfer Payments,Transfer Payments,76422-DIRECT PAYMENTS TO SOCIAL SERVICES CLIENTS,250.00,Revenue,13/07/2015,Social Care & Inclusion
WC58 - 0402,AURORA GRAPHICS & DISPLAYS LTD,Supplies & Services,"Printing, Stationery & Office Exp",62008-OUTWORK-PRINT ROOM,309.27,Revenue,09/07/2015,Resources
WC58 - 0403,AUTISM WEST MIDLANDS,Third Party Payments,Private Contractor Fees,73373-RESIDENTIAL & NURSING CARE PLACEMENTS,"7,078.49",Revenue,07/07/2015,Social Care & Inclusion
WC58 - 0404,AUTISM WEST MIDLANDS,Third Party Payments,Private Contractor Fees,70000-SOCIAL SERVICES-FEES TO VOLUNTARY BODIES,"21,666.50",Revenue,01/07/2015,Social Care & Inclusion
WC58 - 0405,AUTISM WEST MIDLANDS 001,Third Party Payments,Private Contractor Fees,73373-RESIDENTIAL & NURSING CARE PLACEMENTS,"4,731.60",Revenue,07/07/2015,Social Care & Inclusion
WC58 - 0406,AUTISM WEST MIDLANDS 001,Third Party Payments,Private Contractor Fees,73373-RESIDENTIAL & NURSING CARE PLACEMENTS,"4,889.32",Revenue,21/07/2015,Social Care & Inclusion
WC58 - 0407,REDACTED,Transfer Payments,Transfer Payments,76422-DIRECT PAYMENTS TO SOCIAL SERVICES CLIENTS,777.00,Revenue,13/07/2015,Social Care & Inclusion
WC58 - 0408,AXIELL ALM LIMITED,Supplies & Services,Services,63000-PROFESSIONAL FEES AND SERVICES,563.92,Revenue,15/07/2015,Economy & Environment
WC58 - 0409,AXIELL ALM LIMITED,Supplies & Services,Services,63000-PROFESSIONAL FEES AND SERVICES,638.12,Revenue,24/07/2015,Economy & Environment
WC58 - 0410,AXIELL ALM LIMITED,Supplies & Services,Services,63000-PROFESSIONAL FEES AND SERVICES,866.02,Revenue,01/07/2015,Economy & Environment
WC58 - 0411,AXIELL ALM LIMITED,Supplies & Services,Communications & Computing,63820-RECHARGE FOR MAINTENANCE/APPLICATION COSTS-COMPUTER,"16,831.08",Revenue,03/07/2015,Resources
WC58 - 0412,REDACTED,Transfer Payments,Transfer Payments,76422-DIRECT PAYMENTS TO SOCIAL SERVICES CLIENTS,"2,652.00",Revenue,13/07/2015,Social Care & Inclusion
WC58 - 0413,REDACTED,Supplies & Services,Other Supplies & Services,62515-MISCELLANEOUS SUPPLIES,906.76,Revenue,20/07/2015,Childrens
WC58 - 0414,REDACTED,Third Party Payments,Private Contractor Fees,74006-HOLIDAY/CHRISTMAS ALLOWANCE-FOSTER CARERS-OTH AGENCY PROVISION,"1,275.16",Revenue,20/07/2015,Childrens
WC58 - 0415,REDACTED,Supplies & Services,Other Supplies & Services,62515-MISCELLANEOUS SUPPLIES,"1,445.32",Revenue,20/07/2015,Childrens
WC58 - 0416,REDACTED,Third Party Payments,Private Contractor Fees,74006-HOLIDAY/CHRISTMAS ALLOWANCE-FOSTER CARERS-OTH AGENCY PROVISION,"1,971.52",Revenue,20/07/2015,Childrens
WC58 - 0417,REDACTED,Transfer Payments,Transfer Payments,76422-DIRECT PAYMENTS TO SOCIAL SERVICES CLIENTS,863.20,Revenue,13/07/2015,Social Care & Inclusion
WC58 - 0418,BACHES SOLICITORS,Third Party Payments,Private Contractor Fees,73014-LEGAL FEES-PRIV CONTRACTOR FEES,"1,156.64",Revenue,23/07/2015,Childrens
WC58 - 0419,BAKER HALL PARTNERSHIP,Supplies & Services,Services,63248-SURVEYS & PROF SERVICES-PAYMENT TO CONTRACTOR,470.25,Revenue,29/07/2015,Economy & Environment
WC58 - 0420,BAKER HALL PARTNERSHIP,Supplies & Services,Services,63248-SURVEYS & PROF SERVICES-PAYMENT TO CONTRACTOR,760.50,Revenue,01/07/2015,Economy & Environment
WC58 - 0421,BAKER HALL PARTNERSHIP,Supplies & Services,Services,63248-SURVEYS & PROF SERVICES-PAYMENT TO CONTRACTOR,"2,381.75",Revenue,07/07/2015,Economy & Environment
WC58 - 0422,REDACTED,Transfer Payments,Transfer Payments,76422-DIRECT PAYMENTS TO SOCIAL SERVICES CLIENTS,"2,849.92",Revenue,13/07/2015,Social Care & Inclusion
WC58 - 0423,REDACTED,Transfer Payments,Transfer Payments,76422-DIRECT PAYMENTS TO SOCIAL SERVICES CLIENTS,620.00,Revenue,13/07/2015,Social Care & Inclusion
WC58 - 0424,REDACTED,Transfer Payments,Transfer Payments,76422-DIRECT PAYMENTS TO SOCIAL SERVICES CLIENTS,"1,288.00",Revenue,13/07/2015,Social Care & Inclusion
WC58 - 0425,REDACTED,Transfer Payments,Transfer Payments,76422-DIRECT PAYMENTS TO SOCIAL SERVICES CLIENTS,"2,117.80",Revenue,13/07/2015,Social Care & Inclusion
WC58 - 0426,REDACTED,Transfer Payments,Transfer Payments,76422-DIRECT PAYMENTS TO SOCIAL SERVICES CLIENTS,"1,517.79",Revenue,13/07/2015,Social Care & Inclusion
WC58 - 0427,REDACTED,Transfer Payments,Transfer Payments,76422-DIRECT PAYMENTS TO SOCIAL SERVICES CLIENTS,632.52,Revenue,13/07/2015,Social Care & Inclusion
WC58 - 0428,REDACTED,Transfer Payments,Transfer Payments,76422-DIRECT PAYMENTS TO SOCIAL SERVICES CLIENTS,400.00,Revenue,13/07/2015,Social Care & Inclusion
WC58 - 0429,BARNARDOS SERVICES LTD,Third Party Payments,Private Contractor Fees,74037-INDEPENDENT FOSTER CARE-OTH AGENCY PROVISION,"4,627.86",Revenue,08/07/2015,Childrens
WC58 - 0430,BARTS HEALTH NHS TRUST,Supplies & Services,Services,63000-PROFESSIONAL FEES AND SERVICES,476.64,Revenue,29/07/2015,Economy & Environment
WC58 - 0431,BAT FABRICATIONS LTD,Capital,Capital,01006-SITE WORKS MAIN CONTRACTORS,"4,181.00",Capital,29/07/2015,Economy & Environment
WC58 - 0432,REDACTED,Third Party Payments,Private Contractor Fees,74006-HOLIDAY/CHRISTMAS ALLOWANCE-FOSTER CARERS-OTH AGENCY PROVISION,"1,115.86",Revenue,20/07/2015,Childrens
WC58 - 0433,REDACTED,Supplies & Services,Other Supplies & Services,62515-MISCELLANEOUS SUPPLIES,"1,208.02",Revenue,20/07/2015,Childrens
WC58 - 0434,REDACTED,Transfer Payments,Transfer Payments,76422-DIRECT PAYMENTS TO SOCIAL SERVICES CLIENTS,641.76,Revenue,13/07/2015,Social Care & Inclusion
WC58 - 0435,REDACTED,Third Party Payments,Grants to Other Orgs,66505-OTHER-GRANTS TO OTHER ORGS,"1,552.20",Revenue,09/07/2015,Childrens
WC58 - 0436,REDACTED,Third Party Payments,Grants to Other Orgs,66505-OTHER-GRANTS TO OTHER ORGS,569.14,Revenue,09/07/2015,Childrens
WC58 - 0437,REDACTED,Third Party Payments,Grants to Other Orgs,66505-OTHER-GRANTS TO OTHER ORGS,"2,479.23",Revenue,16/07/2015,Childrens
WC58 - 0438,BEDFORD FENCING CO LTD,Supplies & Services,"Equip,Furniture & Materials",60008-MAINTENANCE-FURNITURE & EQUIPMENT,"5,121.86",Revenue,16/07/2015,Economy & Environment
WC58 - 0439,REDACTED,Supplies & Services,Other Supplies & Services,62515-MISCELLANEOUS SUPPLIES,479.20,Revenue,20/07/2015,Childrens
WC58 - 0440,REDACTED,Third Party Payments,Private Contractor Fees,74006-HOLIDAY/CHRISTMAS ALLOWANCE-FOSTER CARERS-OTH AGENCY PROVISION,959.20,Revenue,20/07/2015,Childrens
WC58 - 0441,BELLEVUE COURT CARE HOME,Third Party Payments,Private Contractor Fees,73373-RESIDENTIAL & NURSING CARE PLACEMENTS,"1,532.96",Revenue,21/07/2015,Social Care & Inclusion
WC58 - 0442,REDACTED,Transfer Payments,Transfer Payments,76422-DIRECT PAYMENTS TO SOCIAL SERVICES CLIENTS,"2,205.00",Revenue,13/07/2015,Social Care & Inclusion
WC58 - 0443,BENTLEY WEST J M I,Employees,Agency,34305-AGENCY STAFF-EMPLOYEES,"2,000.00",Revenue,27/07/2015,Childrens
WC58 - 0444,REDACTED,Third Party Payments,Grants to Other Orgs,66505-OTHER-GRANTS TO OTHER ORGS,953.55,Revenue,17/07/2015,Childrens
WC58 - 0445,REDACTED,Transfer Payments,Transfer Payments,76422-DIRECT PAYMENTS TO SOCIAL SERVICES CLIENTS,912.00,Revenue,13/07/2015,Social Care & Inclusion
WC58 - 0446,REDACTED,Supplies & Services,Other Supplies & Services,62515-MISCELLANEOUS SUPPLIES,"1,045.32",Revenue,20/07/2015,Childrens
WC58 - 0447,REDACTED,Third Party Payments,Private Contractor Fees,74006-HOLIDAY/CHRISTMAS ALLOWANCE-FOSTER CARERS-OTH AGENCY PROVISION,"1,142.88",Revenue,20/07/2015,Childrens
WC58 - 0448,REDACTED,Transfer Payments,Transfer Payments,76422-DIRECT PAYMENTS TO SOCIAL SERVICES CLIENTS,968.00,Revenue,13/07/2015,Social Care & Inclusion
WC58 - 0449,BESCOT LODGE RESIDENTIAL CARE HOME,Third Party Payments,Private Contractor Fees,73373-RESIDENTIAL & NURSING CARE PLACEMENTS,-493.11,Revenue,07/07/2015,Social Care & Inclusion
WC58 - 0450,BESCOT LODGE RESIDENTIAL CARE HOME,Third Party Payments,Private Contractor Fees,73373-RESIDENTIAL & NURSING CARE PLACEMENTS,417.26,Revenue,07/07/2015,Social Care & Inclusion
WC58 - 0451,BESCOT LODGE RESIDENTIAL CARE HOME,Third Party Payments,Private Contractor Fees,73373-RESIDENTIAL & NURSING CARE PLACEMENTS,"1,199.61",Revenue,07/07/2015,Social Care & Inclusion
WC58 - 0452,BESCOT LODGE RESIDENTIAL CARE HOME,Third Party Payments,Private Contractor Fees,73373-RESIDENTIAL & NURSING CARE PLACEMENTS,"1,356.09",Revenue,07/07/2015,Social Care & Inclusion
WC58 - 0453,BESCOT LODGE RESIDENTIAL CARE HOME,Third Party Payments,Private Contractor Fees,73373-RESIDENTIAL & NURSING CARE PLACEMENTS,"1,755.89",Revenue,14/07/2015,Social Care & Inclusion
WC58 - 0454,BESCOT LODGE RESIDENTIAL CARE HOME,Third Party Payments,Private Contractor Fees,73373-RESIDENTIAL & NURSING CARE PLACEMENTS,"1,759.96",Revenue,14/07/2015,Social Care & Inclusion
WC58 - 0455,BESCOT LODGE RESIDENTIAL CARE HOME,Third Party Payments,Private Contractor Fees,73373-RESIDENTIAL & NURSING CARE PLACEMENTS,"1,848.90",Revenue,14/07/2015,Social Care & Inclusion
WC58 - 0456,BESCOT LODGE RESIDENTIAL CARE HOME,Third Party Payments,Private Contractor Fees,73373-RESIDENTIAL & NURSING CARE PLACEMENTS,"1,848.90",Revenue,14/07/2015,Social Care & Inclusion
WC58 - 0457,BESCOT LODGE RESIDENTIAL CARE HOME,Third Party Payments,Private Contractor Fees,73373-RESIDENTIAL & NURSING CARE PLACEMENTS,"1,848.90",Revenue,14/07/2015,Social Care & Inclusion
WC58 - 0458,BESCOT LODGE RESIDENTIAL CARE HOME,Third Party Payments,Private Contractor Fees,73373-RESIDENTIAL & NURSING CARE PLACEMENTS,"1,848.90",Revenue,14/07/2015,Social Care & Inclusion
WC58 - 0459,BESCOT LODGE RESIDENTIAL CARE HOME,Third Party Payments,Private Contractor Fees,73373-RESIDENTIAL & NURSING CARE PLACEMENTS,"1,868.71",Revenue,14/07/2015,Social Care & Inclusion
WC58 - 0460,BESCOT LODGE RESIDENTIAL CARE HOME,Third Party Payments,Private Contractor Fees,73373-RESIDENTIAL & NURSING CARE PLACEMENTS,"1,868.96",Revenue,14/07/2015,Social Care & Inclusion
WC58 - 0461,BESCOT PROMOTIONS,Third Party Payments,Private Contractor Fees,73025-PROFESSIONAL SERVICES-PRIV CONTRACTOR & OTHER AGENCIES,"2,600.00",Revenue,20/07/2015,Economy & Environment
WC58 - 0462,BESWICK HOUSE SUPPORTED ACCOMMODATION LTD,Capital,Capital,01001-OTHER CONSULTANTS FEES,"55,443.84",Capital,01/07/2015,Economy & Environment
WC58 - 0463,BETHPHAGE.,Third Party Payments,Private Contractor Fees,73374-SUPPORTED & OTHER ACCOMMODATION,812.50,Revenue,14/07/2015,Social Care & Inclusion
WC58 - 0464,BETHPHAGE.,Third Party Payments,Private Contractor Fees,73374-SUPPORTED & OTHER ACCOMMODATION,"1,791.99",Revenue,14/07/2015,Social Care & Inclusion
WC58 - 0465,BETHPHAGE.,Third Party Payments,Private Contractor Fees,73374-SUPPORTED & OTHER ACCOMMODATION,"1,799.05",Revenue,14/07/2015,Social Care & Inclusion
WC58 - 0466,BETHPHAGE.,Third Party Payments,Private Contractor Fees,73374-SUPPORTED & OTHER ACCOMMODATION,"2,210.00",Revenue,14/07/2015,Social Care & Inclusion
WC58 - 0467,BETHPHAGE.,Third Party Payments,Private Contractor Fees,73374-SUPPORTED & OTHER ACCOMMODATION,"4,789.90",Revenue,14/07/2015,Social Care & Inclusion
WC58 - 0468,REDACTED,Transfer Payments,Transfer Payments,76422-DIRECT PAYMENTS TO SOCIAL SERVICES CLIENTS,949.52,Revenue,13/07/2015,Social Care & Inclusion
WC58 - 0469,REDACTED,Transfer Payments,Transfer Payments,76422-DIRECT PAYMENTS TO SOCIAL SERVICES CLIENTS,"1,984.70",Revenue,13/07/2015,Social Care & Inclusion
WC58 - 0470,BFA SAFETY TRAINING,Employees,Training,30030-EXTERNAL TRAINING,295.00,Revenue,20/07/2015,Resources
WC58 - 0471,BFA SAFETY TRAINING,Employees,Training,30030-EXTERNAL TRAINING,495.00,Revenue,10/07/2015,Resources
WC58 - 0472,BFA SAFETY TRAINING,Employees,Training,30030-EXTERNAL TRAINING,795.00,Revenue,10/07/2015,Resources
WC58 - 0473,BIBLIOGRAPHIC DATA SERVICES LTD,Supplies & Services,Subscriptions,64500-PUBLICATIONS/ORGANISATIONS-SUBSCRIPTIONS,"2,710.00",Revenue,08/07/2015,Economy & Environment
WC58 - 0474,BIFFA WASTE SERVICES LTD,Third Party Payments,Private Contractor Fees,73005-LANDFILL PTYS-PRIV CONTRACTOR FEES,"1,453.71",Revenue,22/07/2015,Economy & Environment
WC58 - 0475,BIFFA WASTE SERVICES LTD,Third Party Payments,Private Contractor Fees,73005-LANDFILL PTYS-PRIV CONTRACTOR FEES,"1,988.72",Revenue,13/07/2015,Economy & Environment
WC58 - 0476,BIFFA WASTE SERVICES LTD,Third Party Payments,Private Contractor Fees,73005-LANDFILL PTYS-PRIV CONTRACTOR FEES,"2,208.10",Revenue,22/07/2015,Economy & Environment
WC58 - 0477,BIFFA WASTE SERVICES LTD,Third Party Payments,Private Contractor Fees,73039-LANDFILL TAX-PRIV CONTRACTOR FEES,"9,076.09",Revenue,22/07/2015,Economy & Environment
WC58 - 0478,BIFFA WASTE SERVICES LTD,Third Party Payments,Private Contractor Fees,73039-LANDFILL TAX-PRIV CONTRACTOR FEES,"12,416.45",Revenue,13/07/2015,Economy & Environment
WC58 - 0479,BIFFA WASTE SERVICES LTD,Third Party Payments,Private Contractor Fees,73039-LANDFILL TAX-PRIV CONTRACTOR FEES,"13,785.93",Revenue,22/07/2015,Economy & Environment
WC58 - 0480,BIG WHEEL THEATRE COMPANY,Supplies & Services,"Equip,Furniture & Materials",60500-GENERAL MATERIALS,550.00,Revenue,21/07/2015,Economy & Environment
WC58 - 0481,REDACTED,Transfer Payments,Transfer Payments,76422-DIRECT PAYMENTS TO SOCIAL SERVICES CLIENTS,487.72,Revenue,13/07/2015,Childrens
WC58 - 0482,REDACTED,Transfer Payments,Transfer Payments,76422-DIRECT PAYMENTS TO SOCIAL SERVICES CLIENTS,537.20,Revenue,13/07/2015,Childrens
WC58 - 0483,BIRCHILLS C OF E COMMUNITY ACADEMY,Third Party Payments,Grants to Other Orgs,66505-OTHER-GRANTS TO OTHER ORGS,"8,234.59",Revenue,07/07/2015,Childrens
WC58 - 0484,BIRMINGHAM BOYS AND GIRLS UNION,Supplies & Services,Services,63000-PROFESSIONAL FEES AND SERVICES,506.00,Revenue,27/07/2015,Childrens
WC58 - 0485,BIRMINGHAM WOMENS NHS FOUNDATION TRUST,Third Party Payments,Private Contractor Fees,74000-OTHER AGENCY FEES,850.00,Revenue,09/07/2015,Economy & Environment
WC58 - 0486,BLACK COUNTRY PARTNERSHIP NHS,Third Party Payments,Private Contractor Fees,73375-IN PATIENT BEDS,"30,600.00",Revenue,08/07/2015,Social Care & Inclusion
WC58 - 0487,BLACK COUNTRY PARTNERSHIP NHS,Third Party Payments,Joint Arrangements,71007-CONTRIBUTION TO PCT,"264,038.00",Revenue,06/07/2015,Social Care & Inclusion
WC58 - 0488,BLAKENALL HEATH JMI SCHOOL,Transfer Payments,Transfer Payments,77300-ISB-FORMULA ALLOCATION,"1,975.00",Revenue,16/07/2015,Childrens
WC58 - 0489,BLAKENALL HEATH JMI SCHOOL,Transfer Payments,Transfer Payments,77300-ISB-FORMULA ALLOCATION,"1,975.00",Revenue,16/07/2015,Childrens
WC58 - 0490,BLAKENALL HEATH JMI SCHOOL,Transfer Payments,Transfer Payments,77300-ISB-FORMULA ALLOCATION,"88,933.93",Revenue,14/07/2015,Childrens
WC58 - 0491,BLOXWICH COMMUNITY PARTNERSHIP.,Premises,Rent,43000-RENTS,"4,400.00",Revenue,24/07/2015,Social Care & Inclusion
WC58 - 0492,BLOXWICH COMMUNITY PARTNERSHIP.,Third Party Payments,Grants to Other Orgs,66500-GRANTS TO OTHER ORGS,"33,936.75",Revenue,28/07/2015,Childrens
WC58 - 0493,BLUE GIRAFFE CHILDCARE,Third Party Payments,Grants to Other Orgs,66505-OTHER-GRANTS TO OTHER ORGS,"7,679.75",Revenue,21/07/2015,Childrens
WC58 - 0494,BLUE GIRAFFE CHILDCARE,Third Party Payments,Grants to Other Orgs,66505-OTHER-GRANTS TO OTHER ORGS,"11,012.43",Revenue,09/07/2015,Childrens
WC58 - 0495,BOLINDA UK LTD,Supplies & Services,"Equip,Furniture & Materials",60501-LIBRARY BOOKS,625.44,Revenue,16/07/2015,Economy & Environment
WC58 - 0496,BONINGALE NURSERIES,Premises,Premises-Repairs & Maintenance,41090-LANDSCAPING GROUNDS MAINTENANCE,288.42,Revenue,29/07/2015,Economy & Environment
WC58 - 0497,BOOTS UK LIMITED,Third Party Payments,Joint Arrangements,71007-CONTRIBUTION TO PCT,10.50,Revenue,22/07/2015,Economy & Environment
WC58 - 0498,BOOTS UK LIMITED,Supplies & Services,Services,63000-PROFESSIONAL FEES AND SERVICES,53.10,Revenue,22/07/2015,Economy & Environment
WC58 - 0499,BOOTS UK LIMITED,Supplies & Services,Services,63000-PROFESSIONAL FEES AND SERVICES,123.90,Revenue,22/07/2015,Economy & Environment
WC58 - 0500,BOOTS UK LIMITED,Supplies & Services,Services,63000-PROFESSIONAL FEES AND SERVICES,227.50,Revenue,22/07/2015,Economy & Environment
WC58 - 0501,BOOTS UK LIMITED,Supplies & Services,Services,63000-PROFESSIONAL FEES AND SERVICES,347.50,Revenue,22/07/2015,Economy & Environment
WC58 - 0502,BOULTON TRAVEL LIMITED,Transport,Hire,52000-WITH DRIVER-HIRE OF VEHICLES,"2,486.00",Revenue,17/07/2015,Childrens
WC58 - 0503,BOULTON TRAVEL LIMITED,Transport,Hire,52000-WITH DRIVER-HIRE OF VEHICLES,"2,794.00",Revenue,17/07/2015,Childrens
WC58 - 0504,BOWDEN DERRA PARK,Third Party Payments,Private Contractor Fees,73373-RESIDENTIAL & NURSING CARE PLACEMENTS,"10,271.64",Revenue,07/07/2015,Social Care & Inclusion
WC58 - 0505,BRADVALE LTD T/A INSPIRE HEALTHCARE SERVICES,Supplies & Services,"Equip,Furniture & Materials",60520-HEALTH & SAFETY-MATERIALS,309.40,Revenue,01/07/2015,Economy & Environment
WC58 - 0506,BRAMBLE HUB LIMITED,Capital,Capital,01002-PROJECT FEES,660.00,Capital,07/07/2015,Resources
WC58 - 0507,BRAMBLE HUB LIMITED,Capital,Capital,01002-PROJECT FEES,"1,540.00",Capital,29/07/2015,Resources
WC58 - 0508,BRAMBLE HUB LIMITED,Capital,Capital,01002-PROJECT FEES,"94,512.00",Capital,21/07/2015,Resources
WC58 - 0509,BRAVEEN CATERING SOLUTIONS,Supplies & Services,Provisions,61305-CATERING,420.00,Revenue,22/07/2015,Resources
WC58 - 0510,BRELMAYNE LTD,Supplies & Services,"Equip,Furniture & Materials",60008-MAINTENANCE-FURNITURE & EQUIPMENT,545.01,Revenue,03/07/2015,Childrens
WC58 - 0511,BRELMAYNE LTD,Capital,Capital,01006-SITE WORKS MAIN CONTRACTORS,586.97,Capital,24/07/2015,Resources
WC58 - 0512,BRELMAYNE LTD,Premises,Premises-Repairs & Maintenance,"40000-REPAIRS,ALTERATIONS & MAINTENANCE-PREM",816.00,Revenue,15/07/2015,Childrens
WC58 - 0513,BRELMAYNE LTD,Capital,Capital,01006-SITE WORKS MAIN CONTRACTORS,932.36,Capital,24/07/2015,Resources
WC58 - 0514,BRELMAYNE LTD,Premises,Premises-Repairs & Maintenance,"40000-REPAIRS,ALTERATIONS & MAINTENANCE-PREM","1,746.63",Revenue,10/07/2015,Resources
WC58 - 0515,REDACTED,Transfer Payments,Transfer Payments,76422-DIRECT PAYMENTS TO SOCIAL SERVICES CLIENTS,440.00,Revenue,13/07/2015,Social Care & Inclusion
WC58 - 0516,REDACTED,Third Party Payments,Private Contractor Fees,74006-HOLIDAY/CHRISTMAS ALLOWANCE-FOSTER CARERS-OTH AGENCY PROVISION,"1,301.84",Revenue,20/07/2015,Childrens
WC58 - 0517,REDACTED,Supplies & Services,Other Supplies & Services,62515-MISCELLANEOUS SUPPLIES,"1,445.32",Revenue,20/07/2015,Childrens
WC58 - 0518,REDACTED,Transfer Payments,Transfer Payments,76422-DIRECT PAYMENTS TO SOCIAL SERVICES CLIENTS,544.00,Revenue,13/07/2015,Social Care & Inclusion
WC58 - 0519,BRENNTAG UK LIMITED,Transport,Other Transport,50301-FUEL-TRANSPORT RUN COSTS,570.84,Revenue,24/07/2015,Economy & Environment
WC58 - 0520,REDACTED,Third Party Payments,Private Contractor Fees,73374-SUPPORTED & OTHER ACCOMMODATION,"2,935.24",Revenue,14/07/2015,Social Care & Inclusion
WC58 - 0521,REDACTED,Transfer Payments,Transfer Payments,76422-DIRECT PAYMENTS TO SOCIAL SERVICES CLIENTS,493.20,Revenue,13/07/2015,Social Care & Inclusion
WC58 - 0522,REDACTED,Transfer Payments,Transfer Payments,76422-DIRECT PAYMENTS TO SOCIAL SERVICES CLIENTS,"1,294.80",Revenue,13/07/2015,Social Care & Inclusion
WC58 - 0523,REDACTED,Transfer Payments,Transfer Payments,76422-DIRECT PAYMENTS TO SOCIAL SERVICES CLIENTS,697.00,Revenue,13/07/2015,Social Care & Inclusion
WC58 - 0524,BRITANNIA APPRENTICESHIPS LTD,Third Party Payments,Grants to Other Orgs,65500-GRANTS TO ASSOCIATIONS,"1,119.46",Revenue,15/07/2015,Resources
WC58 - 0525,BRITANNIA APPRENTICESHIPS LTD,Third Party Payments,Grants to Other Orgs,66500-GRANTS TO OTHER ORGS,"1,125.00",Revenue,23/07/2015,Economy & Environment
WC58 - 0526,BRITISH GAS BUSINESS,Premises,Utilities,42001-GAS METERED-ENERGY COSTS,291.97,Revenue,16/07/2015,Childrens
WC58 - 0527,BRITISH GAS BUSINESS,Premises,Utilities,42001-GAS METERED-ENERGY COSTS,409.34,Revenue,17/07/2015,Resources
WC58 - 0528,BRITISH GAS BUSINESS,Premises,Utilities,45000-WATER CHARGES,416.26,Revenue,15/07/2015,Childrens
WC58 - 0529,BRITISH GAS BUSINESS,Premises,Utilities,42000-GAS-ENERGY COSTS,948.38,Revenue,03/07/2015,Resources
WC58 - 0530,BRITISH YOUTH COUNCIL,Supplies & Services,Other Supplies & Services,62523-EVENTS,855.00,Revenue,03/07/2015,Childrens
WC58 - 0531,BROADOAK CARE,Third Party Payments,Private Contractor Fees,73373-RESIDENTIAL & NURSING CARE PLACEMENTS,"1,458.16",Revenue,07/07/2015,Social Care & Inclusion
WC58 - 0532,BROADOAK CARE,Third Party Payments,Private Contractor Fees,73373-RESIDENTIAL & NURSING CARE PLACEMENTS,"1,490.24",Revenue,28/07/2015,Social Care & Inclusion
WC58 - 0533,BROADOAK CARE,Third Party Payments,Private Contractor Fees,73373-RESIDENTIAL & NURSING CARE PLACEMENTS,"1,490.24",Revenue,28/07/2015,Social Care & Inclusion
WC58 - 0534,BROADOAK CARE,Third Party Payments,Private Contractor Fees,73373-RESIDENTIAL & NURSING CARE PLACEMENTS,"1,492.52",Revenue,28/07/2015,Social Care & Inclusion
WC58 - 0535,BROADOAK CARE,Third Party Payments,Private Contractor Fees,73373-RESIDENTIAL & NURSING CARE PLACEMENTS,"1,534.08",Revenue,07/07/2015,Social Care & Inclusion
WC58 - 0536,BROADOAK CARE,Third Party Payments,Private Contractor Fees,73373-RESIDENTIAL & NURSING CARE PLACEMENTS,"1,534.08",Revenue,07/07/2015,Social Care & Inclusion
WC58 - 0537,BROADOAK CARE,Third Party Payments,Private Contractor Fees,73373-RESIDENTIAL & NURSING CARE PLACEMENTS,"1,534.08",Revenue,28/07/2015,Social Care & Inclusion
WC58 - 0538,BROADOAK CARE,Third Party Payments,Private Contractor Fees,73373-RESIDENTIAL & NURSING CARE PLACEMENTS,"1,568.64",Revenue,28/07/2015,Social Care & Inclusion
WC58 - 0539,BROADOAK CARE,Third Party Payments,Private Contractor Fees,73373-RESIDENTIAL & NURSING CARE PLACEMENTS,"1,568.64",Revenue,28/07/2015,Social Care & Inclusion
WC58 - 0540,BROADOAK CARE,Third Party Payments,Private Contractor Fees,73373-RESIDENTIAL & NURSING CARE PLACEMENTS,"1,568.64",Revenue,28/07/2015,Social Care & Inclusion
WC58 - 0541,BROADOAK CARE,Third Party Payments,Private Contractor Fees,73373-RESIDENTIAL & NURSING CARE PLACEMENTS,"1,568.64",Revenue,28/07/2015,Social Care & Inclusion
WC58 - 0542,BROADOAK CARE,Third Party Payments,Private Contractor Fees,73373-RESIDENTIAL & NURSING CARE PLACEMENTS,"1,568.64",Revenue,28/07/2015,Social Care & Inclusion
WC58 - 0543,BROADOAK CARE,Third Party Payments,Private Contractor Fees,73373-RESIDENTIAL & NURSING CARE PLACEMENTS,"1,568.64",Revenue,28/07/2015,Social Care & Inclusion
WC58 - 0544,BROADOAK CARE,Third Party Payments,Private Contractor Fees,73373-RESIDENTIAL & NURSING CARE PLACEMENTS,"1,568.64",Revenue,28/07/2015,Social Care & Inclusion
WC58 - 0545,BROADOAK CARE,Third Party Payments,Private Contractor Fees,73373-RESIDENTIAL & NURSING CARE PLACEMENTS,"1,568.64",Revenue,28/07/2015,Social Care & Inclusion
WC58 - 0546,BROADOAK CARE,Third Party Payments,Private Contractor Fees,73373-RESIDENTIAL & NURSING CARE PLACEMENTS,"1,568.64",Revenue,28/07/2015,Social Care & Inclusion
WC58 - 0547,BROADOAK CARE,Third Party Payments,Private Contractor Fees,73373-RESIDENTIAL & NURSING CARE PLACEMENTS,"1,568.64",Revenue,28/07/2015,Social Care & Inclusion
WC58 - 0548,BROADOAK CARE,Third Party Payments,Private Contractor Fees,73373-RESIDENTIAL & NURSING CARE PLACEMENTS,"1,568.64",Revenue,28/07/2015,Social Care & Inclusion
WC58 - 0549,BROADOAK CARE,Third Party Payments,Private Contractor Fees,73373-RESIDENTIAL & NURSING CARE PLACEMENTS,"1,568.64",Revenue,28/07/2015,Social Care & Inclusion
WC58 - 0550,BROADOAK CARE,Third Party Payments,Private Contractor Fees,73373-RESIDENTIAL & NURSING CARE PLACEMENTS,"1,568.64",Revenue,28/07/2015,Social Care & Inclusion
WC58 - 0551,BROADOAK CARE,Third Party Payments,Private Contractor Fees,73373-RESIDENTIAL & NURSING CARE PLACEMENTS,"1,568.64",Revenue,28/07/2015,Social Care & Inclusion
WC58 - 0552,BROADOAK CARE,Third Party Payments,Private Contractor Fees,73373-RESIDENTIAL & NURSING CARE PLACEMENTS,"3,233.74",Revenue,07/07/2015,Social Care & Inclusion
WC58 - 0553,BROADWAY PHARMACY,Supplies & Services,Services,63000-PROFESSIONAL FEES AND SERVICES,53.10,Revenue,27/07/2015,Economy & Environment
WC58 - 0554,BROADWAY PHARMACY,Supplies & Services,Services,63000-PROFESSIONAL FEES AND SERVICES,175.00,Revenue,27/07/2015,Economy & Environment
WC58 - 0555,BROADWAY PHARMACY,Third Party Payments,Joint Arrangements,71007-CONTRIBUTION TO PCT,525.93,Revenue,27/07/2015,Economy & Environment
WC58 - 0556,BROADWAY TRAVEL CONNECTIONS,Transport,Hire,52000-WITH DRIVER-HIRE OF VEHICLES,"1,600.00",Revenue,15/07/2015,Childrens
WC58 - 0557,BROADWAY TRAVEL CONNECTIONS,Transport,Hire,52000-WITH DRIVER-HIRE OF VEHICLES,"1,600.00",Revenue,27/07/2015,Childrens
WC58 - 0558,BROOK DESIGN HARDWARE LTD T/A BROOKVENT,Supplies & Services,"Equip,Furniture & Materials",60500-GENERAL MATERIALS,664.60,Revenue,14/07/2015,Social Care & Inclusion
WC58 - 0559,BROOK DESIGN HARDWARE LTD T/A BROOKVENT,Supplies & Services,"Equip,Furniture & Materials",60500-GENERAL MATERIALS,"10,768.23",Revenue,21/07/2015,Social Care & Inclusion
WC58 - 0560,BROWNHILLS ASPHALT TARMACADAM,Supplies & Services,"Equip,Furniture & Materials",60500-GENERAL MATERIALS,520.00,Revenue,01/07/2015,Economy & Environment
WC58 - 0561,BROWNHILLS ASPHALT TARMACADAM,Premises,Premises-Repairs & Maintenance,"40000-REPAIRS,ALTERATIONS & MAINTENANCE-PREM",700.00,Revenue,01/07/2015,Resources
WC58 - 0562,BROWNHILLS ASPHALT TARMACADAM,Capital,Capital,01009-SITE WORKS - OTHER CONTRACTORS,"1,050.00",Capital,16/07/2015,Economy & Environment
WC58 - 0563,BROWNHILLS ASPHALT TARMACADAM,Capital,Capital,01006-SITE WORKS MAIN CONTRACTORS,"1,485.00",Capital,01/07/2015,Childrens
WC58 - 0564,BROWNHILLS ASPHALT TARMACADAM,Supplies & Services,"Equip,Furniture & Materials",60006-NEW-FURNITURE & EQUIPMENT,"1,965.00",Revenue,16/07/2015,Economy & Environment
WC58 - 0565,BROWNHILLS ASPHALT TARMACADAM,Third Party Payments,Private Contractor Fees,73025-PROFESSIONAL SERVICES-PRIV CONTRACTOR & OTHER AGENCIES,"2,178.00",Revenue,27/07/2015,Economy & Environment
WC58 - 0566,BROWNHILLS ASPHALT TARMACADAM,Supplies & Services,"Equip,Furniture & Materials",60500-GENERAL MATERIALS,"2,928.00",Revenue,14/07/2015,Economy & Environment
WC58 - 0567,BROWNHILLS ASPHALT TARMACADAM,Supplies & Services,"Equip,Furniture & Materials",60500-GENERAL MATERIALS,"3,948.00",Revenue,14/07/2015,Economy & Environment
WC58 - 0568,BROWNHILLS COMMUNITY ASSOCIATION,Third Party Payments,Grants to Other Orgs,66505-OTHER-GRANTS TO OTHER ORGS,"8,508.60",Revenue,20/07/2015,Childrens
WC58 - 0569,BROWNHILLS COMMUNITY ASSOCIATION,Third Party Payments,Grants to Other Orgs,66505-OTHER-GRANTS TO OTHER ORGS,"11,012.43",Revenue,09/07/2015,Childrens
WC58 - 0570,BROXAP LTD,Supplies & Services,"Equip,Furniture & Materials",60006-NEW-FURNITURE & EQUIPMENT,"2,400.00",Revenue,14/07/2015,Economy & Environment
WC58 - 0571,REDACTED,Transfer Payments,Transfer Payments,76422-DIRECT PAYMENTS TO SOCIAL SERVICES CLIENTS,"1,445.00",Revenue,13/07/2015,Social Care & Inclusion
WC58 - 0572,REDACTED,Supplies & Services,Services,63000-PROFESSIONAL FEES AND SERVICES,480.00,Revenue,07/07/2015,Economy & Environment
WC58 - 0573,REDACTED,Premises,Premises-Repairs & Maintenance,"40000-REPAIRS,ALTERATIONS & MAINTENANCE-PREM",500.00,Revenue,10/07/2015,Resources
WC58 - 0574,REDACTED,Supplies & Services,Services,63000-PROFESSIONAL FEES AND SERVICES,"2,081.25",Revenue,29/07/2015,Economy & Environment
WC58 - 0575,BT PLC,Supplies & Services,Communications & Computing,63602-COST OF RENTAL-TELEPHONES,188.15,Revenue,08/07/2015,Childrens
WC58 - 0576,BT PLC,Supplies & Services,Communications & Computing,63603-COST OF CALLS-TELEPHONES,440.90,Revenue,08/07/2015,Childrens
WC58 - 0577,BT PLC,Supplies & Services,Communications & Computing,63603-COST OF CALLS-TELEPHONES,970.00,Revenue,07/07/2015,Resources
WC58 - 0578,BT PLC,Supplies & Services,Communications & Computing,63601-COSTS (NOT INTERNAL RECHARGES)-TELEPHONES,"1,508.49",Revenue,15/07/2015,Resources
WC58 - 0579,BT PLC,Supplies & Services,Communications & Computing,63601-COSTS (NOT INTERNAL RECHARGES)-TELEPHONES,"12,823.02",Revenue,28/07/2015,Resources
WC58 - 0580,BT PLC,Supplies & Services,Communications & Computing,63601-COSTS (NOT INTERNAL RECHARGES)-TELEPHONES,"12,900.51",Revenue,28/07/2015,Resources
WC58 - 0581,BT PLC,Supplies & Services,Communications & Computing,63601-COSTS (NOT INTERNAL RECHARGES)-TELEPHONES,"13,082.64",Revenue,28/07/2015,Resources
WC58 - 0582,BUCHANAN COMPUTING,Supplies & Services,Communications & Computing,63820-RECHARGE FOR MAINTENANCE/APPLICATION COSTS-COMPUTER,762.00,Revenue,03/07/2015,Resources
WC58 - 0583,BUILDING RECRUITMENT COMPANY,Capital,Capital,01006-SITE WORKS MAIN CONTRACTORS,"1,150.95",Capital,14/07/2015,Economy & Environment
WC58 - 0584,BUILDING RECRUITMENT COMPANY,Capital,Capital,01006-SITE WORKS MAIN CONTRACTORS,"1,151.60",Capital,14/07/2015,Economy & Environment
WC58 - 0585,BURNSIDES (MARKETING AIDS) LTD,Supplies & Services,"Equip,Furniture & Materials",60008-MAINTENANCE-FURNITURE & EQUIPMENT,310.00,Revenue,29/07/2015,Economy & Environment
WC58 - 0586,BUSH HOME LTD,Third Party Payments,Private Contractor Fees,73373-RESIDENTIAL & NURSING CARE PLACEMENTS,"1,490.96",Revenue,28/07/2015,Social Care & Inclusion
WC58 - 0587,BUSH HOME LTD,Third Party Payments,Private Contractor Fees,73373-RESIDENTIAL & NURSING CARE PLACEMENTS,"1,568.33",Revenue,28/07/2015,Social Care & Inclusion
WC58 - 0588,BUSH HOME LTD,Third Party Payments,Private Contractor Fees,73373-RESIDENTIAL & NURSING CARE PLACEMENTS,"1,568.64",Revenue,28/07/2015,Social Care & Inclusion
WC58 - 0589,BUSH HOME LTD,Third Party Payments,Private Contractor Fees,73373-RESIDENTIAL & NURSING CARE PLACEMENTS,"1,568.64",Revenue,28/07/2015,Social Care & Inclusion
WC58 - 0590,BUSH HOME LTD,Third Party Payments,Private Contractor Fees,73373-RESIDENTIAL & NURSING CARE PLACEMENTS,"1,568.64",Revenue,28/07/2015,Social Care & Inclusion
WC58 - 0591,BUSH HOME LTD,Third Party Payments,Private Contractor Fees,73373-RESIDENTIAL & NURSING CARE PLACEMENTS,"1,568.64",Revenue,28/07/2015,Social Care & Inclusion
WC58 - 0592,BUSY BEES CHILDCARE LTD,Third Party Payments,Grants to Other Orgs,66505-OTHER-GRANTS TO OTHER ORGS,286.07,Revenue,16/07/2015,Childrens
WC58 - 0593,BUSY BEES CHILDCARE LTD,Third Party Payments,Grants to Other Orgs,66505-OTHER-GRANTS TO OTHER ORGS,"5,080.79",Revenue,09/07/2015,Childrens
WC58 - 0594,BY THE BRIDGE,Third Party Payments,Private Contractor Fees,74037-INDEPENDENT FOSTER CARE-OTH AGENCY PROVISION,"6,121.39",Revenue,08/07/2015,Childrens
WC58 - 0595,C & V ORCHARD MANOR LTD,Third Party Payments,Private Contractor Fees,73373-RESIDENTIAL & NURSING CARE PLACEMENTS,"1,468.68",Revenue,28/07/2015,Social Care & Inclusion
WC58 - 0596,C & V ORCHARD MANOR LTD,Third Party Payments,Private Contractor Fees,73373-RESIDENTIAL & NURSING CARE PLACEMENTS,"1,472.16",Revenue,14/07/2015,Social Care & Inclusion
WC58 - 0597,C & V ORCHARD MANOR LTD,Third Party Payments,Private Contractor Fees,73373-RESIDENTIAL & NURSING CARE PLACEMENTS,"1,472.16",Revenue,14/07/2015,Social Care & Inclusion
WC58 - 0598,C & V ORCHARD MANOR LTD,Third Party Payments,Private Contractor Fees,73373-RESIDENTIAL & NURSING CARE PLACEMENTS,"1,472.16",Revenue,14/07/2015,Social Care & Inclusion
WC58 - 0599,C & V ORCHARD MANOR LTD,Third Party Payments,Private Contractor Fees,73373-RESIDENTIAL & NURSING CARE PLACEMENTS,"1,493.24",Revenue,14/07/2015,Social Care & Inclusion
WC58 - 0600,C & V ORCHARD MANOR LTD,Third Party Payments,Private Contractor Fees,73373-RESIDENTIAL & NURSING CARE PLACEMENTS,"1,493.24",Revenue,14/07/2015,Social Care & Inclusion
WC58 - 0601,C & V ORCHARD MANOR LTD,Third Party Payments,Private Contractor Fees,73373-RESIDENTIAL & NURSING CARE PLACEMENTS,"1,493.24",Revenue,14/07/2015,Social Care & Inclusion
WC58 - 0602,C & V ORCHARD MANOR LTD,Third Party Payments,Private Contractor Fees,73373-RESIDENTIAL & NURSING CARE PLACEMENTS,"1,493.32",Revenue,14/07/2015,Social Care & Inclusion
WC58 - 0603,C & V ORCHARD MANOR LTD,Third Party Payments,Private Contractor Fees,73373-RESIDENTIAL & NURSING CARE PLACEMENTS,"1,493.32",Revenue,14/07/2015,Social Care & Inclusion
WC58 - 0604,C & V ORCHARD MANOR LTD,Third Party Payments,Private Contractor Fees,73373-RESIDENTIAL & NURSING CARE PLACEMENTS,"1,523.08",Revenue,28/07/2015,Social Care & Inclusion
WC58 - 0605,C & V ORCHARD MANOR LTD,Third Party Payments,Private Contractor Fees,73373-RESIDENTIAL & NURSING CARE PLACEMENTS,"1,523.08",Revenue,28/07/2015,Social Care & Inclusion
WC58 - 0606,C & V ORCHARD MANOR LTD,Third Party Payments,Private Contractor Fees,73373-RESIDENTIAL & NURSING CARE PLACEMENTS,"1,523.08",Revenue,28/07/2015,Social Care & Inclusion
WC58 - 0607,C & V ORCHARD MANOR LTD,Third Party Payments,Private Contractor Fees,73373-RESIDENTIAL & NURSING CARE PLACEMENTS,"1,523.08",Revenue,28/07/2015,Social Care & Inclusion
WC58 - 0608,C & V ORCHARD MANOR LTD,Third Party Payments,Private Contractor Fees,73373-RESIDENTIAL & NURSING CARE PLACEMENTS,"1,523.08",Revenue,28/07/2015,Social Care & Inclusion
WC58 - 0609,C & V ORCHARD MANOR LTD,Third Party Payments,Private Contractor Fees,73373-RESIDENTIAL & NURSING CARE PLACEMENTS,"1,523.08",Revenue,28/07/2015,Social Care & Inclusion
WC58 - 0610,C & V ORCHARD MANOR LTD,Third Party Payments,Private Contractor Fees,73373-RESIDENTIAL & NURSING CARE PLACEMENTS,"1,566.20",Revenue,14/07/2015,Social Care & Inclusion
WC58 - 0611,C & V ORCHARD MANOR LTD,Third Party Payments,Private Contractor Fees,73373-RESIDENTIAL & NURSING CARE PLACEMENTS,"1,566.20",Revenue,14/07/2015,Social Care & Inclusion
WC58 - 0612,C & V ORCHARD MANOR LTD,Third Party Payments,Private Contractor Fees,73373-RESIDENTIAL & NURSING CARE PLACEMENTS,"1,568.60",Revenue,21/07/2015,Social Care & Inclusion
WC58 - 0613,C & V ORCHARD MANOR LTD,Third Party Payments,Private Contractor Fees,73373-RESIDENTIAL & NURSING CARE PLACEMENTS,"1,632.00",Revenue,28/07/2015,Social Care & Inclusion
WC58 - 0614,C & V ORCHARD RESIDENTIAL LTD,Third Party Payments,Private Contractor Fees,73373-RESIDENTIAL & NURSING CARE PLACEMENTS,821.85,Revenue,14/07/2015,Social Care & Inclusion
WC58 - 0615,C & V ORCHARD RESIDENTIAL LTD,Third Party Payments,Private Contractor Fees,73373-RESIDENTIAL & NURSING CARE PLACEMENTS,"1,493.24",Revenue,14/07/2015,Social Care & Inclusion
WC58 - 0616,C & V ORCHARD RESIDENTIAL LTD,Third Party Payments,Private Contractor Fees,73373-RESIDENTIAL & NURSING CARE PLACEMENTS,"1,493.24",Revenue,14/07/2015,Social Care & Inclusion
WC58 - 0617,C & V ORCHARD RESIDENTIAL LTD,Third Party Payments,Private Contractor Fees,73373-RESIDENTIAL & NURSING CARE PLACEMENTS,"1,493.32",Revenue,14/07/2015,Social Care & Inclusion
WC58 - 0618,C & V ORCHARD RESIDENTIAL LTD,Third Party Payments,Private Contractor Fees,73373-RESIDENTIAL & NURSING CARE PLACEMENTS,"1,566.20",Revenue,14/07/2015,Social Care & Inclusion
WC58 - 0619,C & V ORCHARD RESIDENTIAL LTD,Third Party Payments,Private Contractor Fees,73373-RESIDENTIAL & NURSING CARE PLACEMENTS,"1,566.20",Revenue,14/07/2015,Social Care & Inclusion
WC58 - 0620,C & V ORCHARD RESIDENTIAL LTD,Third Party Payments,Private Contractor Fees,73373-RESIDENTIAL & NURSING CARE PLACEMENTS,"1,568.16",Revenue,14/07/2015,Social Care & Inclusion
WC58 - 0621,C & V ORCHARD RESIDENTIAL LTD,Third Party Payments,Private Contractor Fees,73373-RESIDENTIAL & NURSING CARE PLACEMENTS,"1,568.60",Revenue,14/07/2015,Social Care & Inclusion
WC58 - 0622,C & V ORCHARD RESIDENTIAL LTD,Third Party Payments,Private Contractor Fees,73373-RESIDENTIAL & NURSING CARE PLACEMENTS,"1,568.60",Revenue,14/07/2015,Social Care & Inclusion
WC58 - 0623,C & V ORCHARD RESIDENTIAL LTD,Third Party Payments,Private Contractor Fees,73373-RESIDENTIAL & NURSING CARE PLACEMENTS,"1,568.60",Revenue,14/07/2015,Social Care & Inclusion
WC58 - 0624,REDACTED,Supplies & Services,Other Supplies & Services,62515-MISCELLANEOUS SUPPLIES,"4,317.64",Revenue,20/07/2015,Childrens
WC58 - 0625,REDACTED,Third Party Payments,Private Contractor Fees,74006-HOLIDAY/CHRISTMAS ALLOWANCE-FOSTER CARERS-OTH AGENCY PROVISION,"4,702.52",Revenue,20/07/2015,Childrens
WC58 - 0626,REDACTED,Supplies & Services,Other Supplies & Services,62515-MISCELLANEOUS SUPPLIES,"1,445.32",Revenue,20/07/2015,Childrens
WC58 - 0627,REDACTED,Third Party Payments,Private Contractor Fees,74006-HOLIDAY/CHRISTMAS ALLOWANCE-FOSTER CARERS-OTH AGENCY PROVISION,"1,461.24",Revenue,20/07/2015,Childrens
WC58 - 0628,C P DAVIDSON & SONS LTD,Supplies & Services,"Equip,Furniture & Materials",60500-GENERAL MATERIALS,253.37,Revenue,03/07/2015,Economy & Environment
WC58 - 0629,C P DAVIDSON & SONS LTD,Supplies & Services,"Equip,Furniture & Materials",60514-MATERIALS TO STORES,306.45,Revenue,03/07/2015,Economy & Environment
WC58 - 0630,C P DAVIDSON & SONS LTD,Supplies & Services,"Equip,Furniture & Materials",60514-MATERIALS TO STORES,"1,065.73",Revenue,01/07/2015,Economy & Environment
WC58 - 0631,C P DAVIDSON & SONS LTD,Supplies & Services,"Equip,Furniture & Materials",60514-MATERIALS TO STORES,"1,328.80",Revenue,06/07/2015,Economy & Environment
WC58 - 0632,C P DAVIDSON & SONS LTD,Central,Leasing,52003-OPERATING LEASES-VEHICLES,"1,650.00",Revenue,29/07/2015,Economy & Environment
WC58 - 0633,C P DAVIDSON & SONS LTD,Supplies & Services,"Equip,Furniture & Materials",60500-GENERAL MATERIALS,"1,728.80",Revenue,17/07/2015,Economy & Environment
WC58 - 0634,C P DAVIDSON & SONS LTD,Supplies & Services,"Equip,Furniture & Materials",60500-GENERAL MATERIALS,"2,974.95",Revenue,07/07/2015,Economy & Environment
WC58 - 0635,C P DAVIDSON & SONS LTD,Central,Leasing,52003-OPERATING LEASES-VEHICLES,"3,300.00",Revenue,17/07/2015,Economy & Environment
WC58 - 0636,C P DAVIDSON & SONS LTD,Central,Leasing,52003-OPERATING LEASES-VEHICLES,"3,300.00",Revenue,17/07/2015,Economy & Environment
WC58 - 0637,C P DAVIDSON & SONS LTD,Central,Leasing,52003-OPERATING LEASES-VEHICLES,"3,300.00",Revenue,17/07/2015,Economy & Environment
WC58 - 0638,C P DAVIDSON & SONS LTD,Central,Leasing,52003-OPERATING LEASES-VEHICLES,"3,300.00",Revenue,17/07/2015,Economy & Environment
WC58 - 0639,REDACTED,Third Party Payments,Private Contractor Fees,74006-HOLIDAY/CHRISTMAS ALLOWANCE-FOSTER CARERS-OTH AGENCY PROVISION,"1,214.31",Revenue,06/07/2015,Childrens
WC58 - 0640,CACI  LIMITED,Supplies & Services,Communications & Computing,63800-COMPUTER EQUIPMENT AND SUPPLIES,"3,589.41",Revenue,27/07/2015,Childrens
WC58 - 0641,CACI  LIMITED,Supplies & Services,Communications & Computing,63800-COMPUTER EQUIPMENT AND SUPPLIES,"8,225.27",Revenue,27/07/2015,Childrens
WC58 - 0642,CACI  LIMITED,Supplies & Services,Communications & Computing,63800-COMPUTER EQUIPMENT AND SUPPLIES,"9,479.58",Revenue,27/07/2015,Childrens
WC58 - 0643,CALDMORE AREA HOUSING ASS LTD,Third Party Payments,Private Contractor Fees,73374-SUPPORTED & OTHER ACCOMMODATION,-473.80,Revenue,02/07/2015,Social Care & Inclusion
WC58 - 0644,CALDMORE AREA HOUSING ASS LTD,Third Party Payments,Private Contractor Fees,73374-SUPPORTED & OTHER ACCOMMODATION,576.80,Revenue,02/07/2015,Social Care & Inclusion
WC58 - 0645,CALDMORE AREA HOUSING ASS LTD,Third Party Payments,Private Contractor Fees,73373-RESIDENTIAL & NURSING CARE PLACEMENTS,707.81,Revenue,21/07/2015,Social Care & Inclusion
WC58 - 0646,CALDMORE AREA HOUSING ASS LTD,Third Party Payments,Private Contractor Fees,73373-RESIDENTIAL & NURSING CARE PLACEMENTS,707.81,Revenue,28/07/2015,Social Care & Inclusion
WC58 - 0647,CALDMORE AREA HOUSING ASS LTD,Third Party Payments,Private Contractor Fees,73374-SUPPORTED & OTHER ACCOMMODATION,721.00,Revenue,02/07/2015,Social Care & Inclusion
WC58 - 0648,CALDMORE AREA HOUSING ASS LTD,Third Party Payments,Private Contractor Fees,73373-RESIDENTIAL & NURSING CARE PLACEMENTS,"1,238.66",Revenue,28/07/2015,Social Care & Inclusion
WC58 - 0649,CALDMORE AREA HOUSING ASS LTD,Third Party Payments,Private Contractor Fees,73373-RESIDENTIAL & NURSING CARE PLACEMENTS,"1,504.09",Revenue,21/07/2015,Social Care & Inclusion
WC58 - 0650,CALDMORE AREA HOUSING ASS LTD,Third Party Payments,Private Contractor Fees,73373-RESIDENTIAL & NURSING CARE PLACEMENTS,"1,857.99",Revenue,28/07/2015,Social Care & Inclusion
WC58 - 0651,CALDMORE AREA HOUSING ASS LTD,Third Party Payments,Private Contractor Fees,73373-RESIDENTIAL & NURSING CARE PLACEMENTS,"3,096.65",Revenue,28/07/2015,Social Care & Inclusion
WC58 - 0652,CALDMORE AREA HOUSING ASS LTD,Third Party Payments,Private Contractor Fees,73373-RESIDENTIAL & NURSING CARE PLACEMENTS,"3,096.65",Revenue,28/07/2015,Social Care & Inclusion
WC58 - 0653,CALDMORE AREA HOUSING ASS LTD,Third Party Payments,Private Contractor Fees,73373-RESIDENTIAL & NURSING CARE PLACEMENTS,"3,096.65",Revenue,28/07/2015,Social Care & Inclusion
WC58 - 0654,CALDMORE AREA HOUSING ASS LTD,Third Party Payments,Private Contractor Fees,73373-RESIDENTIAL & NURSING CARE PLACEMENTS,"3,096.65",Revenue,28/07/2015,Social Care & Inclusion
WC58 - 0655,CALDMORE AREA HOUSING ASS LTD,Third Party Payments,Private Contractor Fees,73373-RESIDENTIAL & NURSING CARE PLACEMENTS,"3,096.65",Revenue,28/07/2015,Social Care & Inclusion
WC58 - 0656,CALDMORE AREA HOUSING ASS LTD,Third Party Payments,Private Contractor Fees,73373-RESIDENTIAL & NURSING CARE PLACEMENTS,"3,096.65",Revenue,28/07/2015,Social Care & Inclusion
WC58 - 0657,REDACTED,Third Party Payments,Private Contractor Fees,74006-HOLIDAY/CHRISTMAS ALLOWANCE-FOSTER CARERS-OTH AGENCY PROVISION,373.76,Revenue,06/07/2015,Childrens
WC58 - 0658,REDACTED,Transfer Payments,Transfer Payments,76422-DIRECT PAYMENTS TO SOCIAL SERVICES CLIENTS,287.70,Revenue,13/07/2015,Childrens
WC58 - 0659,CAMBIAN CHILDCARE LIMITED,Third Party Payments,Private Contractor Fees,74037-INDEPENDENT FOSTER CARE-OTH AGENCY PROVISION,"3,103.10",Revenue,15/07/2015,Childrens
WC58 - 0660,CAMBIAN CHILDCARE LIMITED,Third Party Payments,Private Contractor Fees,74037-INDEPENDENT FOSTER CARE-OTH AGENCY PROVISION,"3,184.63",Revenue,15/07/2015,Childrens
WC58 - 0661,CAMBIAN CHILDCARE LIMITED,Third Party Payments,Private Contractor Fees,74037-INDEPENDENT FOSTER CARE-OTH AGENCY PROVISION,"3,361.64",Revenue,15/07/2015,Childrens
WC58 - 0662,CAMBIAN LEARNING DISABILITES MIDLANDS LIMITED,Third Party Payments,Private Contractor Fees,73375-IN PATIENT BEDS,"10,908.90",Revenue,13/07/2015,Social Care & Inclusion
WC58 - 0663,CAMPBELL ASSOCIATES,Supplies & Services,"Equip,Furniture & Materials",60008-MAINTENANCE-FURNITURE & EQUIPMENT,910.00,Revenue,01/07/2015,Economy & Environment
WC58 - 0664,CANAL & RIVER TRUST,Capital,Capital,01001-OTHER CONSULTANTS FEES,"3,788.50",Capital,01/07/2015,Economy & Environment
WC58 - 0665,CAPITA BUSINESS SERVICES LTD 001,Employees,Training,30030-EXTERNAL TRAINING,250.00,Revenue,01/07/2015,Childrens
WC58 - 0666,CAPITA BUSINESS SERVICES LTD 001,Employees,Training,30030-EXTERNAL TRAINING,250.00,Revenue,01/07/2015,Childrens
WC58 - 0667,CAPITA BUSINESS SERVICES LTD 001,Supplies & Services,Communications & Computing,63800-COMPUTER EQUIPMENT AND SUPPLIES,"1,952.50",Revenue,22/07/2015,Resources
WC58 - 0668,CAPITA CHILDREN'S SERVICES,Employees,Training,30030-EXTERNAL TRAINING,420.00,Revenue,29/07/2015,Childrens
WC58 - 0669,CAPITA CHILDREN'S SERVICES,Supplies & Services,Communications & Computing,63800-COMPUTER EQUIPMENT AND SUPPLIES,"2,590.66",Revenue,24/07/2015,Childrens
WC58 - 0670,CAPITA SPECIALIST INSURANCE SOLUTIONS,Supplies & Services,Other Supplies & Services,67000-MISC INSURANCES - INSURANCE PREMIUMS,"24,140.82",Revenue,02/07/2015,Resources
WC58 - 0671,CAPITAL HAIR & BEAUTY LTD,Supplies & Services,Other Supplies & Services,63115-HIRE OF ROOM (duplicate please use 63128)-SERVICES-FEES,800.00,Revenue,08/07/2015,Resources
WC58 - 0672,CAPSTONE FOSTER CARE (SOUTH EAST) LIMITED,Third Party Payments,Private Contractor Fees,74037-INDEPENDENT FOSTER CARE-OTH AGENCY PROVISION,-490.67,Revenue,08/07/2015,Childrens
WC58 - 0673,CAPSTONE FOSTER CARE (SOUTH EAST) LIMITED,Third Party Payments,Private Contractor Fees,74037-INDEPENDENT FOSTER CARE-OTH AGENCY PROVISION,268.41,Revenue,14/07/2015,Childrens
WC58 - 0674,CAPSTONE FOSTER CARE (SOUTH EAST) LIMITED,Third Party Payments,Private Contractor Fees,74037-INDEPENDENT FOSTER CARE-OTH AGENCY PROVISION,291.10,Revenue,08/07/2015,Childrens
WC58 - 0675,CAPSTONE FOSTER CARE (SOUTH EAST) LIMITED,Third Party Payments,Private Contractor Fees,74037-INDEPENDENT FOSTER CARE-OTH AGENCY PROVISION,"1,401.36",Revenue,08/07/2015,Childrens
WC58 - 0676,CAPSTONE FOSTER CARE (SOUTH EAST) LIMITED,Third Party Payments,Private Contractor Fees,74037-INDEPENDENT FOSTER CARE-OTH AGENCY PROVISION,"1,470.42",Revenue,30/07/2015,Childrens
WC58 - 0677,CAPSTONE FOSTER CARE (SOUTH EAST) LIMITED,Third Party Payments,Private Contractor Fees,74037-INDEPENDENT FOSTER CARE-OTH AGENCY PROVISION,"1,471.96",Revenue,08/07/2015,Childrens
WC58 - 0678,CAPSTONE FOSTER CARE (SOUTH EAST) LIMITED,Third Party Payments,Private Contractor Fees,74037-INDEPENDENT FOSTER CARE-OTH AGENCY PROVISION,"2,681.27",Revenue,03/07/2015,Childrens
WC58 - 0679,CAPSTONE FOSTER CARE (SOUTH EAST) LIMITED,Third Party Payments,Private Contractor Fees,74037-INDEPENDENT FOSTER CARE-OTH AGENCY PROVISION,"2,681.27",Revenue,03/07/2015,Childrens
WC58 - 0680,CAPSTONE FOSTER CARE (SOUTH EAST) LIMITED,Third Party Payments,Private Contractor Fees,74037-INDEPENDENT FOSTER CARE-OTH AGENCY PROVISION,"2,716.92",Revenue,08/07/2015,Childrens
WC58 - 0681,CAPSTONE FOSTER CARE (SOUTH EAST) LIMITED,Third Party Payments,Private Contractor Fees,74037-INDEPENDENT FOSTER CARE-OTH AGENCY PROVISION,"2,770.65",Revenue,23/07/2015,Childrens
WC58 - 0682,CAPSTONE FOSTER CARE (SOUTH EAST) LIMITED,Third Party Payments,Private Contractor Fees,74037-INDEPENDENT FOSTER CARE-OTH AGENCY PROVISION,"2,770.65",Revenue,23/07/2015,Childrens
WC58 - 0683,CAPSTONE FOSTER CARE (SOUTH EAST) LIMITED,Third Party Payments,Private Contractor Fees,74037-INDEPENDENT FOSTER CARE-OTH AGENCY PROVISION,"2,802.72",Revenue,08/07/2015,Childrens
WC58 - 0684,CAPSTONE FOSTER CARE (SOUTH EAST) LIMITED,Third Party Payments,Private Contractor Fees,74037-INDEPENDENT FOSTER CARE-OTH AGENCY PROVISION,"2,910.99",Revenue,08/07/2015,Childrens
WC58 - 0685,CAPSTONE FOSTER CARE (SOUTH EAST) LIMITED,Third Party Payments,Private Contractor Fees,74037-INDEPENDENT FOSTER CARE-OTH AGENCY PROVISION,"2,943.92",Revenue,08/07/2015,Childrens
WC58 - 0686,CAPSTONE FOSTER CARE (SOUTH EAST) LIMITED,Third Party Payments,Private Contractor Fees,74037-INDEPENDENT FOSTER CARE-OTH AGENCY PROVISION,"3,002.92",Revenue,08/07/2015,Childrens
WC58 - 0687,CAPSTONE FOSTER CARE (SOUTH EAST) LIMITED,Third Party Payments,Private Contractor Fees,74037-INDEPENDENT FOSTER CARE-OTH AGENCY PROVISION,"3,008.02",Revenue,08/07/2015,Childrens
WC58 - 0688,CAPSTONE FOSTER CARE (SOUTH EAST) LIMITED,Third Party Payments,Private Contractor Fees,74037-INDEPENDENT FOSTER CARE-OTH AGENCY PROVISION,"3,008.02",Revenue,08/07/2015,Childrens
WC58 - 0689,CAPSTONE FOSTER CARE (SOUTH EAST) LIMITED,Third Party Payments,Private Contractor Fees,74037-INDEPENDENT FOSTER CARE-OTH AGENCY PROVISION,"3,103.01",Revenue,08/07/2015,Childrens
WC58 - 0690,CAPSTONE FOSTER CARE (SOUTH EAST) LIMITED,Third Party Payments,Private Contractor Fees,74037-INDEPENDENT FOSTER CARE-OTH AGENCY PROVISION,"3,103.01",Revenue,08/07/2015,Childrens
WC58 - 0691,CAPSTONE FOSTER CARE (SOUTH EAST) LIMITED,Third Party Payments,Private Contractor Fees,74037-INDEPENDENT FOSTER CARE-OTH AGENCY PROVISION,"3,103.01",Revenue,08/07/2015,Childrens
WC58 - 0692,CAPSTONE FOSTER CARE (SOUTH EAST) LIMITED,Third Party Payments,Private Contractor Fees,74037-INDEPENDENT FOSTER CARE-OTH AGENCY PROVISION,"3,154.20",Revenue,03/07/2015,Childrens
WC58 - 0693,CAPSTONE FOSTER CARE (SOUTH EAST) LIMITED,Third Party Payments,Private Contractor Fees,74037-INDEPENDENT FOSTER CARE-OTH AGENCY PROVISION,"3,154.20",Revenue,08/07/2015,Childrens
WC58 - 0694,CAPSTONE FOSTER CARE (SOUTH EAST) LIMITED,Third Party Payments,Private Contractor Fees,74037-INDEPENDENT FOSTER CARE-OTH AGENCY PROVISION,"3,259.34",Revenue,08/07/2015,Childrens
WC58 - 0695,CAPSTONE FOSTER CARE (SOUTH EAST) LIMITED,Third Party Payments,Private Contractor Fees,74037-INDEPENDENT FOSTER CARE-OTH AGENCY PROVISION,"3,259.34",Revenue,08/07/2015,Childrens
WC58 - 0696,CAPSTONE FOSTER CARE (SOUTH EAST) LIMITED,Third Party Payments,Private Contractor Fees,74037-INDEPENDENT FOSTER CARE-OTH AGENCY PROVISION,"3,259.34",Revenue,08/07/2015,Childrens
WC58 - 0697,CAPSTONE FOSTER CARE (SOUTH EAST) LIMITED,Third Party Payments,Private Contractor Fees,74037-INDEPENDENT FOSTER CARE-OTH AGENCY PROVISION,"3,259.34",Revenue,23/07/2015,Childrens
WC58 - 0698,CAPSTONE FOSTER CARE (SOUTH EAST) LIMITED,Third Party Payments,Private Contractor Fees,74037-INDEPENDENT FOSTER CARE-OTH AGENCY PROVISION,"3,658.16",Revenue,03/07/2015,Childrens
WC58 - 0699,CAPSTONE FOSTER CARE (SOUTH EAST) LIMITED,Third Party Payments,Private Contractor Fees,74037-INDEPENDENT FOSTER CARE-OTH AGENCY PROVISION,"3,780.10",Revenue,23/07/2015,Childrens
WC58 - 0700,CARE 2 U LIMITED,Third Party Payments,Private Contractor Fees,73372-DOMICILIARY CARE,"40,533.25",Revenue,20/07/2015,Social Care & Inclusion
WC58 - 0701,CARE AVENUES LTD,Third Party Payments,Private Contractor Fees,73372-DOMICILIARY CARE,"10,062.50",Revenue,20/07/2015,Social Care & Inclusion
WC58 - 0702,CARE LEAVERS,Supplies & Services,Other Supplies & Services,63114-OTHER FEES & LICENCES-SERVICES-FEES,90.25,Revenue,01/07/2015,Childrens
WC58 - 0703,CARE LEAVERS,Supplies & Services,Other Supplies & Services,63114-OTHER FEES & LICENCES-SERVICES-FEES,159.75,Revenue,22/07/2015,Childrens
WC58 - 0704,CARE LEAVERS,Transfer Payments,Transfer Payments,76010-ACCOMMODATION AND RELATED COSTS-ASSISTANCE TO S/S CLIENTS,308.88,Revenue,22/07/2015,Childrens
WC58 - 0705,CARE LEAVERS,Transfer Payments,Transfer Payments,76010-ACCOMMODATION AND RELATED COSTS-ASSISTANCE TO S/S CLIENTS,"1,381.64",Revenue,01/07/2015,Childrens
WC58 - 0706,CARE LEAVERS,Third Party Payments,Private Contractor Fees,74500-CARE LEAVERS MTCE PAYMENTS,"2,012.21",Revenue,01/07/2015,Childrens
WC58 - 0707,CARE LEAVERS,Third Party Payments,Private Contractor Fees,74500-CARE LEAVERS MTCE PAYMENTS,"2,526.89",Revenue,22/07/2015,Childrens
WC58 - 0708,CARE LEAVERS,Supplies & Services,Other Supplies & Services,64002-OTHER EXPENSES-EXPENSES,"2,710.02",Revenue,22/07/2015,Childrens
WC58 - 0709,CARE LEAVERS,Transfer Payments,Transfer Payments,76400-RESIDENTS PERSONAL EXPENSES-ALLOWANCES TO S/S CLIENTS,"4,619.41",Revenue,22/07/2015,Childrens
WC58 - 0710,CARE LEAVERS,Transfer Payments,Transfer Payments,76400-RESIDENTS PERSONAL EXPENSES-ALLOWANCES TO S/S CLIENTS,"5,598.52",Revenue,01/07/2015,Childrens
WC58 - 0711,CARE LEAVERS,Supplies & Services,Other Supplies & Services,64002-OTHER EXPENSES-EXPENSES,"6,575.83",Revenue,01/07/2015,Childrens
WC58 - 0712,CARE MONITORING 2000 LTD,Supplies & Services,"Equip,Furniture & Materials",60010-LICENCES-EQUIPMENT,"5,000.00",Revenue,08/07/2015,Social Care & Inclusion
WC58 - 0713,CARE MONITORING 2000 LTD,Supplies & Services,"Equip,Furniture & Materials",60010-LICENCES-EQUIPMENT,"8,752.80",Revenue,08/07/2015,Social Care & Inclusion
WC58 - 0714,CARE MONITORING 2000 LTD,Supplies & Services,"Equip,Furniture & Materials",60010-LICENCES-EQUIPMENT,"10,560.00",Revenue,08/07/2015,Social Care & Inclusion
WC58 - 0715,CARE MONITORING 2000 LTD,Supplies & Services,Communications & Computing,63800-COMPUTER EQUIPMENT AND SUPPLIES,"42,116.16",Revenue,13/07/2015,Social Care & Inclusion
WC58 - 0716,CARE SHOP,Supplies & Services,"Equip,Furniture & Materials",60539-CLEANING MATERIALS,-489.03,Revenue,20/07/2015,Social Care & Inclusion
WC58 - 0717,CARE SHOP,Supplies & Services,"Equip,Furniture & Materials",60520-HEALTH & SAFETY-MATERIALS,68.70,Revenue,20/07/2015,Social Care & Inclusion
WC58 - 0718,CARE SHOP,Supplies & Services,"Equip,Furniture & Materials",60539-CLEANING MATERIALS,273.47,Revenue,14/07/2015,Social Care & Inclusion
WC58 - 0719,CARE SHOP,Supplies & Services,"Equip,Furniture & Materials",60539-CLEANING MATERIALS,338.29,Revenue,14/07/2015,Social Care & Inclusion
WC58 - 0720,CARE SHOP,Supplies & Services,"Equip,Furniture & Materials",60539-CLEANING MATERIALS,365.88,Revenue,14/07/2015,Social Care & Inclusion
WC58 - 0721,CARE SHOP,Supplies & Services,"Equip,Furniture & Materials",61502-PROTECTIVE CLOTHING & UNIFORM,375.90,Revenue,20/07/2015,Social Care & Inclusion
WC58 - 0722,CARE SHOP,Supplies & Services,"Equip,Furniture & Materials",60539-CLEANING MATERIALS,426.25,Revenue,14/07/2015,Social Care & Inclusion
WC58 - 0723,CARE SHOP,Supplies & Services,"Equip,Furniture & Materials",60539-CLEANING MATERIALS,479.53,Revenue,20/07/2015,Social Care & Inclusion
WC58 - 0724,CARE SHOP,Supplies & Services,"Equip,Furniture & Materials",60539-CLEANING MATERIALS,677.59,Revenue,20/07/2015,Social Care & Inclusion
WC58 - 0725,CARE SHOP,Supplies & Services,"Equip,Furniture & Materials",60539-CLEANING MATERIALS,687.73,Revenue,20/07/2015,Social Care & Inclusion
WC58 - 0726,CARE4HEALTH LTD.,Employees,Agency,34305-AGENCY STAFF-EMPLOYEES,"1,040.85",Revenue,01/07/2015,Social Care & Inclusion
WC58 - 0727,CARE4HEALTH LTD.,Employees,Agency,34305-AGENCY STAFF-EMPLOYEES,"1,042.20",Revenue,27/07/2015,Social Care & Inclusion
WC58 - 0728,CARE4HEALTH LTD.,Employees,Agency,34305-AGENCY STAFF-EMPLOYEES,"1,047.60",Revenue,10/07/2015,Social Care & Inclusion
WC58 - 0729,CARE4HEALTH LTD.,Employees,Agency,34305-AGENCY STAFF-EMPLOYEES,"1,112.10",Revenue,01/07/2015,Social Care & Inclusion
WC58 - 0730,CARE4HEALTH LTD.,Third Party Payments,Private Contractor Fees,73019-PSE'S-PRIV CONTRACTOR FEES,"1,171.95",Revenue,01/07/2015,Social Care & Inclusion
WC58 - 0731,CARE4HEALTH LTD.,Third Party Payments,Private Contractor Fees,73019-PSE'S-PRIV CONTRACTOR FEES,"1,296.30",Revenue,01/07/2015,Social Care & Inclusion
WC58 - 0732,CARETECH COMMUNITY SERVICE,Third Party Payments,Private Contractor Fees,73374-SUPPORTED & OTHER ACCOMMODATION,"1,210.42",Revenue,29/07/2015,Social Care & Inclusion
WC58 - 0733,CARETECH COMMUNITY SERVICE,Third Party Payments,Private Contractor Fees,73374-SUPPORTED & OTHER ACCOMMODATION,"4,256.12",Revenue,29/07/2015,Social Care & Inclusion
WC58 - 0734,CARETECH COMMUNITY SERVICE,Third Party Payments,Private Contractor Fees,73374-SUPPORTED & OTHER ACCOMMODATION,"5,048.57",Revenue,29/07/2015,Social Care & Inclusion
WC58 - 0735,CAREVIEW SERVICES LTD,Third Party Payments,Private Contractor Fees,73373-RESIDENTIAL & NURSING CARE PLACEMENTS,"6,653.13",Revenue,21/07/2015,Social Care & Inclusion
WC58 - 0736,CARING CARE LIMITED,Third Party Payments,Private Contractor Fees,73372-DOMICILIARY CARE,"52,232.28",Revenue,20/07/2015,Social Care & Inclusion
WC58 - 0737,CARING HANDS LIMITED,Third Party Payments,Private Contractor Fees,73372-DOMICILIARY CARE,"54,536.03",Revenue,20/07/2015,Social Care & Inclusion
WC58 - 0738,REDACTED,Employees,Other Staff Costs,32000-MISC FEES AND EXPENSES,12.38,Revenue,16/07/2015,Social Care & Inclusion
WC58 - 0739,REDACTED,Third Party Payments,Private Contractor Fees,73374-SUPPORTED & OTHER ACCOMMODATION,521.78,Revenue,16/07/2015,Social Care & Inclusion
WC58 - 0740,REDACTED,Third Party Payments,Grants to Other Orgs,66505-OTHER-GRANTS TO OTHER ORGS,776.10,Revenue,09/07/2015,Childrens
WC58 - 0741,REDACTED,Third Party Payments,Private Contractor Fees,73374-SUPPORTED & OTHER ACCOMMODATION,"4,912.20",Revenue,09/07/2015,Social Care & Inclusion
WC58 - 0742,REDACTED,Transfer Payments,Transfer Payments,76422-DIRECT PAYMENTS TO SOCIAL SERVICES CLIENTS,450.00,Revenue,13/07/2015,Social Care & Inclusion
WC58 - 0743,REDACTED,Transfer Payments,Transfer Payments,76422-DIRECT PAYMENTS TO SOCIAL SERVICES CLIENTS,500.00,Revenue,13/07/2015,Social Care & Inclusion
WC58 - 0744,REDACTED,Third Party Payments,Private Contractor Fees,74006-HOLIDAY/CHRISTMAS ALLOWANCE-FOSTER CARERS-OTH AGENCY PROVISION,469.80,Revenue,20/07/2015,Childrens
WC58 - 0745,REDACTED,Supplies & Services,Other Supplies & Services,62515-MISCELLANEOUS SUPPLIES,540.20,Revenue,20/07/2015,Childrens
WC58 - 0746,REDACTED,Third Party Payments,Private Contractor Fees,74006-HOLIDAY/CHRISTMAS ALLOWANCE-FOSTER CARERS-OTH AGENCY PROVISION,412.74,Revenue,06/07/2015,Childrens
WC58 - 0747,REDACTED,Third Party Payments,Private Contractor Fees,74006-HOLIDAY/CHRISTMAS ALLOWANCE-FOSTER CARERS-OTH AGENCY PROVISION,365.60,Revenue,06/07/2015,Childrens
WC58 - 0748,REDACTED,Third Party Payments,Private Contractor Fees,73014-LEGAL FEES-PRIV CONTRACTOR FEES,414.65,Revenue,15/07/2015,Childrens
WC58 - 0749,CARTER SYNERGY LTD,Capital,Capital,01006-SITE WORKS MAIN CONTRACTORS,-738.00,Capital,13/07/2015,Economy & Environment
WC58 - 0750,CARTER SYNERGY LTD,Capital,Capital,01006-SITE WORKS MAIN CONTRACTORS,738.00,Capital,03/07/2015,Economy & Environment
WC58 - 0751,CARTER SYNERGY LTD,Capital,Capital,01044-PURCHASE OF FURNITURE & EQUIPMENT,"8,337.28",Capital,10/07/2015,Economy & Environment
WC58 - 0752,CARTER SYNERGY LTD,Premises,Premises-Repairs & Maintenance,40216-OTHER-PLAN MTCE,"9,939.41",Revenue,02/07/2015,Economy & Environment
WC58 - 0753,CATHEDRAL LEASING LTD,Supplies & Services,"Equip,Furniture & Materials",60520-HEALTH & SAFETY-MATERIALS,704.76,Revenue,01/07/2015,Social Care & Inclusion
WC58 - 0754,REDACTED,Transfer Payments,Transfer Payments,76422-DIRECT PAYMENTS TO SOCIAL SERVICES CLIENTS,622.68,Revenue,13/07/2015,Social Care & Inclusion
WC58 - 0755,REDACTED,Transfer Payments,Transfer Payments,76422-DIRECT PAYMENTS TO SOCIAL SERVICES CLIENTS,690.48,Revenue,13/07/2015,Social Care & Inclusion
WC58 - 0756,REDACTED,Third Party Payments,Private Contractor Fees,74006-HOLIDAY/CHRISTMAS ALLOWANCE-FOSTER CARERS-OTH AGENCY PROVISION,425.08,Revenue,06/07/2015,Childrens
WC58 - 0757,REDACTED,Transfer Payments,Transfer Payments,76422-DIRECT PAYMENTS TO SOCIAL SERVICES CLIENTS,388.40,Revenue,13/07/2015,Social Care & Inclusion
WC58 - 0758,REDACTED,Transfer Payments,Transfer Payments,76422-DIRECT PAYMENTS TO SOCIAL SERVICES CLIENTS,"1,014.26",Revenue,13/07/2015,Childrens
WC58 - 0759,REDACTED,Third Party Payments,Private Contractor Fees,74006-HOLIDAY/CHRISTMAS ALLOWANCE-FOSTER CARERS-OTH AGENCY PROVISION,425.08,Revenue,06/07/2015,Childrens
WC58 - 0760,CCS MEDIA LTD,Supplies & Services,Communications & Computing,63800-COMPUTER EQUIPMENT AND SUPPLIES,518.16,Revenue,07/07/2015,Resources
WC58 - 0761,CENTRAL INSULATION & ENVIRONM,Capital,Capital,01006-SITE WORKS MAIN CONTRACTORS,"2,688.00",Capital,20/07/2015,Resources
WC58 - 0762,CENTRO WMPTA,Transfer Payments,Transfer Payments,76000-TRANSFER PAYMENTS - SOCIAL SERVICES CLIENTS,550.00,Revenue,01/07/2015,Social Care & Inclusion
WC58 - 0763,CERTAS ENERGY UK LIMITED,Transport,Other Transport,50301-FUEL-TRANSPORT RUN COSTS,463.50,Revenue,21/07/2015,Economy & Environment
WC58 - 0764,CERTAS ENERGY UK LIMITED,Transport,Other Transport,50301-FUEL-TRANSPORT RUN COSTS,667.50,Revenue,28/07/2015,Economy & Environment
WC58 - 0765,CERTAS ENERGY UK LIMITED,Transport,Other Transport,50301-FUEL-TRANSPORT RUN COSTS,696.75,Revenue,09/07/2015,Economy & Environment
WC58 - 0766,CERTAS ENERGY UK LIMITED,Transport,Other Transport,50301-FUEL-TRANSPORT RUN COSTS,710.55,Revenue,02/07/2015,Economy & Environment
WC58 - 0767,CERTAS ENERGY UK LIMITED,Transport,Other Transport,50301-FUEL-TRANSPORT RUN COSTS,"1,364.99",Revenue,09/07/2015,Economy & Environment
WC58 - 0768,CERTAS ENERGY UK LIMITED,Transport,Other Transport,50301-FUEL-TRANSPORT RUN COSTS,"1,374.60",Revenue,21/07/2015,Economy & Environment
WC58 - 0769,CERTAS ENERGY UK LIMITED,Transport,Other Transport,50301-FUEL-TRANSPORT RUN COSTS,"1,391.88",Revenue,21/07/2015,Economy & Environment
WC58 - 0770,CERTAS ENERGY UK LIMITED,Transport,Other Transport,50301-FUEL-TRANSPORT RUN COSTS,"1,416.34",Revenue,02/07/2015,Economy & Environment
WC58 - 0771,CERTAS ENERGY UK LIMITED,Transport,Other Transport,50301-FUEL-TRANSPORT RUN COSTS,"17,475.22",Revenue,17/07/2015,Economy & Environment
WC58 - 0772,CERTAS ENERGY UK LIMITED,Transport,Other Transport,50301-FUEL-TRANSPORT RUN COSTS,"18,003.08",Revenue,28/07/2015,Economy & Environment
WC58 - 0773,CERTAS ENERGY UK LIMITED,Transport,Other Transport,50301-FUEL-TRANSPORT RUN COSTS,"18,041.00",Revenue,21/07/2015,Economy & Environment
WC58 - 0774,CERTAS ENERGY UK LIMITED,Transport,Other Transport,50301-FUEL-TRANSPORT RUN COSTS,"18,367.10",Revenue,21/07/2015,Economy & Environment
WC58 - 0775,CERTAS ENERGY UK LIMITED,Transport,Other Transport,50301-FUEL-TRANSPORT RUN COSTS,"18,459.38",Revenue,09/07/2015,Economy & Environment
WC58 - 0776,CERTAS ENERGY UK LIMITED,Transport,Other Transport,50301-FUEL-TRANSPORT RUN COSTS,"18,651.79",Revenue,02/07/2015,Economy & Environment
WC58 - 0777,CEXC LIMITED,Supplies & Services,Communications & Computing,63800-COMPUTER EQUIPMENT AND SUPPLIES,"1,333.33",Revenue,29/07/2015,Resources
WC58 - 0778,CF ASSET FINANCE LIMITED,Supplies & Services,"Equip,Furniture & Materials",60009-LEASING/HIRE/RENTAL-EQUIPMENT,-509.28,Revenue,08/07/2015,Resources
WC58 - 0779,CF ASSET FINANCE LIMITED,Supplies & Services,"Equip,Furniture & Materials",60009-LEASING/HIRE/RENTAL-EQUIPMENT,309.70,Revenue,15/07/2015,Resources
WC58 - 0780,CF CORPORATE FINANCE LTD,Supplies & Services,"Equip,Furniture & Materials",60004-PHOTOGRAPHIC DEVELOPMENT/PRINTING-EQUIPMENT,255.00,Revenue,15/07/2015,Childrens
WC58 - 0781,CHANDOS LODGE CARE HOME,Third Party Payments,Private Contractor Fees,73373-RESIDENTIAL & NURSING CARE PLACEMENTS,"1,632.00",Revenue,07/07/2015,Social Care & Inclusion
WC58 - 0782,CHARANGA,Supplies & Services,Services,63000-PROFESSIONAL FEES AND SERVICES,"8,000.00",Revenue,22/07/2015,Economy & Environment
WC58 - 0783,REDACTED,Transfer Payments,Transfer Payments,76422-DIRECT PAYMENTS TO SOCIAL SERVICES CLIENTS,748.00,Revenue,13/07/2015,Social Care & Inclusion
WC58 - 0784,REDACTED,Third Party Payments,Private Contractor Fees,74006-HOLIDAY/CHRISTMAS ALLOWANCE-FOSTER CARERS-OTH AGENCY PROVISION,732.29,Revenue,06/07/2015,Childrens
WC58 - 0785,CHARLIE CATERPILLAR'S DAY NURSERY,Third Party Payments,Grants to Other Orgs,66505-OTHER-GRANTS TO OTHER ORGS,"9,858.24",Revenue,20/07/2015,Childrens
WC58 - 0786,CHARLIE CATERPILLAR'S DAY NURSERY,Third Party Payments,Grants to Other Orgs,66505-OTHER-GRANTS TO OTHER ORGS,"11,450.01",Revenue,09/07/2015,Childrens
WC58 - 0787,REDACTED,Transfer Payments,Transfer Payments,76422-DIRECT PAYMENTS TO SOCIAL SERVICES CLIENTS,258.96,Revenue,13/07/2015,Childrens
WC58 - 0788,CHARMEND LTD,Third Party Payments,Private Contractor Fees,73373-RESIDENTIAL & NURSING CARE PLACEMENTS,-586.14,Revenue,07/07/2015,Social Care & Inclusion
WC58 - 0789,CHARMEND LTD,Third Party Payments,Private Contractor Fees,73373-RESIDENTIAL & NURSING CARE PLACEMENTS,-332.66,Revenue,07/07/2015,Social Care & Inclusion
WC58 - 0790,CHARMEND LTD,Third Party Payments,Private Contractor Fees,73373-RESIDENTIAL & NURSING CARE PLACEMENTS,-269.31,Revenue,07/07/2015,Social Care & Inclusion
WC58 - 0791,CHARMEND LTD,Third Party Payments,Private Contractor Fees,73019-PSE'S-PRIV CONTRACTOR FEES,"26,571.43",Revenue,24/07/2015,Social Care & Inclusion
WC58 - 0792,CHARTER CARE,Third Party Payments,Private Contractor Fees,73372-DOMICILIARY CARE,"37,324.11",Revenue,20/07/2015,Social Care & Inclusion
WC58 - 0793,CHASE HOUSE AND PARTNER,Third Party Payments,Private Contractor Fees,73373-RESIDENTIAL & NURSING CARE PLACEMENTS,300.00,Revenue,14/07/2015,Social Care & Inclusion
WC58 - 0794,CHASE HOUSE AND PARTNER,Third Party Payments,Private Contractor Fees,73373-RESIDENTIAL & NURSING CARE PLACEMENTS,300.72,Revenue,14/07/2015,Social Care & Inclusion
WC58 - 0795,CHASE HOUSE AND PARTNER,Third Party Payments,Private Contractor Fees,73373-RESIDENTIAL & NURSING CARE PLACEMENTS,307.92,Revenue,14/07/2015,Social Care & Inclusion
WC58 - 0796,CHASE HOUSE AND PARTNER,Third Party Payments,Private Contractor Fees,73373-RESIDENTIAL & NURSING CARE PLACEMENTS,320.88,Revenue,14/07/2015,Social Care & Inclusion
WC58 - 0797,CHASE HOUSE AND PARTNER,Third Party Payments,Private Contractor Fees,73373-RESIDENTIAL & NURSING CARE PLACEMENTS,"4,545.68",Revenue,14/07/2015,Social Care & Inclusion
WC58 - 0798,CHASE HOUSE AND PARTNER,Third Party Payments,Private Contractor Fees,73373-RESIDENTIAL & NURSING CARE PLACEMENTS,"4,555.68",Revenue,14/07/2015,Social Care & Inclusion
WC58 - 0799,CHASE HOUSE AND PARTNER,Third Party Payments,Private Contractor Fees,73373-RESIDENTIAL & NURSING CARE PLACEMENTS,"4,665.12",Revenue,14/07/2015,Social Care & Inclusion
WC58 - 0800,CHASE HOUSE AND PARTNER,Third Party Payments,Private Contractor Fees,73373-RESIDENTIAL & NURSING CARE PLACEMENTS,"4,860.72",Revenue,14/07/2015,Social Care & Inclusion
WC58 - 0801,CHEEKY MONKEY CHILDMINDING - LOUISE LAKE,Third Party Payments,Grants to Other Orgs,66505-OTHER-GRANTS TO OTHER ORGS,"1,552.20",Revenue,09/07/2015,Childrens
WC58 - 0802,CHEMTECH WASTE MANAGEMENT LTD,Third Party Payments,Private Contractor Fees,73029-HAZARDOUS WASTE REMOVAL/DISPOSAL-PRIV CONTRACTOR FEES,450.00,Revenue,10/07/2015,Economy & Environment
WC58 - 0803,CHEMTECH WASTE MANAGEMENT LTD,Supplies & Services,"Equip,Furniture & Materials",60500-GENERAL MATERIALS,791.50,Revenue,20/07/2015,Economy & Environment
WC58 - 0804,CHERISH HOME CARE,Third Party Payments,Private Contractor Fees,73372-DOMICILIARY CARE,297.08,Revenue,03/07/2015,Social Care & Inclusion
WC58 - 0805,CHERISH HOME CARE,Third Party Payments,Private Contractor Fees,73372-DOMICILIARY CARE,297.15,Revenue,03/07/2015,Social Care & Inclusion
WC58 - 0806,CHERISH HOME CARE,Third Party Payments,Private Contractor Fees,73372-DOMICILIARY CARE,318.60,Revenue,03/07/2015,Social Care & Inclusion
WC58 - 0807,CHERISH HOME CARE,Third Party Payments,Private Contractor Fees,73372-DOMICILIARY CARE,465.75,Revenue,03/07/2015,Social Care & Inclusion
WC58 - 0808,CHERISH HOME CARE,Third Party Payments,Private Contractor Fees,73372-DOMICILIARY CARE,588.30,Revenue,01/07/2015,Social Care & Inclusion
WC58 - 0809,CHERISH HOME CARE,Third Party Payments,Private Contractor Fees,73372-DOMICILIARY CARE,594.72,Revenue,03/07/2015,Social Care & Inclusion
WC58 - 0810,CHERISH HOME CARE,Third Party Payments,Private Contractor Fees,73372-DOMICILIARY CARE,743.12,Revenue,03/07/2015,Social Care & Inclusion
WC58 - 0811,CHERISH HOME CARE,Third Party Payments,Private Contractor Fees,73372-DOMICILIARY CARE,743.12,Revenue,03/07/2015,Social Care & Inclusion
WC58 - 0812,REDACTED,Third Party Payments,Grants to Other Orgs,66505-OTHER-GRANTS TO OTHER ORGS,286.07,Revenue,16/07/2015,Childrens
WC58 - 0813,REDACTED,Third Party Payments,Grants to Other Orgs,66505-OTHER-GRANTS TO OTHER ORGS,776.10,Revenue,09/07/2015,Childrens
WC58 - 0814,CHESTER UNIVERSITY,Third Party Payments,Private Contractor Fees,73374-SUPPORTED & OTHER ACCOMMODATION,"1,579.20",Revenue,13/07/2015,Social Care & Inclusion
WC58 - 0815,REDACTED,Transfer Payments,Transfer Payments,76422-DIRECT PAYMENTS TO SOCIAL SERVICES CLIENTS,"1,601.60",Revenue,13/07/2015,Social Care & Inclusion
WC58 - 0816,CHILDCARE BUREAU LTD,Third Party Payments,Private Contractor Fees,74037-INDEPENDENT FOSTER CARE-OTH AGENCY PROVISION,"3,731.00",Revenue,17/07/2015,Childrens
WC58 - 0817,CHILDCARE BUREAU LTD,Third Party Payments,Private Contractor Fees,74037-INDEPENDENT FOSTER CARE-OTH AGENCY PROVISION,"3,733.52",Revenue,17/07/2015,Childrens
WC58 - 0818,CHILDCARE BUREAU LTD,Third Party Payments,Private Contractor Fees,74037-INDEPENDENT FOSTER CARE-OTH AGENCY PROVISION,"6,939.80",Revenue,17/07/2015,Childrens
WC58 - 0819,CHILDLINK,Transport,Car Allowances,53001-OTHER/VOLUNTEERS-CAR ALLOWANCES,12.00,Revenue,14/07/2015,Childrens
WC58 - 0820,CHILDLINK,Transport,Car Allowances,53001-OTHER/VOLUNTEERS-CAR ALLOWANCES,14.40,Revenue,09/07/2015,Childrens
WC58 - 0821,CHILDLINK,Transport,Car Allowances,53001-OTHER/VOLUNTEERS-CAR ALLOWANCES,14.40,Revenue,15/07/2015,Childrens
WC58 - 0822,CHILDLINK,Supplies & Services,Other Supplies & Services,63128-HIRE OF ROOM-SERVICES-FEES,16.00,Revenue,01/07/2015,Childrens
WC58 - 0823,CHILDLINK,Supplies & Services,Other Supplies & Services,63128-HIRE OF ROOM-SERVICES-FEES,16.00,Revenue,01/07/2015,Childrens
WC58 - 0824,CHILDLINK,Transport,Car Allowances,53001-OTHER/VOLUNTEERS-CAR ALLOWANCES,19.20,Revenue,15/07/2015,Childrens
WC58 - 0825,CHILDLINK,Transport,Car Allowances,53001-OTHER/VOLUNTEERS-CAR ALLOWANCES,24.00,Revenue,01/07/2015,Childrens
WC58 - 0826,CHILDLINK,Transport,Car Allowances,53001-OTHER/VOLUNTEERS-CAR ALLOWANCES,24.00,Revenue,01/07/2015,Childrens
WC58 - 0827,CHILDLINK,Transport,Car Allowances,53001-OTHER/VOLUNTEERS-CAR ALLOWANCES,24.00,Revenue,01/07/2015,Childrens
WC58 - 0828,CHILDLINK,Supplies & Services,Other Supplies & Services,63128-HIRE OF ROOM-SERVICES-FEES,24.00,Revenue,01/07/2015,Childrens
WC58 - 0829,CHILDLINK,Transport,Car Allowances,53001-OTHER/VOLUNTEERS-CAR ALLOWANCES,24.00,Revenue,23/07/2015,Childrens
WC58 - 0830,CHILDLINK,Transport,Car Allowances,53001-OTHER/VOLUNTEERS-CAR ALLOWANCES,28.80,Revenue,01/07/2015,Childrens
WC58 - 0831,CHILDLINK,Transport,Car Allowances,53003-OTHER-TRAVEL ALLOWANCES,29.25,Revenue,01/07/2015,Childrens
WC58 - 0832,CHILDLINK,Transport,Car Allowances,53001-OTHER/VOLUNTEERS-CAR ALLOWANCES,33.60,Revenue,01/07/2015,Childrens
WC58 - 0833,CHILDLINK,Supplies & Services,Other Supplies & Services,63128-HIRE OF ROOM-SERVICES-FEES,36.00,Revenue,01/07/2015,Childrens
WC58 - 0834,CHILDLINK,Transport,Car Allowances,53003-OTHER-TRAVEL ALLOWANCES,39.00,Revenue,01/07/2015,Childrens
WC58 - 0835,CHILDLINK,Transport,Car Allowances,53003-OTHER-TRAVEL ALLOWANCES,39.00,Revenue,01/07/2015,Childrens
WC58 - 0836,CHILDLINK,Transport,Car Allowances,53003-OTHER-TRAVEL ALLOWANCES,39.00,Revenue,01/07/2015,Childrens
WC58 - 0837,CHILDLINK,Transport,Car Allowances,53003-OTHER-TRAVEL ALLOWANCES,39.00,Revenue,09/07/2015,Childrens
WC58 - 0838,CHILDLINK,Transport,Car Allowances,53003-OTHER-TRAVEL ALLOWANCES,39.00,Revenue,14/07/2015,Childrens
WC58 - 0839,CHILDLINK,Supplies & Services,Other Supplies & Services,63128-HIRE OF ROOM-SERVICES-FEES,40.00,Revenue,01/07/2015,Childrens
WC58 - 0840,CHILDLINK,Supplies & Services,Other Supplies & Services,63128-HIRE OF ROOM-SERVICES-FEES,40.00,Revenue,01/07/2015,Childrens
WC58 - 0841,CHILDLINK,Supplies & Services,Other Supplies & Services,63128-HIRE OF ROOM-SERVICES-FEES,40.00,Revenue,01/07/2015,Childrens
WC58 - 0842,CHILDLINK,Supplies & Services,Other Supplies & Services,63128-HIRE OF ROOM-SERVICES-FEES,40.00,Revenue,15/07/2015,Childrens
WC58 - 0843,CHILDLINK,Supplies & Services,Other Supplies & Services,63128-HIRE OF ROOM-SERVICES-FEES,40.00,Revenue,15/07/2015,Childrens
WC58 - 0844,CHILDLINK,Supplies & Services,Other Supplies & Services,63128-HIRE OF ROOM-SERVICES-FEES,40.00,Revenue,17/07/2015,Childrens
WC58 - 0845,CHILDLINK,Transport,Car Allowances,53001-OTHER/VOLUNTEERS-CAR ALLOWANCES,44.40,Revenue,23/07/2015,Childrens
WC58 - 0846,CHILDLINK,Transport,Car Allowances,53003-OTHER-TRAVEL ALLOWANCES,52.00,Revenue,15/07/2015,Childrens
WC58 - 0847,CHILDLINK,Transport,Car Allowances,53003-OTHER-TRAVEL ALLOWANCES,52.00,Revenue,23/07/2015,Childrens
WC58 - 0848,CHILDLINK,Transport,Car Allowances,53003-OTHER-TRAVEL ALLOWANCES,58.50,Revenue,01/07/2015,Childrens
WC58 - 0849,CHILDLINK,Transport,Car Allowances,53003-OTHER-TRAVEL ALLOWANCES,58.50,Revenue,23/07/2015,Childrens
WC58 - 0850,CHILDLINK,Transport,Car Allowances,53001-OTHER/VOLUNTEERS-CAR ALLOWANCES,61.60,Revenue,01/07/2015,Childrens
WC58 - 0851,CHILDLINK,Transport,Car Allowances,53001-OTHER/VOLUNTEERS-CAR ALLOWANCES,62.80,Revenue,01/07/2015,Childrens
WC58 - 0852,CHILDLINK,Transport,Car Allowances,53003-OTHER-TRAVEL ALLOWANCES,78.00,Revenue,15/07/2015,Childrens
WC58 - 0853,CHILDLINK,Transport,Car Allowances,53003-OTHER-TRAVEL ALLOWANCES,88.40,Revenue,01/07/2015,Childrens
WC58 - 0854,CHILDLINK,Transport,Car Allowances,53003-OTHER-TRAVEL ALLOWANCES,89.83,Revenue,01/07/2015,Childrens
WC58 - 0855,CHILDLINK,Transport,Car Allowances,53001-OTHER/VOLUNTEERS-CAR ALLOWANCES,101.04,Revenue,01/07/2015,Childrens
WC58 - 0856,CHILDLINK,Third Party Payments,Private Contractor Fees,76003-SECTION 34 (CONTACT),104.00,Revenue,01/07/2015,Childrens
WC58 - 0857,CHILDLINK,Third Party Payments,Private Contractor Fees,76003-SECTION 34 (CONTACT),104.00,Revenue,01/07/2015,Childrens
WC58 - 0858,CHILDLINK,Third Party Payments,Private Contractor Fees,76003-SECTION 34 (CONTACT),104.00,Revenue,01/07/2015,Childrens
WC58 - 0859,CHILDLINK,Transport,Car Allowances,53003-OTHER-TRAVEL ALLOWANCES,117.00,Revenue,01/07/2015,Childrens
WC58 - 0860,CHILDLINK,Third Party Payments,Private Contractor Fees,76003-SECTION 34 (CONTACT),143.00,Revenue,01/07/2015,Childrens
WC58 - 0861,CHILDLINK,Third Party Payments,Private Contractor Fees,76003-SECTION 34 (CONTACT),156.00,Revenue,23/07/2015,Childrens
WC58 - 0862,CHILDLINK,Transport,Car Allowances,53001-OTHER/VOLUNTEERS-CAR ALLOWANCES,180.80,Revenue,01/07/2015,Childrens
WC58 - 0863,CHILDLINK,Third Party Payments,Private Contractor Fees,76003-SECTION 34 (CONTACT),188.50,Revenue,01/07/2015,Childrens
WC58 - 0864,CHILDLINK,Transport,Car Allowances,53003-OTHER-TRAVEL ALLOWANCES,199.29,Revenue,01/07/2015,Childrens
WC58 - 0865,CHILDLINK,Third Party Payments,Private Contractor Fees,76003-SECTION 34 (CONTACT),208.00,Revenue,01/07/2015,Childrens
WC58 - 0866,CHILDLINK,Third Party Payments,Private Contractor Fees,76003-SECTION 34 (CONTACT),208.00,Revenue,09/07/2015,Childrens
WC58 - 0867,CHILDLINK,Third Party Payments,Private Contractor Fees,76003-SECTION 34 (CONTACT),221.00,Revenue,01/07/2015,Childrens
WC58 - 0868,CHILDLINK,Third Party Payments,Private Contractor Fees,76003-SECTION 34 (CONTACT),221.00,Revenue,01/07/2015,Childrens
WC58 - 0869,CHILDLINK,Third Party Payments,Private Contractor Fees,76003-SECTION 34 (CONTACT),221.00,Revenue,14/07/2015,Childrens
WC58 - 0870,CHILDLINK,Third Party Payments,Private Contractor Fees,76003-SECTION 34 (CONTACT),234.00,Revenue,01/07/2015,Childrens
WC58 - 0871,CHILDLINK,Third Party Payments,Private Contractor Fees,76003-SECTION 34 (CONTACT),234.00,Revenue,15/07/2015,Childrens
WC58 - 0872,CHILDLINK,Third Party Payments,Private Contractor Fees,76003-SECTION 34 (CONTACT),247.00,Revenue,23/07/2015,Childrens
WC58 - 0873,CHILDLINK,Third Party Payments,Private Contractor Fees,76003-SECTION 34 (CONTACT),260.00,Revenue,01/07/2015,Childrens
WC58 - 0874,CHILDLINK,Third Party Payments,Private Contractor Fees,76003-SECTION 34 (CONTACT),260.00,Revenue,15/07/2015,Childrens
WC58 - 0875,CHILDLINK,Third Party Payments,Private Contractor Fees,76003-SECTION 34 (CONTACT),305.50,Revenue,01/07/2015,Childrens
WC58 - 0876,CHILDLINK,Third Party Payments,Private Contractor Fees,76003-SECTION 34 (CONTACT),312.00,Revenue,01/07/2015,Childrens
WC58 - 0877,CHILDLINK,Third Party Payments,Private Contractor Fees,76003-SECTION 34 (CONTACT),312.00,Revenue,15/07/2015,Childrens
WC58 - 0878,CHILDLINK,Third Party Payments,Private Contractor Fees,76003-SECTION 34 (CONTACT),312.00,Revenue,15/07/2015,Childrens
WC58 - 0879,CHILDLINK,Third Party Payments,Private Contractor Fees,76003-SECTION 34 (CONTACT),312.00,Revenue,17/07/2015,Childrens
WC58 - 0880,CHILDRENS RESIDENTIAL SERVS,Premises,Premises-Repairs & Maintenance,"40000-REPAIRS,ALTERATIONS & MAINTENANCE-PREM",3.19,Revenue,03/07/2015,Childrens
WC58 - 0881,CHILDRENS RESIDENTIAL SERVS,Supplies & Services,"Printing, Stationery & Office Exp",62001-STATIONERY & GENERAL SUPPLIES-OFFICE EXP,3.99,Revenue,03/07/2015,Childrens
WC58 - 0882,CHILDRENS RESIDENTIAL SERVS,Transport,Car Allowances,53000-OFFICERS/STAFF-CAR ALLOWANCES,4.49,Revenue,03/07/2015,Childrens
WC58 - 0883,CHILDRENS RESIDENTIAL SERVS,Transport,Car Allowances,53000-OFFICERS/STAFF-CAR ALLOWANCES,4.83,Revenue,03/07/2015,Childrens
WC58 - 0884,CHILDRENS RESIDENTIAL SERVS,Supplies & Services,"Equip,Furniture & Materials",60500-GENERAL MATERIALS,7.40,Revenue,03/07/2015,Childrens
WC58 - 0885,CHILDRENS RESIDENTIAL SERVS,Supplies & Services,"Equip,Furniture & Materials",60006-NEW-FURNITURE & EQUIPMENT,7.62,Revenue,03/07/2015,Childrens
WC58 - 0886,CHILDRENS RESIDENTIAL SERVS,Transport,Car Allowances,53000-OFFICERS/STAFF-CAR ALLOWANCES,8.20,Revenue,03/07/2015,Childrens
WC58 - 0887,CHILDRENS RESIDENTIAL SERVS,Premises,Cleaning & Caretaking,46000-EQUIP NEW-CLEANING,13.50,Revenue,03/07/2015,Childrens
WC58 - 0888,CHILDRENS RESIDENTIAL SERVS,Transfer Payments,Transfer Payments,76408-OUTINGS-ALLOWANCES TO S/S CLIENTS,15.00,Revenue,03/07/2015,Childrens
WC58 - 0889,CHILDRENS RESIDENTIAL SERVS,Supplies & Services,Provisions,61016-FOOD AND BEVERAGES-PROVISIONS,15.53,Revenue,03/07/2015,Childrens
WC58 - 0890,CHILDRENS RESIDENTIAL SERVS,Premises,Cleaning & Caretaking,46000-EQUIP NEW-CLEANING,17.67,Revenue,03/07/2015,Childrens
WC58 - 0891,CHILDRENS RESIDENTIAL SERVS,Supplies & Services,Provisions,61016-FOOD AND BEVERAGES-PROVISIONS,28.98,Revenue,03/07/2015,Childrens
WC58 - 0892,CHILDRENS RESIDENTIAL SERVS,Premises,Cleaning & Caretaking,46000-EQUIP NEW-CLEANING,31.00,Revenue,03/07/2015,Childrens
WC58 - 0893,CHILDRENS RESIDENTIAL SERVS,Transfer Payments,Transfer Payments,76408-OUTINGS-ALLOWANCES TO S/S CLIENTS,35.01,Revenue,03/07/2015,Childrens
WC58 - 0894,CHILDRENS RESIDENTIAL SERVS,Transport,Car Allowances,53000-OFFICERS/STAFF-CAR ALLOWANCES,47.47,Revenue,03/07/2015,Childrens
WC58 - 0895,CHILDRENS RESIDENTIAL SERVS,Transfer Payments,Transfer Payments,76400-RESIDENTS PERSONAL EXPENSES-ALLOWANCES TO S/S CLIENTS,66.70,Revenue,03/07/2015,Childrens
WC58 - 0896,CHILDRENS RESIDENTIAL SERVS,Supplies & Services,Provisions,61016-FOOD AND BEVERAGES-PROVISIONS,92.59,Revenue,03/07/2015,Childrens
WC58 - 0897,CHILDRENS RESIDENTIAL SERVS,Supplies & Services,Provisions,61016-FOOD AND BEVERAGES-PROVISIONS,121.89,Revenue,03/07/2015,Childrens
WC58 - 0898,CHILDRENS RESIDENTIAL SERVS,Transfer Payments,Transfer Payments,76400-RESIDENTS PERSONAL EXPENSES-ALLOWANCES TO S/S CLIENTS,222.25,Revenue,03/07/2015,Childrens
WC58 - 0899,CHILDRENS RESIDENTIAL SERVS,Supplies & Services,Provisions,61016-FOOD AND BEVERAGES-PROVISIONS,228.01,Revenue,03/07/2015,Childrens
WC58 - 0900,CHILDRENS RESIDENTIAL SERVS,Supplies & Services,Provisions,61016-FOOD AND BEVERAGES-PROVISIONS,236.61,Revenue,03/07/2015,Childrens
WC58 - 0901,CHILDRENS RESIDENTIAL SERVS,Transfer Payments,Transfer Payments,76400-RESIDENTS PERSONAL EXPENSES-ALLOWANCES TO S/S CLIENTS,465.55,Revenue,03/07/2015,Childrens
WC58 - 0902,CHILDRENS RESIDENTIAL SERVS,Transfer Payments,Transfer Payments,76400-RESIDENTS PERSONAL EXPENSES-ALLOWANCES TO S/S CLIENTS,755.63,Revenue,03/07/2015,Childrens
WC58 - 0903,CHILDRENS RESIDENTIAL SERVS,Transfer Payments,Transfer Payments,76400-RESIDENTS PERSONAL EXPENSES-ALLOWANCES TO S/S CLIENTS,"1,088.30",Revenue,03/07/2015,Childrens
WC58 - 0904,CHRISTADELPHIAN CARE HOMES,Third Party Payments,Private Contractor Fees,73373-RESIDENTIAL & NURSING CARE PLACEMENTS,"1,748.58",Revenue,14/07/2015,Social Care & Inclusion
WC58 - 0905,CHRISTADELPHIAN CARE HOMES,Third Party Payments,Private Contractor Fees,73373-RESIDENTIAL & NURSING CARE PLACEMENTS,"1,806.86",Revenue,14/07/2015,Social Care & Inclusion
WC58 - 0906,REDACTED,Transfer Payments,Transfer Payments,76422-DIRECT PAYMENTS TO SOCIAL SERVICES CLIENTS,"1,489.62",Revenue,13/07/2015,Social Care & Inclusion
WC58 - 0907,REDACTED,Transfer Payments,Transfer Payments,76422-DIRECT PAYMENTS TO SOCIAL SERVICES CLIENTS,489.60,Revenue,13/07/2015,Social Care & Inclusion
WC58 - 0908,REDACTED,Third Party Payments,Private Contractor Fees,74006-HOLIDAY/CHRISTMAS ALLOWANCE-FOSTER CARERS-OTH AGENCY PROVISION,256.36,Revenue,06/07/2015,Childrens
WC58 - 0909,REDACTED,Transfer Payments,Transfer Payments,76422-DIRECT PAYMENTS TO SOCIAL SERVICES CLIENTS,"1,125.97",Revenue,13/07/2015,Social Care & Inclusion
WC58 - 0910,REDACTED,Third Party Payments,Private Contractor Fees,74006-HOLIDAY/CHRISTMAS ALLOWANCE-FOSTER CARERS-OTH AGENCY PROVISION,746.96,Revenue,06/07/2015,Childrens
WC58 - 0911,REDACTED,Transfer Payments,Transfer Payments,76422-DIRECT PAYMENTS TO SOCIAL SERVICES CLIENTS,276.00,Revenue,13/07/2015,Social Care & Inclusion
WC58 - 0912,REDACTED,Transfer Payments,Transfer Payments,76422-DIRECT PAYMENTS TO SOCIAL SERVICES CLIENTS,822.16,Revenue,13/07/2015,Social Care & Inclusion
WC58 - 0913,REDACTED,Transfer Payments,Transfer Payments,76422-DIRECT PAYMENTS TO SOCIAL SERVICES CLIENTS,588.00,Revenue,13/07/2015,Social Care & Inclusion
WC58 - 0914,CHUBB FIRE & SECURITY LTD,Premises,Premises-Repairs & Maintenance,"40000-REPAIRS,ALTERATIONS & MAINTENANCE-PREM",400.00,Revenue,29/07/2015,Resources
WC58 - 0915,CHUBB FIRE & SECURITY LTD,Third Party Payments,Private Contractor Fees,73002-SECURITY-PRIV CONTRACTOR FEES,935.10,Revenue,15/07/2015,Resources
WC58 - 0916,CHUBB FIRE & SECURITY LTD,Third Party Payments,Private Contractor Fees,73002-SECURITY-PRIV CONTRACTOR FEES,"1,136.25",Revenue,20/07/2015,Resources
WC58 - 0917,CIEH,Employees,Training,30030-EXTERNAL TRAINING,"2,900.95",Revenue,13/07/2015,Economy & Environment
WC58 - 0918,REDACTED,Third Party Payments,Private Contractor Fees,73374-SUPPORTED & OTHER ACCOMMODATION,"1,452.12",Revenue,09/07/2015,Social Care & Inclusion
WC58 - 0919,CIPFA 001,Supplies & Services,Subscriptions,64500-PUBLICATIONS/ORGANISATIONS-SUBSCRIPTIONS,"1,270.00",Revenue,08/07/2015,Resources
WC58 - 0920,CIPFA 001,Supplies & Services,Subscriptions,64500-PUBLICATIONS/ORGANISATIONS-SUBSCRIPTIONS,"1,270.00",Revenue,08/07/2015,Resources
WC58 - 0921,CIPFA 001,Supplies & Services,Subscriptions,64500-PUBLICATIONS/ORGANISATIONS-SUBSCRIPTIONS,"5,450.00",Revenue,01/07/2015,Resources
WC58 - 0922,CITY & GUILDS,Supplies & Services,Other Supplies & Services,63013-EXAMINATIONS-SERVICES,"1,617.00",Revenue,08/07/2015,Resources
WC58 - 0923,CIVICA UK LIMITED,Supplies & Services,Communications & Computing,63800-COMPUTER EQUIPMENT AND SUPPLIES,"2,758.00",Revenue,14/07/2015,Resources
WC58 - 0924,CIVICA UK LIMITED,Supplies & Services,Services,63102-CONSULTANTS FEES - CORPORATE,"9,450.00",Revenue,14/07/2015,Social Care & Inclusion
WC58 - 0925,CIVICARE MIDLANDS LTD,Third Party Payments,Private Contractor Fees,73372-DOMICILIARY CARE,"34,304.16",Revenue,20/07/2015,Social Care & Inclusion
WC58 - 0926,CJP SAFETY,Supplies & Services,Services,63102-CONSULTANTS FEES - CORPORATE,"1,282.73",Revenue,13/07/2015,Childrens
WC58 - 0927,REDACTED,Transfer Payments,Transfer Payments,76422-DIRECT PAYMENTS TO SOCIAL SERVICES CLIENTS,"1,088.00",Revenue,13/07/2015,Social Care & Inclusion
WC58 - 0928,REDACTED,Transfer Payments,Transfer Payments,76422-DIRECT PAYMENTS TO SOCIAL SERVICES CLIENTS,"1,994.48",Revenue,13/07/2015,Social Care & Inclusion
WC58 - 0929,REDACTED,Transfer Payments,Transfer Payments,76422-DIRECT PAYMENTS TO SOCIAL SERVICES CLIENTS,504.90,Revenue,13/07/2015,Social Care & Inclusion
WC58 - 0930,REDACTED,Third Party Payments,Grants to Other Orgs,66505-OTHER-GRANTS TO OTHER ORGS,726.17,Revenue,17/07/2015,Childrens
WC58 - 0931,REDACTED,Third Party Payments,Grants to Other Orgs,66505-OTHER-GRANTS TO OTHER ORGS,"2,328.30",Revenue,09/07/2015,Childrens
WC58 - 0932,REDACTED,Third Party Payments,Private Contractor Fees,74006-HOLIDAY/CHRISTMAS ALLOWANCE-FOSTER CARERS-OTH AGENCY PROVISION,474.64,Revenue,06/07/2015,Childrens
WC58 - 0933,CLARES KIDDY CARE,Third Party Payments,Grants to Other Orgs,66505-OTHER-GRANTS TO OTHER ORGS,"1,378.98",Revenue,16/07/2015,Childrens
WC58 - 0934,CLEVER CHERRY LTD,Supplies & Services,Communications & Computing,63807-COMMS LINKS-COMPUTER,300.00,Revenue,16/07/2015,Resources
WC58 - 0935,CLIFFORD HOUSE FOSTERING LTD,Third Party Payments,Private Contractor Fees,74037-INDEPENDENT FOSTER CARE-OTH AGENCY PROVISION,"2,522.80",Revenue,08/07/2015,Childrens
WC58 - 0936,CLIFFORD HOUSE FOSTERING LTD,Third Party Payments,Private Contractor Fees,74037-INDEPENDENT FOSTER CARE-OTH AGENCY PROVISION,"2,949.56",Revenue,08/07/2015,Childrens
WC58 - 0937,CLIFFORD HOUSE FOSTERING LTD,Third Party Payments,Private Contractor Fees,74037-INDEPENDENT FOSTER CARE-OTH AGENCY PROVISION,"3,006.00",Revenue,08/07/2015,Childrens
WC58 - 0938,COACHWISE LIMITED,Employees,Training,30030-EXTERNAL TRAINING,412.67,Revenue,29/07/2015,Economy & Environment
WC58 - 0939,CODE GREEN LIMITED,Capital,Capital,01005-ARCHITECTS INSTRUCTION,275.00,Capital,13/07/2015,Childrens
WC58 - 0940,COGNITIVE NETWORK SOLUTIONS LTD,Supplies & Services,Communications & Computing,63800-COMPUTER EQUIPMENT AND SUPPLIES,"8,955.00",Revenue,02/07/2015,Resources
WC58 - 0941,COGNITIVE NETWORK SOLUTIONS LTD,Supplies & Services,Communications & Computing,63820-RECHARGE FOR MAINTENANCE/APPLICATION COSTS-COMPUTER,"10,509.03",Revenue,20/07/2015,Resources
WC58 - 0942,COIN A DRINK LTD,Supplies & Services,Provisions,61305-CATERING,-392.30,Revenue,08/07/2015,Resources
WC58 - 0943,COIN A DRINK LTD,Supplies & Services,Provisions,61305-CATERING,378.67,Revenue,08/07/2015,Resources
WC58 - 0944,REDACTED,Third Party Payments,Private Contractor Fees,74006-HOLIDAY/CHRISTMAS ALLOWANCE-FOSTER CARERS-OTH AGENCY PROVISION,"4,144.62",Revenue,06/07/2015,Childrens
WC58 - 0945,COMMISSION AIR LTD,Capital,Capital,01001-OTHER CONSULTANTS FEES,"2,579.00",Capital,01/07/2015,Economy & Environment
WC58 - 0946,COMMUNITY PRODUCTS (UK) LTD,Supplies & Services,"Equip,Furniture & Materials",60000-FURNITURE & EQUIPMENT,"1,250.00",Revenue,01/07/2015,Childrens
WC58 - 0947,COMPASS FOSTERING CENTRAL LIMITED,Third Party Payments,Private Contractor Fees,74037-INDEPENDENT FOSTER CARE-OTH AGENCY PROVISION,"2,250.00",Revenue,03/07/2015,Childrens
WC58 - 0948,COMPASS FOSTERING CENTRAL LIMITED,Third Party Payments,Private Contractor Fees,74037-INDEPENDENT FOSTER CARE-OTH AGENCY PROVISION,"2,448.00",Revenue,03/07/2015,Childrens
WC58 - 0949,COMPLETE CARE SERVICES,Third Party Payments,Private Contractor Fees,73372-DOMICILIARY CARE,"66,236.92",Revenue,20/07/2015,Social Care & Inclusion
WC58 - 0950,CONCRETE SPORTS LTD,Supplies & Services,"Equip,Furniture & Materials",60006-NEW-FURNITURE & EQUIPMENT,"3,500.00",Revenue,29/07/2015,Economy & Environment
WC58 - 0951,CONNOLLY MUSICAL INSTRUMENT REPAIRS,Supplies & Services,"Equip,Furniture & Materials",60008-MAINTENANCE-FURNITURE & EQUIPMENT,270.00,Revenue,06/07/2015,Economy & Environment
WC58 - 0952,COOPER MOBILE SERVICES LTD,Third Party Payments,Private Contractor Fees,73025-PROFESSIONAL SERVICES-PRIV CONTRACTOR & OTHER AGENCIES,"2,099.52",Revenue,03/07/2015,Economy & Environment
WC58 - 0953,CO-OPERATIVE FUNERAL SERVICES,Supplies & Services,Other Supplies & Services,63110-BURIAL & CREMATION-SERVICES-FEES,650.00,Revenue,01/07/2015,Economy & Environment
WC58 - 0954,COPPERDOWN RESIDENTIAL CARE HOME,Third Party Payments,Private Contractor Fees,73373-RESIDENTIAL & NURSING CARE PLACEMENTS,"1,495.44",Revenue,07/07/2015,Social Care & Inclusion
WC58 - 0955,COPPERDOWN RESIDENTIAL CARE HOME,Third Party Payments,Private Contractor Fees,73373-RESIDENTIAL & NURSING CARE PLACEMENTS,"1,529.08",Revenue,28/07/2015,Social Care & Inclusion
WC58 - 0956,CORAM.,Third Party Payments,Private Contractor Fees,74000-OTHER AGENCY FEES,"31,534.00",Revenue,15/07/2015,Childrens
WC58 - 0957,CORE ASSETS CHILDRENS SERVICES LIMITED,Supplies & Services,Services,63000-PROFESSIONAL FEES AND SERVICES,420.00,Revenue,15/07/2015,Childrens
WC58 - 0958,CORE ASSETS CHILDRENS SERVICES LIMITED,Supplies & Services,Services,63000-PROFESSIONAL FEES AND SERVICES,946.40,Revenue,06/07/2015,Childrens
WC58 - 0959,CORE ASSETS CHILDRENS SERVICES LIMITED,Supplies & Services,Services,63000-PROFESSIONAL FEES AND SERVICES,"2,450.00",Revenue,27/07/2015,Childrens
WC58 - 0960,CORE ASSETS CHILDRENS SERVICES LIMITED,Supplies & Services,Services,63000-PROFESSIONAL FEES AND SERVICES,"2,450.00",Revenue,27/07/2015,Childrens
WC58 - 0961,REDACTED,Transfer Payments,Transfer Payments,76422-DIRECT PAYMENTS TO SOCIAL SERVICES CLIENTS,250.00,Revenue,13/07/2015,Childrens
WC58 - 0962,CORY ENVIRONMENTAL (CENTRAL) LTD,Third Party Payments,Private Contractor Fees,73005-LANDFILL PTYS-PRIV CONTRACTOR FEES,300.79,Revenue,10/07/2015,Economy & Environment
WC58 - 0963,CORY ENVIRONMENTAL (CENTRAL) LTD,Third Party Payments,Private Contractor Fees,73005-LANDFILL PTYS-PRIV CONTRACTOR FEES,304.58,Revenue,13/07/2015,Economy & Environment
WC58 - 0964,CORY ENVIRONMENTAL (CENTRAL) LTD,Third Party Payments,Private Contractor Fees,73005-LANDFILL PTYS-PRIV CONTRACTOR FEES,381.58,Revenue,01/07/2015,Economy & Environment
WC58 - 0965,CORY ENVIRONMENTAL (CENTRAL) LTD,Third Party Payments,Private Contractor Fees,73039-LANDFILL TAX-PRIV CONTRACTOR FEES,"1,645.40",Revenue,10/07/2015,Economy & Environment
WC58 - 0966,CORY ENVIRONMENTAL (CENTRAL) LTD,Third Party Payments,Private Contractor Fees,73039-LANDFILL TAX-PRIV CONTRACTOR FEES,"1,666.04",Revenue,13/07/2015,Economy & Environment
WC58 - 0967,CORY ENVIRONMENTAL (CENTRAL) LTD,Third Party Payments,Private Contractor Fees,73039-LANDFILL TAX-PRIV CONTRACTOR FEES,"2,087.30",Revenue,01/07/2015,Economy & Environment
WC58 - 0968,COTSWOLD CHINE SCHOOL,Supplies & Services,Services,63000-PROFESSIONAL FEES AND SERVICES,"64,133.33",Revenue,15/07/2015,Childrens
WC58 - 0969,COUGAR,Third Party Payments,Private Contractor Fees,73002-SECURITY-PRIV CONTRACTOR FEES,300.00,Revenue,01/07/2015,Resources
WC58 - 0970,COUGAR,Third Party Payments,Private Contractor Fees,73002-SECURITY-PRIV CONTRACTOR FEES,350.00,Revenue,01/07/2015,Resources
WC58 - 0971,COUNTRYSIDE TRAINING AND TREE MANAGEMENT,Supplies & Services,"Equip,Furniture & Materials",60500-GENERAL MATERIALS,"1,495.00",Revenue,06/07/2015,Economy & Environment
WC58 - 0972,COUNTRYWIDE CARE HOMES T/A ROSE LODGE CARE HOME,Third Party Payments,Private Contractor Fees,73373-RESIDENTIAL & NURSING CARE PLACEMENTS,"2,003.56",Revenue,14/07/2015,Social Care & Inclusion
WC58 - 0973,COVENTRY AND WARWICKSHIRE PARTNERSHIP NHS TRUST,Third Party Payments,Private Contractor Fees,73375-IN PATIENT BEDS,"88,799.43",Revenue,01/07/2015,Social Care & Inclusion
WC58 - 0974,COVENTRY CITY COUNCIL,Supplies & Services,Services,63102-CONSULTANTS FEES - CORPORATE,"1,000.00",Revenue,28/07/2015,Economy & Environment
WC58 - 0975,CROFT ACADEMY,Third Party Payments,Grants to Other Orgs,66505-OTHER-GRANTS TO OTHER ORGS,"2,250.95",Revenue,07/07/2015,Childrens
WC58 - 0976,CRONER GROUP LIMITED T/A SIMPLY PERSONNEL,Capital,Capital,01006-SITE WORKS MAIN CONTRACTORS,"2,325.00",Capital,08/07/2015,Resources
WC58 - 0977,CROSBY MANAGEMENT TRAINING LTD,Third Party Payments,Grants to Other Orgs,66500-GRANTS TO OTHER ORGS,"3,750.00",Revenue,24/07/2015,Economy & Environment
WC58 - 0978,CROSS LANE CHILDRENS HOME,Third Party Payments,Private Contractor Fees,74036-EXTERNAL RESIDENTIAL CARE-OTH AGENCY PROVISION,"8,414.00",Revenue,24/07/2015,Childrens
WC58 - 0979,CROSSWAYS RESIDENTIAL HOME,Third Party Payments,Private Contractor Fees,73373-RESIDENTIAL & NURSING CARE PLACEMENTS,-383.53,Revenue,14/07/2015,Social Care & Inclusion
WC58 - 0980,CROSSWAYS RESIDENTIAL HOME,Third Party Payments,Private Contractor Fees,73373-RESIDENTIAL & NURSING CARE PLACEMENTS,"1,692.69",Revenue,21/07/2015,Social Care & Inclusion
WC58 - 0981,CROSSWAYS RESIDENTIAL HOME,Third Party Payments,Private Contractor Fees,73373-RESIDENTIAL & NURSING CARE PLACEMENTS,"1,692.69",Revenue,21/07/2015,Social Care & Inclusion
WC58 - 0982,CROSSWAYS RESIDENTIAL HOME,Third Party Payments,Private Contractor Fees,73373-RESIDENTIAL & NURSING CARE PLACEMENTS,"1,692.69",Revenue,21/07/2015,Social Care & Inclusion
WC58 - 0983,CROSSWAYS RESIDENTIAL HOME,Third Party Payments,Private Contractor Fees,73373-RESIDENTIAL & NURSING CARE PLACEMENTS,"1,736.71",Revenue,21/07/2015,Social Care & Inclusion
WC58 - 0984,CS COMMUNICATION SERVICES LTD,Supplies & Services,Communications & Computing,63601-COSTS (NOT INTERNAL RECHARGES)-TELEPHONES,914.00,Revenue,16/07/2015,Childrens
WC58 - 0985,CSCA LTD,Transport,Car Allowances,53001-OTHER/VOLUNTEERS-CAR ALLOWANCES,18.40,Revenue,03/07/2015,Childrens
WC58 - 0986,CSCA LTD,Transport,Car Allowances,53001-OTHER/VOLUNTEERS-CAR ALLOWANCES,18.40,Revenue,14/07/2015,Childrens
WC58 - 0987,CSCA LTD,Transport,Car Allowances,53001-OTHER/VOLUNTEERS-CAR ALLOWANCES,26.68,Revenue,23/07/2015,Childrens
WC58 - 0988,CSCA LTD,Transport,Car Allowances,53003-OTHER-TRAVEL ALLOWANCES,35.83,Revenue,23/07/2015,Childrens
WC58 - 0989,CSCA LTD,Transport,Car Allowances,53003-OTHER-TRAVEL ALLOWANCES,40.00,Revenue,03/07/2015,Childrens
WC58 - 0990,CSCA LTD,Transport,Car Allowances,53003-OTHER-TRAVEL ALLOWANCES,40.00,Revenue,14/07/2015,Childrens
WC58 - 0991,CSCA LTD,Third Party Payments,Private Contractor Fees,76003-SECTION 34 (CONTACT),240.00,Revenue,03/07/2015,Childrens
WC58 - 0992,CSCA LTD,Third Party Payments,Private Contractor Fees,76003-SECTION 34 (CONTACT),240.00,Revenue,14/07/2015,Childrens
WC58 - 0993,CSCA LTD,Third Party Payments,Private Contractor Fees,76003-SECTION 34 (CONTACT),296.00,Revenue,23/07/2015,Childrens
WC58 - 0994,CSCA LTD,Third Party Payments,Private Contractor Fees,76003-SECTION 34 (CONTACT),300.00,Revenue,23/07/2015,Childrens
WC58 - 0995,CSCA LTD,Third Party Payments,Private Contractor Fees,76003-SECTION 34 (CONTACT),525.00,Revenue,14/07/2015,Childrens
WC58 - 0996,CSCA LTD,Third Party Payments,Private Contractor Fees,76003-SECTION 34 (CONTACT),581.00,Revenue,03/07/2015,Childrens
WC58 - 0997,CSS (UK) LTD,Supplies & Services,"Equip,Furniture & Materials",60539-CLEANING MATERIALS,741.26,Revenue,13/07/2015,Resources
WC58 - 0998,CUNDALL JOHNSTON&PARTNERS LLP,Capital,Capital,01007-ARCHITECTS ASSISTANTS TIME,700.00,Capital,15/07/2015,Childrens
WC58 - 0999,CURLEY PHOTOGRAPHY,Employees,Other Staff Costs,32000-MISC FEES AND EXPENSES,350.00,Revenue,17/07/2015,Economy & Environment
WC58 - 1000,REDACTED,Transfer Payments,Transfer Payments,76422-DIRECT PAYMENTS TO SOCIAL SERVICES CLIENTS,"1,544.00",Revenue,13/07/2015,Social Care & Inclusion
WC58 - 1001,REDACTED,Supplies & Services,Other Supplies & Services,62515-MISCELLANEOUS SUPPLIES,540.20,Revenue,20/07/2015,Childrens
WC58 - 1002,REDACTED,Third Party Payments,Private Contractor Fees,74006-HOLIDAY/CHRISTMAS ALLOWANCE-FOSTER CARERS-OTH AGENCY PROVISION,571.44,Revenue,20/07/2015,Childrens
WC58 - 1003,REDACTED,Third Party Payments,Private Contractor Fees,74006-HOLIDAY/CHRISTMAS ALLOWANCE-FOSTER CARERS-OTH AGENCY PROVISION,650.92,Revenue,06/07/2015,Childrens
WC58 - 1004,REDACTED,Third Party Payments,Private Contractor Fees,74006-HOLIDAY/CHRISTMAS ALLOWANCE-FOSTER CARERS-OTH AGENCY PROVISION,"3,265.14",Revenue,06/07/2015,Childrens
WC58 - 1005,REDACTED,Employees,Other Staff Costs,32000-MISC FEES AND EXPENSES,409.20,Revenue,16/07/2015,Economy & Environment
WC58 - 1006,REDACTED,Third Party Payments,Private Contractor Fees,74006-HOLIDAY/CHRISTMAS ALLOWANCE-FOSTER CARERS-OTH AGENCY PROVISION,816.34,Revenue,20/07/2015,Childrens
WC58 - 1007,REDACTED,Supplies & Services,Other Supplies & Services,62515-MISCELLANEOUS SUPPLIES,"1,445.32",Revenue,20/07/2015,Childrens
WC58 - 1008,REDACTED,Third Party Payments,Private Contractor Fees,74006-HOLIDAY/CHRISTMAS ALLOWANCE-FOSTER CARERS-OTH AGENCY PROVISION,520.92,Revenue,20/07/2015,Childrens
WC58 - 1009,REDACTED,Supplies & Services,Other Supplies & Services,62515-MISCELLANEOUS SUPPLIES,540.20,Revenue,20/07/2015,Childrens
WC58 - 1010,DAISY COMMUNICATIONS,Supplies & Services,Communications & Computing,63602-COST OF RENTAL-TELEPHONES,292.40,Revenue,13/07/2015,Social Care & Inclusion
WC58 - 1011,DAISYBROOK LTD,Supplies & Services,Services,63000-PROFESSIONAL FEES AND SERVICES,"3,283.00",Revenue,21/07/2015,Childrens
WC58 - 1012,REDACTED,Transfer Payments,Transfer Payments,76422-DIRECT PAYMENTS TO SOCIAL SERVICES CLIENTS,"1,492.80",Revenue,13/07/2015,Social Care & Inclusion
WC58 - 1013,REDACTED,Transfer Payments,Transfer Payments,76422-DIRECT PAYMENTS TO SOCIAL SERVICES CLIENTS,"1,622.36",Revenue,13/07/2015,Social Care & Inclusion
WC58 - 1014,REDACTED,Transfer Payments,Transfer Payments,76422-DIRECT PAYMENTS TO SOCIAL SERVICES CLIENTS,906.36,Revenue,13/07/2015,Childrens
WC58 - 1015,REDACTED,Transfer Payments,Transfer Payments,76422-DIRECT PAYMENTS TO SOCIAL SERVICES CLIENTS,"1,890.00",Revenue,13/07/2015,Social Care & Inclusion
WC58 - 1016,REDACTED,Transfer Payments,Transfer Payments,76422-DIRECT PAYMENTS TO SOCIAL SERVICES CLIENTS,755.30,Revenue,13/07/2015,Social Care & Inclusion
WC58 - 1017,REDACTED,Transfer Payments,Transfer Payments,76422-DIRECT PAYMENTS TO SOCIAL SERVICES CLIENTS,923.48,Revenue,13/07/2015,Social Care & Inclusion
WC58 - 1018,DANSHELL GROUP,Third Party Payments,Private Contractor Fees,73373-RESIDENTIAL & NURSING CARE PLACEMENTS,"-6,571.43",Revenue,07/07/2015,Social Care & Inclusion
WC58 - 1019,DARLASTON FELLOWSHIP DISABLED,Transport,Hire,52000-WITH DRIVER-HIRE OF VEHICLES,430.00,Revenue,01/07/2015,Childrens
WC58 - 1020,DARLASTON FELLOWSHIP DISABLED,Transport,Hire,52000-WITH DRIVER-HIRE OF VEHICLES,430.00,Revenue,01/07/2015,Childrens
WC58 - 1021,DARLASTON FELLOWSHIP DISABLED,Transport,Hire,52000-WITH DRIVER-HIRE OF VEHICLES,430.00,Revenue,01/07/2015,Childrens
WC58 - 1022,DARLASTON FELLOWSHIP DISABLED,Transport,Hire,52000-WITH DRIVER-HIRE OF VEHICLES,430.00,Revenue,15/07/2015,Childrens
WC58 - 1023,DARLASTON FELLOWSHIP DISABLED,Transport,Hire,52000-WITH DRIVER-HIRE OF VEHICLES,430.00,Revenue,15/07/2015,Childrens
WC58 - 1024,DARLASTON FELLOWSHIP DISABLED,Transport,Hire,52000-WITH DRIVER-HIRE OF VEHICLES,430.00,Revenue,15/07/2015,Childrens
WC58 - 1025,DARLASTON FELLOWSHIP DISABLED,Transport,Hire,52000-WITH DRIVER-HIRE OF VEHICLES,430.00,Revenue,20/07/2015,Childrens
WC58 - 1026,DARLASTON FELLOWSHIP DISABLED,Transport,Hire,52000-WITH DRIVER-HIRE OF VEHICLES,430.00,Revenue,20/07/2015,Childrens
WC58 - 1027,DARLASTON FELLOWSHIP DISABLED,Transport,Hire,52000-WITH DRIVER-HIRE OF VEHICLES,430.00,Revenue,20/07/2015,Childrens
WC58 - 1028,DARLASTON FELLOWSHIP DISABLED,Transport,Hire,52000-WITH DRIVER-HIRE OF VEHICLES,430.00,Revenue,29/07/2015,Childrens
WC58 - 1029,DARLASTON FELLOWSHIP DISABLED,Transport,Hire,52000-WITH DRIVER-HIRE OF VEHICLES,430.00,Revenue,29/07/2015,Childrens
WC58 - 1030,DARLASTON FELLOWSHIP DISABLED,Transport,Hire,52000-WITH DRIVER-HIRE OF VEHICLES,430.00,Revenue,29/07/2015,Childrens
WC58 - 1031,DARLASTON FELLOWSHIP DISABLED,Transport,Hire,52000-WITH DRIVER-HIRE OF VEHICLES,460.00,Revenue,01/07/2015,Childrens
WC58 - 1032,DARLASTON FELLOWSHIP DISABLED,Transport,Hire,52000-WITH DRIVER-HIRE OF VEHICLES,460.00,Revenue,15/07/2015,Childrens
WC58 - 1033,DARLASTON FELLOWSHIP DISABLED,Transport,Hire,52000-WITH DRIVER-HIRE OF VEHICLES,460.00,Revenue,20/07/2015,Childrens
WC58 - 1034,DARLASTON FELLOWSHIP DISABLED,Transport,Hire,52000-WITH DRIVER-HIRE OF VEHICLES,460.00,Revenue,29/07/2015,Childrens
WC58 - 1035,DARLASTON FELLOWSHIP DISABLED,Transport,Hire,52000-WITH DRIVER-HIRE OF VEHICLES,550.00,Revenue,01/07/2015,Childrens
WC58 - 1036,DARLASTON FELLOWSHIP DISABLED,Transport,Hire,52000-WITH DRIVER-HIRE OF VEHICLES,550.00,Revenue,15/07/2015,Childrens
WC58 - 1037,DARLASTON FELLOWSHIP DISABLED,Transport,Hire,52000-WITH DRIVER-HIRE OF VEHICLES,550.00,Revenue,20/07/2015,Childrens
WC58 - 1038,DARLASTON FELLOWSHIP DISABLED,Transport,Hire,52000-WITH DRIVER-HIRE OF VEHICLES,550.00,Revenue,29/07/2015,Childrens
WC58 - 1039,DARLASTON FELLOWSHIP DISABLED,Transport,Hire,52000-WITH DRIVER-HIRE OF VEHICLES,560.00,Revenue,01/07/2015,Childrens
WC58 - 1040,DARLASTON FELLOWSHIP DISABLED,Transport,Hire,52000-WITH DRIVER-HIRE OF VEHICLES,560.00,Revenue,15/07/2015,Childrens
WC58 - 1041,DARLASTON FELLOWSHIP DISABLED,Transport,Hire,52000-WITH DRIVER-HIRE OF VEHICLES,560.00,Revenue,20/07/2015,Childrens
WC58 - 1042,DARLASTON FELLOWSHIP DISABLED,Transport,Hire,52000-WITH DRIVER-HIRE OF VEHICLES,560.00,Revenue,29/07/2015,Childrens
WC58 - 1043,REDACTED,Transfer Payments,Transfer Payments,76422-DIRECT PAYMENTS TO SOCIAL SERVICES CLIENTS,595.00,Revenue,13/07/2015,Social Care & Inclusion
WC58 - 1044,REDACTED,Transfer Payments,Transfer Payments,76422-DIRECT PAYMENTS TO SOCIAL SERVICES CLIENTS,251.84,Revenue,13/07/2015,Social Care & Inclusion
WC58 - 1045,REDACTED,Transfer Payments,Transfer Payments,76422-DIRECT PAYMENTS TO SOCIAL SERVICES CLIENTS,338.38,Revenue,13/07/2015,Social Care & Inclusion
WC58 - 1046,REDACTED,Transfer Payments,Transfer Payments,76422-DIRECT PAYMENTS TO SOCIAL SERVICES CLIENTS,"6,123.61",Revenue,13/07/2015,Social Care & Inclusion
WC58 - 1047,DATATANK LIMITED,Transfer Payments,Transfer Payments,76423-DIRECT PAYMENTS SUPPORT,"5,852.00",Revenue,07/07/2015,Resources
WC58 - 1048,REDACTED,Transfer Payments,Transfer Payments,76000-TRANSFER PAYMENTS - SOCIAL SERVICES CLIENTS,464.00,Revenue,07/07/2015,Childrens
WC58 - 1049,REDACTED,Transfer Payments,Transfer Payments,76000-TRANSFER PAYMENTS - SOCIAL SERVICES CLIENTS,464.00,Revenue,21/07/2015,Childrens
WC58 - 1050,REDACTED,Supplies & Services,Other Supplies & Services,62515-MISCELLANEOUS SUPPLIES,706.76,Revenue,20/07/2015,Childrens
WC58 - 1051,REDACTED,Third Party Payments,Private Contractor Fees,74006-HOLIDAY/CHRISTMAS ALLOWANCE-FOSTER CARERS-OTH AGENCY PROVISION,985.76,Revenue,20/07/2015,Childrens
WC58 - 1052,REDACTED,Transfer Payments,Transfer Payments,76422-DIRECT PAYMENTS TO SOCIAL SERVICES CLIENTS,"1,617.56",Revenue,13/07/2015,Social Care & Inclusion
WC58 - 1053,REDACTED,Supplies & Services,Other Supplies & Services,62515-MISCELLANEOUS SUPPLIES,540.20,Revenue,20/07/2015,Childrens
WC58 - 1054,REDACTED,Third Party Payments,Private Contractor Fees,74006-HOLIDAY/CHRISTMAS ALLOWANCE-FOSTER CARERS-OTH AGENCY PROVISION,985.76,Revenue,20/07/2015,Childrens
WC58 - 1055,REDACTED,Transfer Payments,Transfer Payments,76422-DIRECT PAYMENTS TO SOCIAL SERVICES CLIENTS,"1,054.00",Revenue,13/07/2015,Social Care & Inclusion
WC58 - 1056,REDACTED,Transfer Payments,Transfer Payments,76422-DIRECT PAYMENTS TO SOCIAL SERVICES CLIENTS,"1,071.00",Revenue,13/07/2015,Social Care & Inclusion
WC58 - 1057,REDACTED,Transfer Payments,Transfer Payments,76422-DIRECT PAYMENTS TO SOCIAL SERVICES CLIENTS,"1,584.00",Revenue,13/07/2015,Social Care & Inclusion
WC58 - 1058,REDACTED,Third Party Payments,Private Contractor Fees,73374-SUPPORTED & OTHER ACCOMMODATION,525.66,Revenue,02/07/2015,Social Care & Inclusion
WC58 - 1059,REDACTED,Transfer Payments,Transfer Payments,76422-DIRECT PAYMENTS TO SOCIAL SERVICES CLIENTS,519.24,Revenue,13/07/2015,Social Care & Inclusion
WC58 - 1060,REDACTED,Transfer Payments,Transfer Payments,76422-DIRECT PAYMENTS TO SOCIAL SERVICES CLIENTS,"1,242.50",Revenue,13/07/2015,Social Care & Inclusion
WC58 - 1061,REDACTED,Transfer Payments,Transfer Payments,76422-DIRECT PAYMENTS TO SOCIAL SERVICES CLIENTS,"2,280.68",Revenue,13/07/2015,Social Care & Inclusion
WC58 - 1062,REDACTED,Transfer Payments,Transfer Payments,76422-DIRECT PAYMENTS TO SOCIAL SERVICES CLIENTS,880.00,Revenue,13/07/2015,Social Care & Inclusion
WC58 - 1063,REDACTED,Transfer Payments,Transfer Payments,76422-DIRECT PAYMENTS TO SOCIAL SERVICES CLIENTS,437.00,Revenue,13/07/2015,Social Care & Inclusion
WC58 - 1064,DAWNUS CONSTRUCTION LTD,Capital,Capital,01001-OTHER CONSULTANTS FEES,"1,051,581.27",Capital,20/07/2015,Economy & Environment
WC58 - 1065,DCRS,Supplies & Services,Services,63102-CONSULTANTS FEES - CORPORATE,"20,304.00",Revenue,01/07/2015,Economy & Environment
WC58 - 1066,REDACTED,Supplies & Services,Other Supplies & Services,62515-MISCELLANEOUS SUPPLIES,540.20,Revenue,20/07/2015,Childrens
WC58 - 1067,REDACTED,Third Party Payments,Private Contractor Fees,74006-HOLIDAY/CHRISTMAS ALLOWANCE-FOSTER CARERS-OTH AGENCY PROVISION,"1,215.48",Revenue,20/07/2015,Childrens
WC58 - 1068,REDACTED,Supplies & Services,Other Supplies & Services,62515-MISCELLANEOUS SUPPLIES,540.20,Revenue,20/07/2015,Childrens
WC58 - 1069,REDACTED,Third Party Payments,Private Contractor Fees,74006-HOLIDAY/CHRISTMAS ALLOWANCE-FOSTER CARERS-OTH AGENCY PROVISION,714.30,Revenue,20/07/2015,Childrens
WC58 - 1070,REDACTED,Third Party Payments,Grants to Other Orgs,66505-OTHER-GRANTS TO OTHER ORGS,776.10,Revenue,09/07/2015,Childrens
WC58 - 1071,REDACTED,Third Party Payments,Private Contractor Fees,74006-HOLIDAY/CHRISTMAS ALLOWANCE-FOSTER CARERS-OTH AGENCY PROVISION,732.29,Revenue,06/07/2015,Childrens
WC58 - 1072,REDACTED,Supplies & Services,Other Supplies & Services,62515-MISCELLANEOUS SUPPLIES,925.00,Revenue,20/07/2015,Childrens
WC58 - 1073,REDACTED,Third Party Payments,Private Contractor Fees,74006-HOLIDAY/CHRISTMAS ALLOWANCE-FOSTER CARERS-OTH AGENCY PROVISION,"2,191.86",Revenue,20/07/2015,Childrens
WC58 - 1074,REDACTED,Transfer Payments,Transfer Payments,76422-DIRECT PAYMENTS TO SOCIAL SERVICES CLIENTS,"1,840.22",Revenue,13/07/2015,Social Care & Inclusion
WC58 - 1075,REDACTED,Supplies & Services,Services,63102-CONSULTANTS FEES - CORPORATE,600.00,Revenue,29/07/2015,Childrens
WC58 - 1076,DELL COMPUTER CORPORATION LTD,Supplies & Services,Communications & Computing,63820-RECHARGE FOR MAINTENANCE/APPLICATION COSTS-COMPUTER,"2,426.00",Revenue,22/07/2015,Resources
WC58 - 1077,REDACTED,Transfer Payments,Transfer Payments,76422-DIRECT PAYMENTS TO SOCIAL SERVICES CLIENTS,575.40,Revenue,13/07/2015,Social Care & Inclusion
WC58 - 1078,REDACTED,Transfer Payments,Transfer Payments,76422-DIRECT PAYMENTS TO SOCIAL SERVICES CLIENTS,"1,530.00",Revenue,13/07/2015,Social Care & Inclusion
WC58 - 1079,DENMANS ELECTRICAL WHOLESALERS LIMITED,Capital,Capital,01044-PURCHASE OF FURNITURE & EQUIPMENT,"2,499.90",Capital,29/07/2015,Economy & Environment
WC58 - 1080,DENT & PARTNERS LIMITED,Capital,Capital,01006-SITE WORKS MAIN CONTRACTORS,"39,832.00",Capital,07/07/2015,Resources
WC58 - 1081,DEP HEALTH & SAFETY LIMITED,Third Party Payments,Private Contractor Fees,73025-PROFESSIONAL SERVICES-PRIV CONTRACTOR & OTHER AGENCIES,900.00,Revenue,03/07/2015,Resources
WC58 - 1082,REDACTED,Transfer Payments,Transfer Payments,76422-DIRECT PAYMENTS TO SOCIAL SERVICES CLIENTS,492.00,Revenue,13/07/2015,Social Care & Inclusion
WC58 - 1083,REDACTED,Transfer Payments,Transfer Payments,76422-DIRECT PAYMENTS TO SOCIAL SERVICES CLIENTS,820.04,Revenue,13/07/2015,Social Care & Inclusion
WC58 - 1084,REDACTED,Transfer Payments,Transfer Payments,76422-DIRECT PAYMENTS TO SOCIAL SERVICES CLIENTS,416.16,Revenue,13/07/2015,Social Care & Inclusion
WC58 - 1085,DERWEN COLLEGE,Third Party Payments,Private Contractor Fees,73374-SUPPORTED & OTHER ACCOMMODATION,"6,136.00",Revenue,20/07/2015,Social Care & Inclusion
WC58 - 1086,DERWEN COLLEGE,Third Party Payments,Private Contractor Fees,73374-SUPPORTED & OTHER ACCOMMODATION,"8,000.00",Revenue,20/07/2015,Social Care & Inclusion
WC58 - 1087,DERWEN COLLEGE,Third Party Payments,Private Contractor Fees,73374-SUPPORTED & OTHER ACCOMMODATION,"8,000.00",Revenue,20/07/2015,Social Care & Inclusion
WC58 - 1088,DFPTV,Supplies & Services,Communications & Computing,68001-PUBLICITY & ADVERTISING (NOT STAFF ADVERTISING),"4,995.00",Revenue,27/07/2015,Resources
WC58 - 1089,REDACTED,Third Party Payments,Private Contractor Fees,74006-HOLIDAY/CHRISTMAS ALLOWANCE-FOSTER CARERS-OTH AGENCY PROVISION,425.08,Revenue,06/07/2015,Childrens
WC58 - 1090,REDACTED,Third Party Payments,Private Contractor Fees,74006-HOLIDAY/CHRISTMAS ALLOWANCE-FOSTER CARERS-OTH AGENCY PROVISION,"1,142.88",Revenue,20/07/2015,Childrens
WC58 - 1091,REDACTED,Supplies & Services,Other Supplies & Services,62515-MISCELLANEOUS SUPPLIES,"1,445.32",Revenue,20/07/2015,Childrens
WC58 - 1092,REDACTED,Transfer Payments,Transfer Payments,76422-DIRECT PAYMENTS TO SOCIAL SERVICES CLIENTS,500.00,Revenue,13/07/2015,Social Care & Inclusion
WC58 - 1093,REDACTED,Transfer Payments,Transfer Payments,76422-DIRECT PAYMENTS TO SOCIAL SERVICES CLIENTS,"1,035.62",Revenue,13/07/2015,Social Care & Inclusion
WC58 - 1094,REDACTED,Supplies & Services,Other Supplies & Services,62515-MISCELLANEOUS SUPPLIES,"1,565.05",Revenue,20/07/2015,Childrens
WC58 - 1095,REDACTED,Third Party Payments,Private Contractor Fees,74006-HOLIDAY/CHRISTMAS ALLOWANCE-FOSTER CARERS-OTH AGENCY PROVISION,"2,331.67",Revenue,20/07/2015,Childrens
WC58 - 1096,DIGITAL IMAGING SERVICES LTD,Third Party Payments,Private Contractor Fees,73025-PROFESSIONAL SERVICES-PRIV CONTRACTOR & OTHER AGENCIES,"2,495.00",Revenue,24/07/2015,Economy & Environment
WC58 - 1097,DIMENSIONS (UK) LTD,Third Party Payments,Private Contractor Fees,73373-RESIDENTIAL & NURSING CARE PLACEMENTS,"5,960.90",Revenue,14/07/2015,Social Care & Inclusion
WC58 - 1098,REDACTED,Third Party Payments,Private Contractor Fees,76002-SUPPORT UNDER SECTION 23 OF THE CHILDRENS ACT,20.00,Revenue,08/07/2015,Childrens
WC58 - 1099,REDACTED,Third Party Payments,Private Contractor Fees,76003-SECTION 34 (CONTACT),605.02,Revenue,08/07/2015,Childrens
WC58 - 1100,DISCLOSURE & BARRING SERVICE,Supplies & Services,Other Supplies & Services,63103-CRIMINAL RECORDS BUREAU-SERVICES-FEES,"17,290.00",Revenue,14/07/2015,Resources
WC58 - 1101,DLH (VISUAL COMMUNICATIONS SOLUTIONS),Supplies & Services,Services,63000-PROFESSIONAL FEES AND SERVICES,350.00,Revenue,06/07/2015,Childrens
WC58 - 1102,DOLPHIN LTD,Capital,Capital,01006-SITE WORKS MAIN CONTRACTORS,270.00,Capital,13/07/2015,Resources
WC58 - 1103,DOLPHIN LTD,Capital,Capital,01006-SITE WORKS MAIN CONTRACTORS,330.00,Capital,01/07/2015,Resources
WC58 - 1104,DOLPHIN LTD,Capital,Capital,01045-PRIVATE GRANTS,360.98,Capital,28/07/2015,Resources
WC58 - 1105,DOLPHIN LTD,Capital,Capital,01006-SITE WORKS MAIN CONTRACTORS,462.00,Capital,09/07/2015,Resources
WC58 - 1106,DOLPHIN LTD,Capital,Capital,01006-SITE WORKS MAIN CONTRACTORS,528.00,Capital,15/07/2015,Resources
WC58 - 1107,DOLPHIN LTD,Capital,Capital,01006-SITE WORKS MAIN CONTRACTORS,540.00,Capital,15/07/2015,Resources
WC58 - 1108,DOLPHIN LTD,Capital,Capital,01006-SITE WORKS MAIN CONTRACTORS,550.00,Capital,01/07/2015,Resources
WC58 - 1109,DOLPHIN LTD,Capital,Capital,01006-SITE WORKS MAIN CONTRACTORS,550.00,Capital,27/07/2015,Resources
WC58 - 1110,DOLPHIN LTD,Capital,Capital,01006-SITE WORKS MAIN CONTRACTORS,641.30,Capital,15/07/2015,Resources
WC58 - 1111,DOLPHIN LTD,Capital,Capital,01006-SITE WORKS MAIN CONTRACTORS,660.00,Capital,01/07/2015,Resources
WC58 - 1112,DOLPHIN LTD,Capital,Capital,01006-SITE WORKS MAIN CONTRACTORS,858.00,Capital,13/07/2015,Resources
WC58 - 1113,DOLPHIN LTD,Capital,Capital,01045-PRIVATE GRANTS,900.00,Capital,08/07/2015,Resources
WC58 - 1114,DOLPHIN LTD,Capital,Capital,01045-PRIVATE GRANTS,900.00,Capital,13/07/2015,Resources
WC58 - 1115,DOLPHIN LTD,Capital,Capital,01045-PRIVATE GRANTS,900.00,Capital,28/07/2015,Resources
WC58 - 1116,DOLPHIN LTD,Capital,Capital,01045-PRIVATE GRANTS,991.20,Capital,01/07/2015,Resources
WC58 - 1117,DOLPHIN LTD,Capital,Capital,01045-PRIVATE GRANTS,"1,086.06",Capital,13/07/2015,Resources
WC58 - 1118,DOLPHIN LTD,Capital,Capital,01006-SITE WORKS MAIN CONTRACTORS,"1,473.60",Capital,09/07/2015,Resources
WC58 - 1119,DOLPHIN LTD,Capital,Capital,01006-SITE WORKS MAIN CONTRACTORS,"1,701.60",Capital,09/07/2015,Resources
WC58 - 1120,DOLPHIN LTD,Capital,Capital,01045-PRIVATE GRANTS,"2,695.00",Capital,15/07/2015,Resources
WC58 - 1121,DOLPHIN LTD,Capital,Capital,01045-PRIVATE GRANTS,"2,695.00",Capital,22/07/2015,Resources
WC58 - 1122,DOLPHIN LTD,Capital,Capital,01045-PRIVATE GRANTS,"2,795.00",Capital,22/07/2015,Resources
WC58 - 1123,DOLPHIN LTD,Capital,Capital,01045-PRIVATE GRANTS,"2,820.40",Capital,13/07/2015,Resources
WC58 - 1124,DOLPHIN LTD,Capital,Capital,01045-PRIVATE GRANTS,"2,895.00",Capital,01/07/2015,Resources
WC58 - 1125,DOLPHIN LTD,Capital,Capital,01045-PRIVATE GRANTS,"3,120.40",Capital,13/07/2015,Resources
WC58 - 1126,DOLPHIN LTD,Capital,Capital,01045-PRIVATE GRANTS,"3,245.00",Capital,13/07/2015,Resources
WC58 - 1127,DOLPHIN LTD,Capital,Capital,01045-PRIVATE GRANTS,"3,295.00",Capital,01/07/2015,Resources
WC58 - 1128,DOLPHIN LTD,Capital,Capital,01006-SITE WORKS MAIN CONTRACTORS,"4,015.20",Capital,13/07/2015,Resources
WC58 - 1129,DOLPHIN LTD,Capital,Capital,01006-SITE WORKS MAIN CONTRACTORS,"9,236.05",Capital,22/07/2015,Resources
WC58 - 1130,REDACTED,Transfer Payments,Transfer Payments,76422-DIRECT PAYMENTS TO SOCIAL SERVICES CLIENTS,"5,854.60",Revenue,13/07/2015,Social Care & Inclusion
WC58 - 1131,REDACTED,Third Party Payments,Private Contractor Fees,74006-HOLIDAY/CHRISTMAS ALLOWANCE-FOSTER CARERS-OTH AGENCY PROVISION,672.20,Revenue,06/07/2015,Childrens
WC58 - 1132,REDACTED,Transfer Payments,Transfer Payments,76422-DIRECT PAYMENTS TO SOCIAL SERVICES CLIENTS,"1,800.00",Revenue,13/07/2015,Social Care & Inclusion
WC58 - 1133,REDACTED,Third Party Payments,Private Contractor Fees,74006-HOLIDAY/CHRISTMAS ALLOWANCE-FOSTER CARERS-OTH AGENCY PROVISION,"1,336.12",Revenue,06/07/2015,Childrens
WC58 - 1134,REDACTED,Transfer Payments,Transfer Payments,76422-DIRECT PAYMENTS TO SOCIAL SERVICES CLIENTS,679.20,Revenue,13/07/2015,Social Care & Inclusion
WC58 - 1135,REDACTED,Transfer Payments,Transfer Payments,76422-DIRECT PAYMENTS TO SOCIAL SERVICES CLIENTS,506.00,Revenue,13/07/2015,Social Care & Inclusion
WC58 - 1136,REDACTED,Transfer Payments,Transfer Payments,76422-DIRECT PAYMENTS TO SOCIAL SERVICES CLIENTS,616.00,Revenue,13/07/2015,Social Care & Inclusion
WC58 - 1137,REDACTED,Transfer Payments,Transfer Payments,76422-DIRECT PAYMENTS TO SOCIAL SERVICES CLIENTS,629.00,Revenue,13/07/2015,Social Care & Inclusion
WC58 - 1138,REDACTED,Transfer Payments,Transfer Payments,76422-DIRECT PAYMENTS TO SOCIAL SERVICES CLIENTS,"1,416.00",Revenue,13/07/2015,Social Care & Inclusion
WC58 - 1139,REDACTED,Transfer Payments,Transfer Payments,76422-DIRECT PAYMENTS TO SOCIAL SERVICES CLIENTS,625.56,Revenue,13/07/2015,Social Care & Inclusion
WC58 - 1140,REDACTED,Transfer Payments,Transfer Payments,76422-DIRECT PAYMENTS TO SOCIAL SERVICES CLIENTS,700.40,Revenue,13/07/2015,Social Care & Inclusion
WC58 - 1141,REDACTED,Transfer Payments,Transfer Payments,76422-DIRECT PAYMENTS TO SOCIAL SERVICES CLIENTS,"1,349.88",Revenue,13/07/2015,Social Care & Inclusion
WC58 - 1142,DOVEDALE COURT CARE HOME,Third Party Payments,Private Contractor Fees,73373-RESIDENTIAL & NURSING CARE PLACEMENTS,"1,527.60",Revenue,28/07/2015,Social Care & Inclusion
WC58 - 1143,REDACTED,Supplies & Services,Services,63000-PROFESSIONAL FEES AND SERVICES,"2,262.00",Revenue,14/07/2015,Social Care & Inclusion
WC58 - 1144,REDACTED,Supplies & Services,Services,63102-CONSULTANTS FEES - CORPORATE,440.00,Revenue,27/07/2015,Childrens
WC58 - 1145,REDACTED,Supplies & Services,Services,63000-PROFESSIONAL FEES AND SERVICES,"1,740.00",Revenue,14/07/2015,Social Care & Inclusion
WC58 - 1146,REDACTED,Supplies & Services,Services,63000-PROFESSIONAL FEES AND SERVICES,276.90,Revenue,23/07/2015,Economy & Environment
WC58 - 1147,REDACTED,Third Party Payments,Private Contractor Fees,73014-LEGAL FEES-PRIV CONTRACTOR FEES,-479.60,Revenue,13/07/2015,Childrens
WC58 - 1148,REDACTED,Third Party Payments,Private Contractor Fees,73014-LEGAL FEES-PRIV CONTRACTOR FEES,-479.60,Revenue,13/07/2015,Childrens
WC58 - 1149,REDACTED,Supplies & Services,Services,63000-PROFESSIONAL FEES AND SERVICES,803.00,Revenue,02/07/2015,Economy & Environment
WC58 - 1150,REDACTED,Supplies & Services,Services,63102-CONSULTANTS FEES - CORPORATE,"6,500.00",Revenue,14/07/2015,Economy & Environment
WC58 - 1151,REDACTED,Supplies & Services,Services,63000-PROFESSIONAL FEES AND SERVICES,"3,306.00",Revenue,14/07/2015,Social Care & Inclusion
WC58 - 1152,REDACTED,Supplies & Services,Services,63000-PROFESSIONAL FEES AND SERVICES,696.00,Revenue,15/07/2015,Social Care & Inclusion
WC58 - 1153,REDACTED,Transfer Payments,Transfer Payments,76422-DIRECT PAYMENTS TO SOCIAL SERVICES CLIENTS,550.00,Revenue,13/07/2015,Social Care & Inclusion
WC58 - 1154,REDACTED,Supplies & Services,Services,63000-PROFESSIONAL FEES AND SERVICES,"5,220.00",Revenue,14/07/2015,Social Care & Inclusion
WC58 - 1155,REDACTED,Supplies & Services,Services,63000-PROFESSIONAL FEES AND SERVICES,348.00,Revenue,15/07/2015,Social Care & Inclusion
WC58 - 1156,REDACTED,Supplies & Services,Services,63000-PROFESSIONAL FEES AND SERVICES,595.90,Revenue,23/07/2015,Economy & Environment
WC58 - 1157,REDACTED,Supplies & Services,Services,63000-PROFESSIONAL FEES AND SERVICES,"1,509.90",Revenue,23/07/2015,Economy & Environment
WC58 - 1158,DRAKE COURT RESIDENTIAL HOME,Third Party Payments,Private Contractor Fees,73373-RESIDENTIAL & NURSING CARE PLACEMENTS,417.26,Revenue,07/07/2015,Social Care & Inclusion
WC58 - 1159,DRAKE COURT RESIDENTIAL HOME,Third Party Payments,Private Contractor Fees,73373-RESIDENTIAL & NURSING CARE PLACEMENTS,"1,490.96",Revenue,28/07/2015,Social Care & Inclusion
WC58 - 1160,DRAKE COURT RESIDENTIAL HOME,Third Party Payments,Private Contractor Fees,73373-RESIDENTIAL & NURSING CARE PLACEMENTS,"1,490.96",Revenue,28/07/2015,Social Care & Inclusion
WC58 - 1161,DRAKE COURT RESIDENTIAL HOME,Third Party Payments,Private Contractor Fees,73373-RESIDENTIAL & NURSING CARE PLACEMENTS,"1,490.96",Revenue,28/07/2015,Social Care & Inclusion
WC58 - 1162,DRAKE COURT RESIDENTIAL HOME,Third Party Payments,Private Contractor Fees,73373-RESIDENTIAL & NURSING CARE PLACEMENTS,"1,490.96",Revenue,28/07/2015,Social Care & Inclusion
WC58 - 1163,DRAKE COURT RESIDENTIAL HOME,Third Party Payments,Private Contractor Fees,73373-RESIDENTIAL & NURSING CARE PLACEMENTS,"1,493.24",Revenue,28/07/2015,Social Care & Inclusion
WC58 - 1164,DRAKE COURT RESIDENTIAL HOME,Third Party Payments,Private Contractor Fees,73373-RESIDENTIAL & NURSING CARE PLACEMENTS,"1,493.24",Revenue,28/07/2015,Social Care & Inclusion
WC58 - 1165,DRAKE COURT RESIDENTIAL HOME,Third Party Payments,Private Contractor Fees,73373-RESIDENTIAL & NURSING CARE PLACEMENTS,"1,493.24",Revenue,28/07/2015,Social Care & Inclusion
WC58 - 1166,DRAKE COURT RESIDENTIAL HOME,Third Party Payments,Private Contractor Fees,73373-RESIDENTIAL & NURSING CARE PLACEMENTS,"1,493.24",Revenue,28/07/2015,Social Care & Inclusion
WC58 - 1167,DRAKE COURT RESIDENTIAL HOME,Third Party Payments,Private Contractor Fees,73373-RESIDENTIAL & NURSING CARE PLACEMENTS,"1,493.24",Revenue,28/07/2015,Social Care & Inclusion
WC58 - 1168,DRAKE COURT RESIDENTIAL HOME,Third Party Payments,Private Contractor Fees,73373-RESIDENTIAL & NURSING CARE PLACEMENTS,"1,493.24",Revenue,28/07/2015,Social Care & Inclusion
WC58 - 1169,DRAKE COURT RESIDENTIAL HOME,Third Party Payments,Private Contractor Fees,73373-RESIDENTIAL & NURSING CARE PLACEMENTS,"1,493.24",Revenue,28/07/2015,Social Care & Inclusion
WC58 - 1170,DRAKE COURT RESIDENTIAL HOME,Third Party Payments,Private Contractor Fees,73373-RESIDENTIAL & NURSING CARE PLACEMENTS,"1,493.24",Revenue,28/07/2015,Social Care & Inclusion
WC58 - 1171,DRAKE COURT RESIDENTIAL HOME,Third Party Payments,Private Contractor Fees,73373-RESIDENTIAL & NURSING CARE PLACEMENTS,"1,493.24",Revenue,28/07/2015,Social Care & Inclusion
WC58 - 1172,DRAKE COURT RESIDENTIAL HOME,Third Party Payments,Private Contractor Fees,73373-RESIDENTIAL & NURSING CARE PLACEMENTS,"1,555.80",Revenue,28/07/2015,Social Care & Inclusion
WC58 - 1173,DRAKE COURT RESIDENTIAL HOME,Third Party Payments,Private Contractor Fees,73373-RESIDENTIAL & NURSING CARE PLACEMENTS,"1,555.80",Revenue,28/07/2015,Social Care & Inclusion
WC58 - 1174,DRAKE COURT RESIDENTIAL HOME,Third Party Payments,Private Contractor Fees,73373-RESIDENTIAL & NURSING CARE PLACEMENTS,"1,575.04",Revenue,28/07/2015,Social Care & Inclusion
WC58 - 1175,DRAKE COURT RESIDENTIAL HOME,Third Party Payments,Private Contractor Fees,73373-RESIDENTIAL & NURSING CARE PLACEMENTS,"1,575.04",Revenue,28/07/2015,Social Care & Inclusion
WC58 - 1176,DRAKE COURT RESIDENTIAL HOME,Third Party Payments,Private Contractor Fees,73373-RESIDENTIAL & NURSING CARE PLACEMENTS,"2,399.23",Revenue,07/07/2015,Social Care & Inclusion
WC58 - 1177,DUDLEY & WALSALL MENTAL HEALTH PARTNERSHIP NHS TRUST,Third Party Payments,Joint Arrangements,71007-CONTRIBUTION TO PCT,"64,790.25",Revenue,13/07/2015,Social Care & Inclusion
WC58 - 1178,DUDLEY & WALSALL MENTAL HEALTH PARTNERSHIP NHS TRUST,Supplies & Services,Services,63000-PROFESSIONAL FEES AND SERVICES,"130,411.00",Revenue,09/07/2015,Economy & Environment
WC58 - 1179,DUDLEY COLLEGE,Third Party Payments,Grants to Other Orgs,66500-GRANTS TO OTHER ORGS,"2,250.00",Revenue,24/07/2015,Economy & Environment
WC58 - 1180,DUDLEY COLLEGE,Capital,Capital,01045-PRIVATE GRANTS,"221,068.19",Capital,03/07/2015,Economy & Environment
WC58 - 1181,DUDLEY MBC,Supplies & Services,Services,63000-PROFESSIONAL FEES AND SERVICES,"4,160.00",Revenue,16/07/2015,Childrens
WC58 - 1182,DUDLEY MBC,Transfer Payments,Transfer Payments,78007-TRANSFER PAYMENTS TO LOCAL AUTHORITIES,"5,000.00",Revenue,27/07/2015,Resources
WC58 - 1183,DUDLEY MBC,Third Party Payments,Grants to Other Orgs,66502-TOP UP FUNDING -GRANTS TO SCHOOLS,"8,798.77",Revenue,06/07/2015,Childrens
WC58 - 1184,DUDLEY MBC,Third Party Payments,Private Contractor Fees,73025-PROFESSIONAL SERVICES-PRIV CONTRACTOR & OTHER AGENCIES,"11,430.00",Revenue,15/07/2015,Childrens
WC58 - 1185,DUDLEY MBC,Central,Capital Financing,86004-PRINCIPAL-DEBT SERVICED BY OTHER LOCAL AUTHORITIES,"747,707.81",Revenue,01/07/2015,Capital Financing
WC58 - 1186,DUNSTALL ENTERPRISES LTD,Third Party Payments,Private Contractor Fees,73373-RESIDENTIAL & NURSING CARE PLACEMENTS,"3,553.92",Revenue,07/07/2015,Social Care & Inclusion
WC58 - 1187,DUNSTALL ENTERPRISES LTD,Third Party Payments,Private Contractor Fees,73373-RESIDENTIAL & NURSING CARE PLACEMENTS,"3,553.92",Revenue,07/07/2015,Social Care & Inclusion
WC58 - 1188,DURA-SPORT LTD,Supplies & Services,"Equip,Furniture & Materials",60008-MAINTENANCE-FURNITURE & EQUIPMENT,"3,500.00",Revenue,06/07/2015,Economy & Environment
WC58 - 1189,DURA-SPORT LTD,Supplies & Services,"Equip,Furniture & Materials",60500-GENERAL MATERIALS,"5,550.00",Revenue,03/07/2015,Economy & Environment
WC58 - 1190,DURA-SPORT LTD,Supplies & Services,"Equip,Furniture & Materials",60500-GENERAL MATERIALS,"6,042.00",Revenue,10/07/2015,Economy & Environment
WC58 - 1191,DURA-SPORT LTD,Supplies & Services,"Equip,Furniture & Materials",60008-MAINTENANCE-FURNITURE & EQUIPMENT,"7,500.00",Revenue,24/07/2015,Economy & Environment
WC58 - 1192,DVLA,Supplies & Services,Services,63000-PROFESSIONAL FEES AND SERVICES,-500.00,Revenue,20/07/2015,Economy & Environment
WC58 - 1193,DVLA,Supplies & Services,Services,63000-PROFESSIONAL FEES AND SERVICES,500.00,Revenue,15/07/2015,Economy & Environment
WC58 - 1194,DWF LLP,Supplies & Services,Services,63000-PROFESSIONAL FEES AND SERVICES,"13,976.59",Revenue,13/07/2015,Economy & Environment
WC58 - 1195,REDACTED,Third Party Payments,Private Contractor Fees,74006-HOLIDAY/CHRISTMAS ALLOWANCE-FOSTER CARERS-OTH AGENCY PROVISION,"2,112.16",Revenue,20/07/2015,Childrens
WC58 - 1196,REDACTED,Supplies & Services,Other Supplies & Services,62515-MISCELLANEOUS SUPPLIES,"2,163.44",Revenue,20/07/2015,Childrens
WC58 - 1197,E MANTON LIMITED,Capital,Capital,01002-PROJECT FEES,"103,360.00",Capital,09/07/2015,Economy & Environment
WC58 - 1198,REDACTED,Supplies & Services,Other Supplies & Services,62511-DISTRIBUTION,640.00,Revenue,24/07/2015,Economy & Environment
WC58 - 1199,EAGLE ENVELOPES LTD 002,Supplies & Services,"Printing, Stationery & Office Exp",62008-OUTWORK-PRINT ROOM,"2,386.80",Revenue,09/07/2015,Resources
WC58 - 1200,EARTH TEC LIMITED,Supplies & Services,"Equip,Furniture & Materials",60500-GENERAL MATERIALS,552.00,Revenue,14/07/2015,Economy & Environment
WC58 - 1201,EDEN ADAPTATIONS LTD,Capital,Capital,01006-SITE WORKS MAIN CONTRACTORS,343.13,Capital,20/07/2015,Resources
WC58 - 1202,EDEN ADAPTATIONS LTD,Capital,Capital,01045-PRIVATE GRANTS,"1,099.55",Capital,01/07/2015,Resources
WC58 - 1203,EDEN ADAPTATIONS LTD,Capital,Capital,01045-PRIVATE GRANTS,"4,208.29",Capital,20/07/2015,Resources
WC58 - 1204,EDEN ADAPTATIONS LTD,Capital,Capital,01045-PRIVATE GRANTS,"4,208.29",Capital,20/07/2015,Resources
WC58 - 1205,EDEN ADAPTATIONS LTD,Capital,Capital,01045-PRIVATE GRANTS,"8,000.00",Capital,28/07/2015,Resources
WC58 - 1206,EDGAR STAMMERS PRIMARY ACADEMY,Supplies & Services,Communications & Computing,63603-COST OF CALLS-TELEPHONES,36.24,Revenue,16/07/2015,Childrens
WC58 - 1207,EDGAR STAMMERS PRIMARY ACADEMY,Premises,Premises-Repairs & Maintenance,40012-FIRE SYSTEM-OP MTCE,57.50,Revenue,27/07/2015,Childrens
WC58 - 1208,EDGAR STAMMERS PRIMARY ACADEMY,Premises,Cleaning & Caretaking,47000-SCH ONLY PAYMENTS-REFUSE COLLECTION,63.28,Revenue,16/07/2015,Childrens
WC58 - 1209,EDGAR STAMMERS PRIMARY ACADEMY,Supplies & Services,Communications & Computing,63603-COST OF CALLS-TELEPHONES,83.86,Revenue,27/07/2015,Childrens
WC58 - 1210,EDGAR STAMMERS PRIMARY ACADEMY,Premises,Cleaning & Caretaking,47000-SCH ONLY PAYMENTS-REFUSE COLLECTION,85.20,Revenue,27/07/2015,Childrens
WC58 - 1211,EDGAR STAMMERS PRIMARY ACADEMY,Premises,Utilities,45000-WATER CHARGES,144.21,Revenue,27/07/2015,Childrens
WC58 - 1212,EDGAR STAMMERS PRIMARY ACADEMY,Premises,Utilities,42000-GAS-ENERGY COSTS,217.05,Revenue,27/07/2015,Childrens
WC58 - 1213,EDGAR STAMMERS PRIMARY ACADEMY,Premises,Utilities,42003-ELECTRICITY-ENERGY COSTS,370.64,Revenue,27/07/2015,Childrens
WC58 - 1214,EDGAR STAMMERS PRIMARY ACADEMY,Premises,Utilities,42000-GAS-ENERGY COSTS,386.70,Revenue,16/07/2015,Childrens
WC58 - 1215,EDGAR STAMMERS PRIMARY ACADEMY,Premises,Premises-Repairs & Maintenance,40032-LANDSCAPE WORK-OP MTCE,425.96,Revenue,16/07/2015,Childrens
WC58 - 1216,EDGAR STAMMERS PRIMARY ACADEMY,Premises,Utilities,42003-ELECTRICITY-ENERGY COSTS,786.94,Revenue,16/07/2015,Childrens
WC58 - 1217,EDGAR STAMMERS PRIMARY ACADEMY,Third Party Payments,Grants to Other Orgs,66502-TOP UP FUNDING -GRANTS TO SCHOOLS,"16,431.87",Revenue,07/07/2015,Childrens
WC58 - 1218,REDACTED,Transfer Payments,Transfer Payments,76422-DIRECT PAYMENTS TO SOCIAL SERVICES CLIENTS,769.44,Revenue,13/07/2015,Social Care & Inclusion
WC58 - 1219,REDACTED,Transfer Payments,Transfer Payments,76422-DIRECT PAYMENTS TO SOCIAL SERVICES CLIENTS,276.00,Revenue,13/07/2015,Social Care & Inclusion
WC58 - 1220,EDUCATION GOVERNANCE SERVICES LTD,Employees,Agency,34305-AGENCY STAFF-EMPLOYEES,750.00,Revenue,09/07/2015,Resources
WC58 - 1221,EDUCATION GOVERNANCE SERVICES LTD,Employees,Agency,34305-AGENCY STAFF-EMPLOYEES,"1,000.00",Revenue,09/07/2015,Resources
WC58 - 1222,EDUCATION GOVERNANCE SERVICES LTD,Employees,Agency,34305-AGENCY STAFF-EMPLOYEES,"1,250.00",Revenue,09/07/2015,Resources
WC58 - 1223,EDWARDS MOORE,Third Party Payments,Private Contractor Fees,73374-SUPPORTED & OTHER ACCOMMODATION,415.00,Revenue,08/07/2015,Childrens
WC58 - 1224,REDACTED,Supplies & Services,Other Supplies & Services,64002-OTHER EXPENSES-EXPENSES,400.00,Revenue,27/07/2015,Childrens
WC58 - 1225,EE,Supplies & Services,Communications & Computing,63604-TELEPHONES MOBILE/PAGERS-TELEPHONES,"1,009.80",Revenue,15/07/2015,Resources
WC58 - 1226,EE,Supplies & Services,Communications & Computing,63604-TELEPHONES MOBILE/PAGERS-TELEPHONES,"4,667.66",Revenue,15/07/2015,Resources
WC58 - 1227,EGBERT H TAYLOR & CO LTD,Supplies & Services,"Equip,Furniture & Materials",60006-NEW-FURNITURE & EQUIPMENT,"1,441.00",Revenue,01/07/2015,Economy & Environment
WC58 - 1228,EILEEN MASON STUDIOS,Supplies & Services,Other Supplies & Services,83800-MAYORAL COSTS,661.00,Revenue,01/07/2015,Resources
WC58 - 1229,EJKO PROMOTIONS,Supplies & Services,Other Supplies & Services,62515-MISCELLANEOUS SUPPLIES,830.00,Revenue,16/07/2015,Economy & Environment
WC58 - 1230,REDACTED,Transfer Payments,Transfer Payments,76422-DIRECT PAYMENTS TO SOCIAL SERVICES CLIENTS,"1,832.40",Revenue,13/07/2015,Social Care & Inclusion
WC58 - 1231,REDACTED,Third Party Payments,Private Contractor Fees,74006-HOLIDAY/CHRISTMAS ALLOWANCE-FOSTER CARERS-OTH AGENCY PROVISION,621.52,Revenue,06/07/2015,Childrens
WC58 - 1232,REDACTED,Third Party Payments,Private Contractor Fees,74006-HOLIDAY/CHRISTMAS ALLOWANCE-FOSTER CARERS-OTH AGENCY PROVISION,"1,461.24",Revenue,20/07/2015,Childrens
WC58 - 1233,REDACTED,Supplies & Services,Other Supplies & Services,62515-MISCELLANEOUS SUPPLIES,"1,489.31",Revenue,20/07/2015,Childrens
WC58 - 1234,REDACTED,Supplies & Services,Other Supplies & Services,62515-MISCELLANEOUS SUPPLIES,540.20,Revenue,20/07/2015,Childrens
WC58 - 1235,REDACTED,Third Party Payments,Private Contractor Fees,74006-HOLIDAY/CHRISTMAS ALLOWANCE-FOSTER CARERS-OTH AGENCY PROVISION,642.87,Revenue,20/07/2015,Childrens
WC58 - 1236,REDACTED,Supplies & Services,Other Supplies & Services,62515-MISCELLANEOUS SUPPLIES,925.00,Revenue,20/07/2015,Childrens
WC58 - 1237,REDACTED,Third Party Payments,Private Contractor Fees,74006-HOLIDAY/CHRISTMAS ALLOWANCE-FOSTER CARERS-OTH AGENCY PROVISION,"1,383.21",Revenue,20/07/2015,Childrens
WC58 - 1238,ELC (CONTRACTORS) LTD,Supplies & Services,"Equip,Furniture & Materials",60500-GENERAL MATERIALS,"6,925.00",Revenue,03/07/2015,Economy & Environment
WC58 - 1239,ELEGANT DRY CLEANERS,Capital,Capital,01046-OTHER GRANTS,"4,053.90",Capital,08/07/2015,Economy & Environment
WC58 - 1240,ELEGANT DRY CLEANERS,Capital,Capital,01046-OTHER GRANTS,"4,053.91",Capital,08/07/2015,Economy & Environment
WC58 - 1241,REDACTED,Transfer Payments,Transfer Payments,76422-DIRECT PAYMENTS TO SOCIAL SERVICES CLIENTS,954.04,Revenue,13/07/2015,Social Care & Inclusion
WC58 - 1242,REDACTED,Third Party Payments,Private Contractor Fees,74006-HOLIDAY/CHRISTMAS ALLOWANCE-FOSTER CARERS-OTH AGENCY PROVISION,312.20,Revenue,06/07/2015,Childrens
WC58 - 1243,REDACTED,Transfer Payments,Transfer Payments,76422-DIRECT PAYMENTS TO SOCIAL SERVICES CLIENTS,261.16,Revenue,13/07/2015,Social Care & Inclusion
WC58 - 1244,REDACTED,Transfer Payments,Transfer Payments,76422-DIRECT PAYMENTS TO SOCIAL SERVICES CLIENTS,"1,120.80",Revenue,13/07/2015,Social Care & Inclusion
WC58 - 1245,REDACTED,Transfer Payments,Transfer Payments,76422-DIRECT PAYMENTS TO SOCIAL SERVICES CLIENTS,336.00,Revenue,13/07/2015,Social Care & Inclusion
WC58 - 1246,REDACTED,Transfer Payments,Transfer Payments,76422-DIRECT PAYMENTS TO SOCIAL SERVICES CLIENTS,"1,075.03",Revenue,13/07/2015,Social Care & Inclusion
WC58 - 1247,EMBLEM PRINT PRODUCTS LTD,Supplies & Services,"Equip,Furniture & Materials",60529-SHOP STOCK-MATERIALS,443.50,Revenue,29/07/2015,Economy & Environment
WC58 - 1248,REDACTED,Transfer Payments,Transfer Payments,76422-DIRECT PAYMENTS TO SOCIAL SERVICES CLIENTS,"2,079.70",Revenue,13/07/2015,Social Care & Inclusion
WC58 - 1249,REDACTED,Third Party Payments,Private Contractor Fees,74006-HOLIDAY/CHRISTMAS ALLOWANCE-FOSTER CARERS-OTH AGENCY PROVISION,"4,622.82",Revenue,06/07/2015,Childrens
WC58 - 1250,REDACTED,Transfer Payments,Transfer Payments,76422-DIRECT PAYMENTS TO SOCIAL SERVICES CLIENTS,"2,597.60",Revenue,13/07/2015,Social Care & Inclusion
WC58 - 1251,EMMANUEL SCHOOL (WALSALL),Third Party Payments,Grants to Other Orgs,66505-OTHER-GRANTS TO OTHER ORGS,"16,427.45",Revenue,09/07/2015,Childrens
WC58 - 1252,EMPLOYMENT LAW SERVICES,Supplies & Services,Services,63000-PROFESSIONAL FEES AND SERVICES,684.00,Revenue,21/07/2015,Resources
WC58 - 1253,EMPOWERING U CARE LTD,Third Party Payments,Private Contractor Fees,73374-SUPPORTED & OTHER ACCOMMODATION,648.00,Revenue,14/07/2015,Social Care & Inclusion
WC58 - 1254,EMPOWERING U CARE LTD,Third Party Payments,Private Contractor Fees,73374-SUPPORTED & OTHER ACCOMMODATION,810.00,Revenue,14/07/2015,Social Care & Inclusion
WC58 - 1255,EMPOWERING U CARE LTD,Third Party Payments,Private Contractor Fees,73374-SUPPORTED & OTHER ACCOMMODATION,"1,080.00",Revenue,14/07/2015,Social Care & Inclusion
WC58 - 1256,EMPOWERING U CARE LTD,Third Party Payments,Private Contractor Fees,73374-SUPPORTED & OTHER ACCOMMODATION,"1,296.00",Revenue,14/07/2015,Social Care & Inclusion
WC58 - 1257,EMPOWERING U CARE LTD,Third Party Payments,Private Contractor Fees,73374-SUPPORTED & OTHER ACCOMMODATION,"1,620.00",Revenue,14/07/2015,Social Care & Inclusion
WC58 - 1258,EMPOWERING U CARE LTD,Third Party Payments,Private Contractor Fees,73374-SUPPORTED & OTHER ACCOMMODATION,"1,903.52",Revenue,14/07/2015,Social Care & Inclusion
WC58 - 1259,EMPOWERING U CARE LTD,Third Party Payments,Private Contractor Fees,73374-SUPPORTED & OTHER ACCOMMODATION,"2,011.52",Revenue,14/07/2015,Social Care & Inclusion
WC58 - 1260,EMPOWERING U CARE LTD,Third Party Payments,Private Contractor Fees,73374-SUPPORTED & OTHER ACCOMMODATION,"2,187.00",Revenue,14/07/2015,Social Care & Inclusion
WC58 - 1261,EMPOWERING U CARE LTD,Third Party Payments,Private Contractor Fees,73374-SUPPORTED & OTHER ACCOMMODATION,"4,632.00",Revenue,14/07/2015,Social Care & Inclusion
WC58 - 1262,EMPOWERING U CARE LTD,Third Party Payments,Private Contractor Fees,73374-SUPPORTED & OTHER ACCOMMODATION,"5,712.00",Revenue,14/07/2015,Social Care & Inclusion
WC58 - 1263,REDACTED,Supplies & Services,Other Supplies & Services,62523-EVENTS,250.00,Revenue,09/07/2015,Economy & Environment
WC58 - 1264,REDACTED,Supplies & Services,Other Supplies & Services,62523-EVENTS,250.00,Revenue,09/07/2015,Economy & Environment
WC58 - 1265,ENVIRONMENT AGENCY,Third Party Payments,Levies,72003-ENVIRONMENT AGENCY-PRECEPT AUTH,"18,637.75",Revenue,06/07/2015,Centrally Held
WC58 - 1266,EQUITA LTD,Supplies & Services,Services,63240-BAILIFF COSTS-PAYMENT TO CONTRACTOR,310.00,Revenue,02/07/2015,Resources
WC58 - 1267,ERCO LIGHTING LIMITED,Capital,Capital,01044-PURCHASE OF FURNITURE & EQUIPMENT,"3,187.37",Capital,27/07/2015,Economy & Environment
WC58 - 1268,ESSENTRA SECURITY,Supplies & Services,"Equip,Furniture & Materials",60500-GENERAL MATERIALS,875.50,Revenue,15/07/2015,Resources
WC58 - 1269,ESSINGTON MANOR CARE HOME,Third Party Payments,Private Contractor Fees,73373-RESIDENTIAL & NURSING CARE PLACEMENTS,977.14,Revenue,07/07/2015,Social Care & Inclusion
WC58 - 1270,ESSINGTON MANOR CARE HOME,Third Party Payments,Private Contractor Fees,73373-RESIDENTIAL & NURSING CARE PLACEMENTS,"1,302.86",Revenue,07/07/2015,Social Care & Inclusion
WC58 - 1271,ESSINGTON MANOR CARE HOME,Third Party Payments,Private Contractor Fees,73373-RESIDENTIAL & NURSING CARE PLACEMENTS,"2,280.00",Revenue,07/07/2015,Social Care & Inclusion
WC58 - 1272,ESSINGTON MANOR CARE HOME,Third Party Payments,Private Contractor Fees,73373-RESIDENTIAL & NURSING CARE PLACEMENTS,"2,280.00",Revenue,07/07/2015,Social Care & Inclusion
WC58 - 1273,ESSINGTON MOBILITY,Supplies & Services,"Equip,Furniture & Materials",60007-REPAIR OF EQUIPMENT-EQUIPMENT,335.00,Revenue,01/07/2015,Social Care & Inclusion
WC58 - 1274,EUROTOOL HIRE & SALES,Supplies & Services,"Equip,Furniture & Materials",60006-NEW-FURNITURE & EQUIPMENT,900.00,Revenue,17/07/2015,Economy & Environment
WC58 - 1275,REDACTED,Transfer Payments,Transfer Payments,76422-DIRECT PAYMENTS TO SOCIAL SERVICES CLIENTS,"1,511.64",Revenue,13/07/2015,Social Care & Inclusion
WC58 - 1276,REDACTED,Transfer Payments,Transfer Payments,76422-DIRECT PAYMENTS TO SOCIAL SERVICES CLIENTS,"2,200.00",Revenue,13/07/2015,Social Care & Inclusion
WC58 - 1277,EVANS HALSHAW,Supplies & Services,"Equip,Furniture & Materials",60500-GENERAL MATERIALS,252.30,Revenue,17/07/2015,Economy & Environment
WC58 - 1278,EVANS HALSHAW,Capital,Capital,01018-VEHICLES LEASING,"15,871.78",Capital,03/07/2015,Leasing
WC58 - 1279,EVANS HALSHAW,Capital,Capital,01018-VEHICLES LEASING,"15,871.78",Capital,03/07/2015,Leasing
WC58 - 1280,EVANS HALSHAW,Capital,Capital,01018-VEHICLES LEASING,"15,871.78",Capital,03/07/2015,Leasing
WC58 - 1281,EVANS HALSHAW,Capital,Capital,01018-VEHICLES LEASING,"15,871.78",Capital,03/07/2015,Leasing
WC58 - 1282,EVANS HALSHAW,Capital,Capital,01018-VEHICLES LEASING,"15,871.78",Capital,03/07/2015,Leasing
WC58 - 1283,REDACTED,Transfer Payments,Transfer Payments,76422-DIRECT PAYMENTS TO SOCIAL SERVICES CLIENTS,"1,488.00",Revenue,13/07/2015,Social Care & Inclusion
WC58 - 1284,REDACTED,Third Party Payments,Private Contractor Fees,74006-HOLIDAY/CHRISTMAS ALLOWANCE-FOSTER CARERS-OTH AGENCY PROVISION,"1,510.17",Revenue,06/07/2015,Childrens
WC58 - 1285,EXCELLENCE IN PARTNERSHIP BASED AT VALLEY NURSERY,Third Party Payments,Grants to Other Orgs,66505-OTHER-GRANTS TO OTHER ORGS,"14,586.00",Revenue,09/07/2015,Childrens
WC58 - 1286,EXCELLENCE IN PARTNERSHIP BASED AT VALLEY NURSERY,Third Party Payments,Grants to Other Orgs,66505-OTHER-GRANTS TO OTHER ORGS,"28,811.88",Revenue,20/07/2015,Childrens
